{"text_format":"3","workbook":"xlsx","n_sheets":4,"sheets":["Bảng Theo dõi Điểm số","Hiệu suất của bạn","Thiết đặt","Tính toán"],"not_rendered":{"defined_names":3,"comments":1},"read":"whole","date_system":"1900"}

{"sheet":"Bảng Theo dõi Điểm số","index":0,"n_rows":14,"n_cols":6,"rows_kept":14}
[null,"Nhập Điểm số của Bạn vào Đây"]
[]
[null,null,"Lớp","Loại","Mô tả","Điểm"]
[null,null,"Tiếng Pháp Hiện đại","Bài tập về nhà","Lịch sử Chiến Tranh Thế Giới II",{"v":0.8,"d":"80%"}]
[null,null,"Lập trình Nâng cao trong Java","Giữa kỳ",null,{"v":0.75,"d":"75%"}]
[null,null,"Tiếng Tây Ban Nha","Bài tập về nhà",null,{"v":0.5,"d":"50%"}]
[null,null,"Vật lý Lý thuyết","Bài tập về nhà",null,{"v":0.95,"d":"95%"}]
[null,null,"Tiếng Pháp Hiện đại","Bài tập về nhà","Lịch sử Chiến tranh Thế giới I",{"v":0.9,"d":"90%"}]
[null,null,"Tiếng Pháp Hiện đại","Bài tập về nhà","Trang 30 - 41",{"v":0.8,"d":"80%"}]
[null,null,"Bài luận","Tiểu luận","Bài luật thuyết phục",{"v":0.95,"d":"95%"}]
[null,null,"Toán học 1","Tiểu luận","Trang 21 & 26",{"v":0.8,"d":"80%"}]
[null,null,"Toán học 2","Bài tập về nhà","Trang 15 & 18",{"v":0.85,"d":"85%"}]
[null,null,"Toán học 1","Bài tập về nhà","Trang 34 - 36",{"v":0.8,"d":"80%"}]
[null,null,"Toán học 2","Bài kiểm tra",null,{"v":0.95,"d":"95%"}]

{"sheet":"Hiệu suất của bạn","index":1,"n_rows":31,"n_cols":8,"rows_kept":31}
[null,"Hiệu suất của bạn"]
[]
[null,null,"Tổng cộng"]
[null,null,{"$f":"\"Số giờ: \"&SUM(tblClasses[Giờ Tín chỉ])","v":"Số giờ: 24"},{"$f":"AVERAGE(D7:D31)","v":{"v":0.8104761904761906,"d":"81%"}},{"$f":"AVERAGE(E7:E31)","v":{"v":2.7142857142857144,"d":"2.71"}},{"$f":"SUM(F7:F31)","v":{"v":2.625,"d":"2.63"}},{"$f":"IFERROR(HLOOKUP(D4,lstGPAMapping,2),\"\")","v":"B-"}]
[]
[null,null,"Lớp","%","Điểm Trung bình","Điểm trung bình theo trọng số","Chữ cái","Hiệu suất Tổng thể"]
[null,null,{"$f":"'Tính toán'!C6","v":"Tiếng Pháp Hiện đại"},{"$f":"'Tính toán'!AL6","v":{"v":0.8333333333333334,"d":"83%"}},{"$f":"'Tính toán'!AM6","v":{"v":3,"d":"3.00"}},{"$f":"IFERROR(E7*'Thiết đặt'!D9/SUM(tblClasses[Giờ Tín chỉ]),\"\")","v":{"v":0.375,"d":"0.38"}},{"$f":"'Tính toán'!AN6","v":"B"}]
[null,null,{"$f":"'Tính toán'!C7","v":"Vật lý Lý thuyết"},{"$f":"'Tính toán'!AL7","v":{"v":0.95,"d":"95%"}},{"$f":"'Tính toán'!AM7","v":{"v":4,"d":"4.00"}},{"$f":"IFERROR(E8*'Thiết đặt'!D10/SUM(tblClasses[Giờ Tín chỉ]),\"\")","v":{"v":0.5,"d":"0.50"}},{"$f":"'Tính toán'!AN7","v":"A"}]
[null,null,{"$f":"'Tính toán'!C8","v":"Toán học 1"},{"$f":"'Tính toán'!AL8","v":{"v":0.8,"d":"80%"}},{"$f":"'Tính toán'!AM8","v":2.67},{"$f":"IFERROR(E9*'Thiết đặt'!D11/SUM(tblClasses[Giờ Tín chỉ]),\"\")","v":{"v":0.445,"d":"0.45"}},{"$f":"'Tính toán'!AN8","v":"B-"}]
[null,null,{"$f":"'Tính toán'!C9","v":"Toán học 2"},{"$f":"'Tính toán'!AL9","v":{"v":0.89,"d":"89%"}},{"$f":"'Tính toán'!AM9","v":3.33},{"$f":"IFERROR(E10*'Thiết đặt'!D12/SUM(tblClasses[Giờ Tín chỉ]),\"\")","v":{"v":0.555,"d":"0.56"}},{"$f":"'Tính toán'!AN9","v":"B+"}]
[null,null,{"$f":"'Tính toán'!C10","v":"Lập trình Nâng cao trong Java"},{"$f":"'Tính toán'!AL10","v":{"v":0.7500000000000001,"d":"75%"}},{"$f":"'Tính toán'!AM10","v":{"v":2,"d":"2.00"}},{"$f":"IFERROR(E11*'Thiết đặt'!D13/SUM(tblClasses[Giờ Tín chỉ]),\"\")","v":{"v":0.4166666666666667,"d":"0.42"}},{"$f":"'Tính toán'!AN10","v":"C"}]
[null,null,{"$f":"'Tính toán'!C11","v":"Tiếng Tây Ban Nha"},{"$f":"'Tính toán'!AL11","v":{"v":0.5,"d":"50%"}},{"$f":"'Tính toán'!AM11","v":{"v":0,"d":"0.00"}},{"$f":"IFERROR(E12*'Thiết đặt'!D14/SUM(tblClasses[Giờ Tín chỉ]),\"\")","v":{"v":0,"d":"0.00"}},{"$f":"'Tính toán'!AN11","v":"F"}]
[null,null,{"$f":"'Tính toán'!C12","v":"Bài luận"},{"$f":"'Tính toán'!AL12","v":{"v":0.95,"d":"95%"}},{"$f":"'Tính toán'!AM12","v":{"v":4,"d":"4.00"}},{"$f":"IFERROR(E13*'Thiết đặt'!D15/SUM(tblClasses[Giờ Tín chỉ]),\"\")","v":{"v":0.3333333333333333,"d":"0.33"}},{"$f":"'Tính toán'!AN12","v":"A"}]
[null,null,{"$f":"'Tính toán'!C13","v":""},{"$f":"'Tính toán'!AL13","v":""},{"$f":"'Tính toán'!AM13","v":""},{"$f":"IFERROR(E14*'Thiết đặt'!D16/SUM(tblClasses[Giờ Tín chỉ]),\"\")","v":""},{"$f":"'Tính toán'!AN13","v":""}]
[null,null,{"$f":"'Tính toán'!C14","v":""},{"$f":"'Tính toán'!AL14","v":""},{"$f":"'Tính toán'!AM14","v":""},{"$f":"IFERROR(E15*'Thiết đặt'!D17/SUM(tblClasses[Giờ Tín chỉ]),\"\")","v":""},{"$f":"'Tính toán'!AN14","v":""}]
[null,null,{"$f":"'Tính toán'!C15","v":""},{"$f":"'Tính toán'!AL15","v":""},{"$f":"'Tính toán'!AM15","v":""},{"$f":"IFERROR(E16*'Thiết đặt'!D18/SUM(tblClasses[Giờ Tín chỉ]),\"\")","v":""},{"$f":"'Tính toán'!AN15","v":""}]
[null,null,{"$f":"'Tính toán'!C16","v":""},{"$f":"'Tính toán'!AL16","v":""},{"$f":"'Tính toán'!AM16","v":""},{"$f":"IFERROR(E17*'Thiết đặt'!D19/SUM(tblClasses[Giờ Tín chỉ]),\"\")","v":""},{"$f":"'Tính toán'!AN16","v":""}]
[null,null,{"$f":"'Tính toán'!C17","v":""},{"$f":"'Tính toán'!AL17","v":""},{"$f":"'Tính toán'!AM17","v":""},{"$f":"IFERROR(E18*'Thiết đặt'!D20/SUM(tblClasses[Giờ Tín chỉ]),\"\")","v":""},{"$f":"'Tính toán'!AN17","v":""}]
[null,null,{"$f":"'Tính toán'!C18","v":""},{"$f":"'Tính toán'!AL18","v":""},{"$f":"'Tính toán'!AM18","v":""},{"$f":"IFERROR(E19*'Thiết đặt'!D21/SUM(tblClasses[Giờ Tín chỉ]),\"\")","v":""},{"$f":"'Tính toán'!AN18","v":""}]
[null,null,{"$f":"'Tính toán'!C19","v":""},{"$f":"'Tính toán'!AL19","v":""},{"$f":"'Tính toán'!AM19","v":""},{"$f":"IFERROR(E20*'Thiết đặt'!D22/SUM(tblClasses[Giờ Tín chỉ]),\"\")","v":""},{"$f":"'Tính toán'!AN19","v":""}]
[null,null,{"$f":"'Tính toán'!C20","v":""},{"$f":"'Tính toán'!AL20","v":""},{"$f":"'Tính toán'!AM20","v":""},{"$f":"IFERROR(E21*'Thiết đặt'!D23/SUM(tblClasses[Giờ Tín chỉ]),\"\")","v":""},{"$f":"'Tính toán'!AN20","v":""}]
[null,null,{"$f":"'Tính toán'!C21","v":""},{"$f":"'Tính toán'!AL21","v":""},{"$f":"'Tính toán'!AM21","v":""},{"$f":"IFERROR(E22*'Thiết đặt'!D24/SUM(tblClasses[Giờ Tín chỉ]),\"\")","v":""},{"$f":"'Tính toán'!AN21","v":""}]
[null,null,{"$f":"'Tính toán'!C22","v":""},{"$f":"'Tính toán'!AL22","v":""},{"$f":"'Tính toán'!AM22","v":""},{"$f":"IFERROR(E23*'Thiết đặt'!D25/SUM(tblClasses[Giờ Tín chỉ]),\"\")","v":""},{"$f":"'Tính toán'!AN22","v":""}]
[null,null,{"$f":"'Tính toán'!C23","v":""},{"$f":"'Tính toán'!AL23","v":""},{"$f":"'Tính toán'!AM23","v":""},{"$f":"IFERROR(E24*'Thiết đặt'!D26/SUM(tblClasses[Giờ Tín chỉ]),\"\")","v":""},{"$f":"'Tính toán'!AN23","v":""}]
[null,null,{"$f":"'Tính toán'!C24","v":""},{"$f":"'Tính toán'!AL24","v":""},{"$f":"'Tính toán'!AM24","v":""},{"$f":"IFERROR(E25*'Thiết đặt'!D27/SUM(tblClasses[Giờ Tín chỉ]),\"\")","v":""},{"$f":"'Tính toán'!AN24","v":""}]
[null,null,{"$f":"'Tính toán'!C25","v":""},{"$f":"'Tính toán'!AL25","v":""},{"$f":"'Tính toán'!AM25","v":""},{"$f":"IFERROR(E26*'Thiết đặt'!D28/SUM(tblClasses[Giờ Tín chỉ]),\"\")","v":""},{"$f":"'Tính toán'!AN25","v":""}]
[null,null,{"$f":"'Tính toán'!C26","v":""},{"$f":"'Tính toán'!AL26","v":""},{"$f":"'Tính toán'!AM26","v":""},{"$f":"IFERROR(E27*'Thiết đặt'!D29/SUM(tblClasses[Giờ Tín chỉ]),\"\")","v":""},{"$f":"'Tính toán'!AN26","v":""}]
[null,null,{"$f":"'Tính toán'!C27","v":""},{"$f":"'Tính toán'!AL27","v":""},{"$f":"'Tính toán'!AM27","v":""},{"$f":"IFERROR(E28*'Thiết đặt'!D30/SUM(tblClasses[Giờ Tín chỉ]),\"\")","v":""},{"$f":"'Tính toán'!AN27","v":""}]
[null,null,{"$f":"'Tính toán'!C28","v":""},{"$f":"'Tính toán'!AL28","v":""},{"$f":"'Tính toán'!AM28","v":""},{"$f":"IFERROR(E29*'Thiết đặt'!D31/SUM(tblClasses[Giờ Tín chỉ]),\"\")","v":""},{"$f":"'Tính toán'!AN28","v":""}]
[null,null,{"$f":"'Tính toán'!C29","v":""},{"$f":"'Tính toán'!AL29","v":""},{"$f":"'Tính toán'!AM29","v":""},{"$f":"IFERROR(E30*'Thiết đặt'!D32/SUM(tblClasses[Giờ Tín chỉ]),\"\")","v":""},{"$f":"'Tính toán'!AN29","v":""}]
[null,null,{"$f":"'Tính toán'!C30","v":""},{"$f":"'Tính toán'!AL30","v":""},{"$f":"'Tính toán'!AM30","v":""},{"$f":"IFERROR(E31*'Thiết đặt'!D33/SUM(tblClasses[Giờ Tín chỉ]),\"\")","v":""},{"$f":"'Tính toán'!AN30","v":""}]

{"sheet":"Thiết đặt","index":2,"n_rows":15,"n_cols":16,"rows_kept":15,"merged":[[5,2,5,15]]}
[null,"Thiết đặt"]
[null,null,"Ánh xạ Điểm và Điểm trung bình"]
[null,null,"Tỷ lệ phần trăm",{"v":0,"d":"0%"},{"v":0.6,"d":"60%"},{"v":0.63,"d":"63%"},{"v":0.67,"d":"67%"},{"v":0.7,"d":"70%"},{"v":0.73,"d":"73%"},{"v":0.77,"d":"77%"},{"v":0.8,"d":"80%"},{"v":0.83,"d":"83%"},{"v":0.87,"d":"87%"},{"v":0.9,"d":"90%"},{"v":0.93,"d":"93%"},{"v":0.97,"d":"97%"}]
[null,null,"Xếp loại Chữ cái","F","D-","D","D+","C-","C","C+","B-","B","B+","A-","A","A+"]
[null,null,"Điểm Trung bình",0,0.67,1,1.33,1.67,2,2.33,2.67,3,3.33,3.67,4,4]
[]
[null,null,"Điểm theo trọng số cho tới 25 lớp"]
[null,null,"Lớp bạn tham gia","Giờ Tín chỉ","Bài tập về nhà","Tiểu luận","Bài kiểm tra","Dự án","Giữa kỳ","Bài thi Cuối khóa","Khác","% Tổng cộng"]
[null,null,"Tiếng Pháp Hiện đại",{"v":3,"d":"3.0"},{"v":0.1,"d":"10%"},{"v":0.15,"d":"15%"},{"v":0.15,"d":"15%"},{"v":0.1,"d":"10%"},{"v":0.2,"d":"20%"},{"v":0.3,"d":"30%"},null,{"$f":"SUM(tblClasses[[#This Row],[Bài tập về nhà]:[Khác]])","v":{"v":1,"d":"100%"}}]
[null,null,"Vật lý Lý thuyết",{"v":3,"d":"3.0"},{"v":0.15,"d":"15%"},{"v":0.15,"d":"15%"},{"v":0.1,"d":"10%"},{"v":0.1,"d":"10%"},{"v":0.15,"d":"15%"},{"v":0.3,"d":"30%"},{"v":0.05,"d":"5%"},{"$f":"SUM(tblClasses[[#This Row],[Bài tập về nhà]:[Khác]])","v":{"v":1,"d":"100%"}}]
[null,null,"Toán học 1",{"v":4,"d":"4.0"},{"v":0.1,"d":"10%"},{"v":0.15,"d":"15%"},{"v":0.15,"d":"15%"},{"v":0.1,"d":"10%"},{"v":0.2,"d":"20%"},{"v":0.3,"d":"30%"},null,{"$f":"SUM(tblClasses[[#This Row],[Bài tập về nhà]:[Khác]])","v":{"v":1,"d":"100%"}}]
[null,null,"Toán học 2",{"v":4,"d":"4.0"},{"v":0.15,"d":"15%"},{"v":0.15,"d":"15%"},{"v":0.1,"d":"10%"},{"v":0.1,"d":"10%"},{"v":0.15,"d":"15%"},{"v":0.3,"d":"30%"},{"v":0.05,"d":"5%"},{"$f":"SUM(tblClasses[[#This Row],[Bài tập về nhà]:[Khác]])","v":{"v":1,"d":"100%"}}]
[null,null,"Lập trình Nâng cao trong Java",{"v":5,"d":"5.0"},{"v":0.15,"d":"15%"},{"v":0.15,"d":"15%"},{"v":0.1,"d":"10%"},{"v":0.1,"d":"10%"},{"v":0.2,"d":"20%"},{"v":0.3,"d":"30%"},null,{"$f":"SUM(tblClasses[[#This Row],[Bài tập về nhà]:[Khác]])","v":{"v":1,"d":"100%"}}]
[null,null,"Tiếng Tây Ban Nha",{"v":3,"d":"3.0"},{"v":0.1,"d":"10%"},{"v":0.15,"d":"15%"},{"v":0.17,"d":"17%"},{"v":0.13,"d":"13%"},{"v":0.2,"d":"20%"},{"v":0.2,"d":"20%"},{"v":0.05,"d":"5%"},{"$f":"SUM(tblClasses[[#This Row],[Bài tập về nhà]:[Khác]])","v":{"v":1,"d":"100%"}}]
[null,null,"Bài luận",{"v":2,"d":"2.0"},{"v":0.15,"d":"15%"},{"v":0.15,"d":"15%"},{"v":0.12,"d":"12%"},{"v":0.15,"d":"15%"},{"v":0.15,"d":"15%"},{"v":0.25,"d":"25%"},{"v":0.03,"d":"3%"},{"$f":"SUM(tblClasses[[#This Row],[Bài tập về nhà]:[Khác]])","v":{"v":1,"d":"100%"}}]

{"sheet":"Tính toán","index":3,"n_rows":657,"n_cols":40,"rows_kept":657,"hidden":true}
[null,"Các phép tính"]
[null,null,"Trang tính này cung cấp tính toán cho sếp hạng & điểm trung bình của bạn và nên được để ẩn. Bất kỳ thay đổi nào đối với trang tính này có thể gây ra lỗi."]
[]
[null,null,"Danh sách Lớp Hiện tại","Điểm (trên 1)",{"$nulls":24},"Tính toán Đánh giá"]
[null,null,"Lớp",1,2,3,4,5,6,7,8,9,10,11,12,13,14,15,16,17,18,19,20,21,22,23,24,25,{"$f":"tblClasses[[#Headers],[Bài tập về nhà]]","v":"Bài tập về nhà"},{"$f":"tblClasses[[#Headers],[Tiểu luận]]","v":"Tiểu luận"},{"$f":"tblClasses[[#Headers],[Bài kiểm tra]]","v":"Bài kiểm tra"},{"$f":"tblClasses[[#Headers],[Dự án]]","v":"Dự án"},{"$f":"tblClasses[[#Headers],[Giữa kỳ]]","v":"Giữa kỳ"},{"$f":"tblClasses[[#Headers],[Bài thi Cuối khóa]]","v":"Bài thi Cuối khóa"},{"$f":"tblClasses[[#Headers],[Khác]]","v":"Khác"},"Tổng cộng","Tổng cộng khả dĩ","Tổng cộng %","Điểm Xếp hạng","Xếp loại Chữ cái"]
[null,null,{"$f":"IF('Thiết đặt'!C9=\"\",\"\",'Thiết đặt'!C9)","v":"Tiếng Pháp Hiện đại"},{"$f":"IFERROR(INDEX(tblClassScores[],MATCH($C6:$C30&D$5:AB$5,'Tính toán'!$C$33:$C$657,0),4),\"\")","v":{"v":0.8,"d":"80%"}},{"v":0.9,"d":"90%"},{"v":0.8,"d":"80%"},"","","","","","","","","","","","","","","","","","","","","","",{"$f":"IFERROR(AVERAGEIFS(tblClassScores[Điểm],tblClassScores[Lớp],'Tính toán'!$C6,tblClassScores[Loại],'Tính toán'!AC$5)*'Thiết đặt'!E9,\"\")","v":0.08333333333333334},{"$f":"IFERROR(AVERAGEIFS(tblClassScores[Điểm],tblClassScores[Lớp],'Tính toán'!$C6,tblClassScores[Loại],'Tính toán'!AD$5)*'Thiết đặt'!F9,\"\")","v":""},{"$f":"IFERROR(AVERAGEIFS(tblClassScores[Điểm],tblClassScores[Lớp],'Tính toán'!$C6,tblClassScores[Loại],'Tính toán'!AE$5)*'Thiết đặt'!G9,\"\")","v":""},{"$f":"IFERROR(AVERAGEIFS(tblClassScores[Điểm],tblClassScores[Lớp],'Tính toán'!$C6,tblClassScores[Loại],'Tính toán'!AF$5)*'Thiết đặt'!H9,\"\")","v":""},{"$f":"IFERROR(AVERAGEIFS(tblClassScores[Điểm],tblClassScores[Lớp],'Tính toán'!$C6,tblClassScores[Loại],'Tính toán'!AG$5)*'Thiết đặt'!I9,\"\")","v":""},{"$f":"IFERROR(AVERAGEIFS(tblClassScores[Điểm],tblClassScores[Lớp],'Tính toán'!$C6,tblClassScores[Loại],'Tính toán'!AH$5)*'Thiết đặt'!J9,\"\")","v":""},{"$f":"IFERROR(AVERAGEIFS(tblClassScores[Điểm],tblClassScores[Lớp],'Tính toán'!$C6,tblClassScores[Loại],'Tính toán'!AI$5)*'Thiết đặt'!K9,\"\")","v":""},{"$f":"SUM(AC6:AI6)","v":0.08333333333333334},{"$f":"SUMIFS('Thiết đặt'!E9:K9,'Tính toán'!AC6:AI6,\">0\")","v":0.1},{"$f":"IFERROR(AJ6/AK6,\"\")","v":{"v":0.8333333333333334,"d":"83%"}},{"$f":"IFERROR(HLOOKUP(AL6,lstGPAMapping,3),\"\")","v":3},{"$f":"IFERROR(HLOOKUP(AL6,lstGPAMapping,2),\"\")","v":"B"}]
[null,null,{"$f":"IF('Thiết đặt'!C10=\"\",\"\",'Thiết đặt'!C10)","v":"Vật lý Lý thuyết"},{"v":0.95,"d":"95%"},"","","","","","","","","","","","","","","","","","","","","","","","",{"$f":"IFERROR(AVERAGEIFS(tblClassScores[Điểm],tblClassScores[Lớp],'Tính toán'!$C7,tblClassScores[Loại],'Tính toán'!AC$5)*'Thiết đặt'!E10,\"\")","v":0.1425},{"$f":"IFERROR(AVERAGEIFS(tblClassScores[Điểm],tblClassScores[Lớp],'Tính toán'!$C7,tblClassScores[Loại],'Tính toán'!AD$5)*'Thiết đặt'!F10,\"\")","v":""},{"$f":"IFERROR(AVERAGEIFS(tblClassScores[Điểm],tblClassScores[Lớp],'Tính toán'!$C7,tblClassScores[Loại],'Tính toán'!AE$5)*'Thiết đặt'!G10,\"\")","v":""},{"$f":"IFERROR(AVERAGEIFS(tblClassScores[Điểm],tblClassScores[Lớp],'Tính toán'!$C7,tblClassScores[Loại],'Tính toán'!AF$5)*'Thiết đặt'!H10,\"\")","v":""},{"$f":"IFERROR(AVERAGEIFS(tblClassScores[Điểm],tblClassScores[Lớp],'Tính toán'!$C7,tblClassScores[Loại],'Tính toán'!AG$5)*'Thiết đặt'!I10,\"\")","v":""},{"$f":"IFERROR(AVERAGEIFS(tblClassScores[Điểm],tblClassScores[Lớp],'Tính toán'!$C7,tblClassScores[Loại],'Tính toán'!AH$5)*'Thiết đặt'!J10,\"\")","v":""},{"$f":"IFERROR(AVERAGEIFS(tblClassScores[Điểm],tblClassScores[Lớp],'Tính toán'!$C7,tblClassScores[Loại],'Tính toán'!AI$5)*'Thiết đặt'!K10,\"\")","v":""},{"$f":"SUM(AC7:AI7)","v":0.1425},{"$f":"SUMIFS('Thiết đặt'!E10:K10,'Tính toán'!AC7:AI7,\">0\")","v":0.15},{"$f":"IFERROR(AJ7/AK7,\"\")","v":{"v":0.95,"d":"95%"}},4,"A"]
[null,null,{"$f":"IF('Thiết đặt'!C11=\"\",\"\",'Thiết đặt'!C11)","v":"Toán học 1"},{"v":0.8,"d":"80%"},{"v":0.8,"d":"80%"},"","","","","","","","","","","","","","","","","","","","","","","",{"$f":"IFERROR(AVERAGEIFS(tblClassScores[Điểm],tblClassScores[Lớp],'Tính toán'!$C8,tblClassScores[Loại],'Tính toán'!AC$5)*'Thiết đặt'!E11,\"\")","v":0.08000000000000002},{"$f":"IFERROR(AVERAGEIFS(tblClassScores[Điểm],tblClassScores[Lớp],'Tính toán'!$C8,tblClassScores[Loại],'Tính toán'!AD$5)*'Thiết đặt'!F11,\"\")","v":0.12},{"$f":"IFERROR(AVERAGEIFS(tblClassScores[Điểm],tblClassScores[Lớp],'Tính toán'!$C8,tblClassScores[Loại],'Tính toán'!AE$5)*'Thiết đặt'!G11,\"\")","v":""},{"$f":"IFERROR(AVERAGEIFS(tblClassScores[Điểm],tblClassScores[Lớp],'Tính toán'!$C8,tblClassScores[Loại],'Tính toán'!AF$5)*'Thiết đặt'!H11,\"\")","v":""},{"$f":"IFERROR(AVERAGEIFS(tblClassScores[Điểm],tblClassScores[Lớp],'Tính toán'!$C8,tblClassScores[Loại],'Tính toán'!AG$5)*'Thiết đặt'!I11,\"\")","v":""},{"$f":"IFERROR(AVERAGEIFS(tblClassScores[Điểm],tblClassScores[Lớp],'Tính toán'!$C8,tblClassScores[Loại],'Tính toán'!AH$5)*'Thiết đặt'!J11,\"\")","v":""},{"$f":"IFERROR(AVERAGEIFS(tblClassScores[Điểm],tblClassScores[Lớp],'Tính toán'!$C8,tblClassScores[Loại],'Tính toán'!AI$5)*'Thiết đặt'!K11,\"\")","v":""},0.2,{"$f":"SUMIFS('Thiết đặt'!E11:K11,'Tính toán'!AC8:AI8,\">0\")","v":0.25},{"v":0.8,"d":"80%"},2.67,"B-"]
[null,null,{"$f":"IF('Thiết đặt'!C12=\"\",\"\",'Thiết đặt'!C12)","v":"Toán học 2"},{"v":0.85,"d":"85%"},{"v":0.95,"d":"95%"},"","","","","","","","","","","","","","","","","","","","","","","",{"$f":"IFERROR(AVERAGEIFS(tblClassScores[Điểm],tblClassScores[Lớp],'Tính toán'!$C9,tblClassScores[Loại],'Tính toán'!AC$5)*'Thiết đặt'!E12,\"\")","v":0.1275},{"$f":"IFERROR(AVERAGEIFS(tblClassScores[Điểm],tblClassScores[Lớp],'Tính toán'!$C9,tblClassScores[Loại],'Tính toán'!AD$5)*'Thiết đặt'!F12,\"\")","v":""},{"$f":"IFERROR(AVERAGEIFS(tblClassScores[Điểm],tblClassScores[Lớp],'Tính toán'!$C9,tblClassScores[Loại],'Tính toán'!AE$5)*'Thiết đặt'!G12,\"\")","v":0.095},{"$f":"IFERROR(AVERAGEIFS(tblClassScores[Điểm],tblClassScores[Lớp],'Tính toán'!$C9,tblClassScores[Loại],'Tính toán'!AF$5)*'Thiết đặt'!H12,\"\")","v":""},{"$f":"IFERROR(AVERAGEIFS(tblClassScores[Điểm],tblClassScores[Lớp],'Tính toán'!$C9,tblClassScores[Loại],'Tính toán'!AG$5)*'Thiết đặt'!I12,\"\")","v":""},{"$f":"IFERROR(AVERAGEIFS(tblClassScores[Điểm],tblClassScores[Lớp],'Tính toán'!$C9,tblClassScores[Loại],'Tính toán'!AH$5)*'Thiết đặt'!J12,\"\")","v":""},{"$f":"IFERROR(AVERAGEIFS(tblClassScores[Điểm],tblClassScores[Lớp],'Tính toán'!$C9,tblClassScores[Loại],'Tính toán'!AI$5)*'Thiết đặt'!K12,\"\")","v":""},0.2225,{"$f":"SUMIFS('Thiết đặt'!E12:K12,'Tính toán'!AC9:AI9,\">0\")","v":0.25},{"v":0.89,"d":"89%"},3.33,"B+"]
[null,null,{"$f":"IF('Thiết đặt'!C13=\"\",\"\",'Thiết đặt'!C13)","v":"Lập trình Nâng cao trong Java"},{"v":0.75,"d":"75%"},"","","","","","","","","","","","","","","","","","","","","","","","",{"$f":"IFERROR(AVERAGEIFS(tblClassScores[Điểm],tblClassScores[Lớp],'Tính toán'!$C10,tblClassScores[Loại],'Tính toán'!AC$5)*'Thiết đặt'!E13,\"\")","v":""},{"$f":"IFERROR(AVERAGEIFS(tblClassScores[Điểm],tblClassScores[Lớp],'Tính toán'!$C10,tblClassScores[Loại],'Tính toán'!AD$5)*'Thiết đặt'!F13,\"\")","v":""},{"$f":"IFERROR(AVERAGEIFS(tblClassScores[Điểm],tblClassScores[Lớp],'Tính toán'!$C10,tblClassScores[Loại],'Tính toán'!AE$5)*'Thiết đặt'!G13,\"\")","v":""},{"$f":"IFERROR(AVERAGEIFS(tblClassScores[Điểm],tblClassScores[Lớp],'Tính toán'!$C10,tblClassScores[Loại],'Tính toán'!AF$5)*'Thiết đặt'!H13,\"\")","v":""},{"$f":"IFERROR(AVERAGEIFS(tblClassScores[Điểm],tblClassScores[Lớp],'Tính toán'!$C10,tblClassScores[Loại],'Tính toán'!AG$5)*'Thiết đặt'!I13,\"\")","v":0.15000000000000002},{"$f":"IFERROR(AVERAGEIFS(tblClassScores[Điểm],tblClassScores[Lớp],'Tính toán'!$C10,tblClassScores[Loại],'Tính toán'!AH$5)*'Thiết đặt'!J13,\"\")","v":""},{"$f":"IFERROR(AVERAGEIFS(tblClassScores[Điểm],tblClassScores[Lớp],'Tính toán'!$C10,tblClassScores[Loại],'Tính toán'!AI$5)*'Thiết đặt'!K13,\"\")","v":""},0.15000000000000002,{"$f":"SUMIFS('Thiết đặt'!E13:K13,'Tính toán'!AC10:AI10,\">0\")","v":0.2},{"v":0.7500000000000001,"d":"75%"},2,"C"]
[null,null,{"$f":"IF('Thiết đặt'!C14=\"\",\"\",'Thiết đặt'!C14)","v":"Tiếng Tây Ban Nha"},{"v":0.5,"d":"50%"},"","","","","","","","","","","","","","","","","","","","","","","","",{"$f":"IFERROR(AVERAGEIFS(tblClassScores[Điểm],tblClassScores[Lớp],'Tính toán'!$C11,tblClassScores[Loại],'Tính toán'!AC$5)*'Thiết đặt'!E14,\"\")","v":0.05},{"$f":"IFERROR(AVERAGEIFS(tblClassScores[Điểm],tblClassScores[Lớp],'Tính toán'!$C11,tblClassScores[Loại],'Tính toán'!AD$5)*'Thiết đặt'!F14,\"\")","v":""},{"$f":"IFERROR(AVERAGEIFS(tblClassScores[Điểm],tblClassScores[Lớp],'Tính toán'!$C11,tblClassScores[Loại],'Tính toán'!AE$5)*'Thiết đặt'!G14,\"\")","v":""},{"$f":"IFERROR(AVERAGEIFS(tblClassScores[Điểm],tblClassScores[Lớp],'Tính toán'!$C11,tblClassScores[Loại],'Tính toán'!AF$5)*'Thiết đặt'!H14,\"\")","v":""},{"$f":"IFERROR(AVERAGEIFS(tblClassScores[Điểm],tblClassScores[Lớp],'Tính toán'!$C11,tblClassScores[Loại],'Tính toán'!AG$5)*'Thiết đặt'!I14,\"\")","v":""},{"$f":"IFERROR(AVERAGEIFS(tblClassScores[Điểm],tblClassScores[Lớp],'Tính toán'!$C11,tblClassScores[Loại],'Tính toán'!AH$5)*'Thiết đặt'!J14,\"\")","v":""},{"$f":"IFERROR(AVERAGEIFS(tblClassScores[Điểm],tblClassScores[Lớp],'Tính toán'!$C11,tblClassScores[Loại],'Tính toán'!AI$5)*'Thiết đặt'!K14,\"\")","v":""},0.05,{"$f":"SUMIFS('Thiết đặt'!E14:K14,'Tính toán'!AC11:AI11,\">0\")","v":0.1},{"v":0.5,"d":"50%"},0,"F"]
[null,null,{"$f":"IF('Thiết đặt'!C15=\"\",\"\",'Thiết đặt'!C15)","v":"Bài luận"},{"v":0.95,"d":"95%"},"","","","","","","","","","","","","","","","","","","","","","","","",{"$f":"IFERROR(AVERAGEIFS(tblClassScores[Điểm],tblClassScores[Lớp],'Tính toán'!$C12,tblClassScores[Loại],'Tính toán'!AC$5)*'Thiết đặt'!E15,\"\")","v":""},{"$f":"IFERROR(AVERAGEIFS(tblClassScores[Điểm],tblClassScores[Lớp],'Tính toán'!$C12,tblClassScores[Loại],'Tính toán'!AD$5)*'Thiết đặt'!F15,\"\")","v":0.1425},{"$f":"IFERROR(AVERAGEIFS(tblClassScores[Điểm],tblClassScores[Lớp],'Tính toán'!$C12,tblClassScores[Loại],'Tính toán'!AE$5)*'Thiết đặt'!G15,\"\")","v":""},{"$f":"IFERROR(AVERAGEIFS(tblClassScores[Điểm],tblClassScores[Lớp],'Tính toán'!$C12,tblClassScores[Loại],'Tính toán'!AF$5)*'Thiết đặt'!H15,\"\")","v":""},{"$f":"IFERROR(AVERAGEIFS(tblClassScores[Điểm],tblClassScores[Lớp],'Tính toán'!$C12,tblClassScores[Loại],'Tính toán'!AG$5)*'Thiết đặt'!I15,\"\")","v":""},{"$f":"IFERROR(AVERAGEIFS(tblClassScores[Điểm],tblClassScores[Lớp],'Tính toán'!$C12,tblClassScores[Loại],'Tính toán'!AH$5)*'Thiết đặt'!J15,\"\")","v":""},{"$f":"IFERROR(AVERAGEIFS(tblClassScores[Điểm],tblClassScores[Lớp],'Tính toán'!$C12,tblClassScores[Loại],'Tính toán'!AI$5)*'Thiết đặt'!K15,\"\")","v":""},0.1425,{"$f":"SUMIFS('Thiết đặt'!E15:K15,'Tính toán'!AC12:AI12,\">0\")","v":0.15},{"v":0.95,"d":"95%"},4,"A"]
[null,null,{"$f":"IF('Thiết đặt'!C16=\"\",\"\",'Thiết đặt'!C16)","v":""},"","","","","","","","","","","","","","","","","","","","","","","","","",{"$f":"IFERROR(AVERAGEIFS(tblClassScores[Điểm],tblClassScores[Lớp],'Tính toán'!$C13,tblClassScores[Loại],'Tính toán'!AC$5)*'Thiết đặt'!#REF!,\"\")","v":""},{"$f":"IFERROR(AVERAGEIFS(tblClassScores[Điểm],tblClassScores[Lớp],'Tính toán'!$C13,tblClassScores[Loại],'Tính toán'!AD$5)*'Thiết đặt'!#REF!,\"\")","v":""},{"$f":"IFERROR(AVERAGEIFS(tblClassScores[Điểm],tblClassScores[Lớp],'Tính toán'!$C13,tblClassScores[Loại],'Tính toán'!AE$5)*'Thiết đặt'!#REF!,\"\")","v":""},{"$f":"IFERROR(AVERAGEIFS(tblClassScores[Điểm],tblClassScores[Lớp],'Tính toán'!$C13,tblClassScores[Loại],'Tính toán'!AF$5)*'Thiết đặt'!#REF!,\"\")","v":""},{"$f":"IFERROR(AVERAGEIFS(tblClassScores[Điểm],tblClassScores[Lớp],'Tính toán'!$C13,tblClassScores[Loại],'Tính toán'!AG$5)*'Thiết đặt'!#REF!,\"\")","v":""},{"$f":"IFERROR(AVERAGEIFS(tblClassScores[Điểm],tblClassScores[Lớp],'Tính toán'!$C13,tblClassScores[Loại],'Tính toán'!AH$5)*'Thiết đặt'!#REF!,\"\")","v":""},{"$f":"IFERROR(AVERAGEIFS(tblClassScores[Điểm],tblClassScores[Lớp],'Tính toán'!$C13,tblClassScores[Loại],'Tính toán'!AI$5)*'Thiết đặt'!#REF!,\"\")","v":""},0,{"$f":"SUMIFS('Thiết đặt'!E16:K16,'Tính toán'!AC13:AI13,\">0\")","v":0},"","",""]
[null,null,{"$f":"IF('Thiết đặt'!C17=\"\",\"\",'Thiết đặt'!C17)","v":""},"","","","","","","","","","","","","","","","","","","","","","","","","",{"$f":"IFERROR(AVERAGEIFS(tblClassScores[Điểm],tblClassScores[Lớp],'Tính toán'!$C14,tblClassScores[Loại],'Tính toán'!AC$5)*'Thiết đặt'!#REF!,\"\")","v":""},{"$f":"IFERROR(AVERAGEIFS(tblClassScores[Điểm],tblClassScores[Lớp],'Tính toán'!$C14,tblClassScores[Loại],'Tính toán'!AD$5)*'Thiết đặt'!#REF!,\"\")","v":""},{"$f":"IFERROR(AVERAGEIFS(tblClassScores[Điểm],tblClassScores[Lớp],'Tính toán'!$C14,tblClassScores[Loại],'Tính toán'!AE$5)*'Thiết đặt'!#REF!,\"\")","v":""},{"$f":"IFERROR(AVERAGEIFS(tblClassScores[Điểm],tblClassScores[Lớp],'Tính toán'!$C14,tblClassScores[Loại],'Tính toán'!AF$5)*'Thiết đặt'!#REF!,\"\")","v":""},{"$f":"IFERROR(AVERAGEIFS(tblClassScores[Điểm],tblClassScores[Lớp],'Tính toán'!$C14,tblClassScores[Loại],'Tính toán'!AG$5)*'Thiết đặt'!#REF!,\"\")","v":""},{"$f":"IFERROR(AVERAGEIFS(tblClassScores[Điểm],tblClassScores[Lớp],'Tính toán'!$C14,tblClassScores[Loại],'Tính toán'!AH$5)*'Thiết đặt'!#REF!,\"\")","v":""},{"$f":"IFERROR(AVERAGEIFS(tblClassScores[Điểm],tblClassScores[Lớp],'Tính toán'!$C14,tblClassScores[Loại],'Tính toán'!AI$5)*'Thiết đặt'!#REF!,\"\")","v":""},0,{"$f":"SUMIFS('Thiết đặt'!E17:K17,'Tính toán'!AC14:AI14,\">0\")","v":0},"","",""]
[null,null,{"$f":"IF('Thiết đặt'!C18=\"\",\"\",'Thiết đặt'!C18)","v":""},"","","","","","","","","","","","","","","","","","","","","","","","","",{"$f":"IFERROR(AVERAGEIFS(tblClassScores[Điểm],tblClassScores[Lớp],'Tính toán'!$C15,tblClassScores[Loại],'Tính toán'!AC$5)*'Thiết đặt'!#REF!,\"\")","v":""},{"$f":"IFERROR(AVERAGEIFS(tblClassScores[Điểm],tblClassScores[Lớp],'Tính toán'!$C15,tblClassScores[Loại],'Tính toán'!AD$5)*'Thiết đặt'!#REF!,\"\")","v":""},{"$f":"IFERROR(AVERAGEIFS(tblClassScores[Điểm],tblClassScores[Lớp],'Tính toán'!$C15,tblClassScores[Loại],'Tính toán'!AE$5)*'Thiết đặt'!#REF!,\"\")","v":""},{"$f":"IFERROR(AVERAGEIFS(tblClassScores[Điểm],tblClassScores[Lớp],'Tính toán'!$C15,tblClassScores[Loại],'Tính toán'!AF$5)*'Thiết đặt'!#REF!,\"\")","v":""},{"$f":"IFERROR(AVERAGEIFS(tblClassScores[Điểm],tblClassScores[Lớp],'Tính toán'!$C15,tblClassScores[Loại],'Tính toán'!AG$5)*'Thiết đặt'!#REF!,\"\")","v":""},{"$f":"IFERROR(AVERAGEIFS(tblClassScores[Điểm],tblClassScores[Lớp],'Tính toán'!$C15,tblClassScores[Loại],'Tính toán'!AH$5)*'Thiết đặt'!#REF!,\"\")","v":""},{"$f":"IFERROR(AVERAGEIFS(tblClassScores[Điểm],tblClassScores[Lớp],'Tính toán'!$C15,tblClassScores[Loại],'Tính toán'!AI$5)*'Thiết đặt'!#REF!,\"\")","v":""},0,{"$f":"SUMIFS('Thiết đặt'!E18:K18,'Tính toán'!AC15:AI15,\">0\")","v":0},"","",""]
[null,null,{"$f":"IF('Thiết đặt'!C19=\"\",\"\",'Thiết đặt'!C19)","v":""},"","","","","","","","","","","","","","","","","","","","","","","","","",{"$f":"IFERROR(AVERAGEIFS(tblClassScores[Điểm],tblClassScores[Lớp],'Tính toán'!$C16,tblClassScores[Loại],'Tính toán'!AC$5)*'Thiết đặt'!#REF!,\"\")","v":""},{"$f":"IFERROR(AVERAGEIFS(tblClassScores[Điểm],tblClassScores[Lớp],'Tính toán'!$C16,tblClassScores[Loại],'Tính toán'!AD$5)*'Thiết đặt'!#REF!,\"\")","v":""},{"$f":"IFERROR(AVERAGEIFS(tblClassScores[Điểm],tblClassScores[Lớp],'Tính toán'!$C16,tblClassScores[Loại],'Tính toán'!AE$5)*'Thiết đặt'!#REF!,\"\")","v":""},{"$f":"IFERROR(AVERAGEIFS(tblClassScores[Điểm],tblClassScores[Lớp],'Tính toán'!$C16,tblClassScores[Loại],'Tính toán'!AF$5)*'Thiết đặt'!#REF!,\"\")","v":""},{"$f":"IFERROR(AVERAGEIFS(tblClassScores[Điểm],tblClassScores[Lớp],'Tính toán'!$C16,tblClassScores[Loại],'Tính toán'!AG$5)*'Thiết đặt'!#REF!,\"\")","v":""},{"$f":"IFERROR(AVERAGEIFS(tblClassScores[Điểm],tblClassScores[Lớp],'Tính toán'!$C16,tblClassScores[Loại],'Tính toán'!AH$5)*'Thiết đặt'!#REF!,\"\")","v":""},{"$f":"IFERROR(AVERAGEIFS(tblClassScores[Điểm],tblClassScores[Lớp],'Tính toán'!$C16,tblClassScores[Loại],'Tính toán'!AI$5)*'Thiết đặt'!#REF!,\"\")","v":""},0,{"$f":"SUMIFS('Thiết đặt'!E19:K19,'Tính toán'!AC16:AI16,\">0\")","v":0},"","",""]
[null,null,{"$f":"IF('Thiết đặt'!C20=\"\",\"\",'Thiết đặt'!C20)","v":""},"","","","","","","","","","","","","","","","","","","","","","","","","",{"$f":"IFERROR(AVERAGEIFS(tblClassScores[Điểm],tblClassScores[Lớp],'Tính toán'!$C17,tblClassScores[Loại],'Tính toán'!AC$5)*'Thiết đặt'!#REF!,\"\")","v":""},{"$f":"IFERROR(AVERAGEIFS(tblClassScores[Điểm],tblClassScores[Lớp],'Tính toán'!$C17,tblClassScores[Loại],'Tính toán'!AD$5)*'Thiết đặt'!#REF!,\"\")","v":""},{"$f":"IFERROR(AVERAGEIFS(tblClassScores[Điểm],tblClassScores[Lớp],'Tính toán'!$C17,tblClassScores[Loại],'Tính toán'!AE$5)*'Thiết đặt'!#REF!,\"\")","v":""},{"$f":"IFERROR(AVERAGEIFS(tblClassScores[Điểm],tblClassScores[Lớp],'Tính toán'!$C17,tblClassScores[Loại],'Tính toán'!AF$5)*'Thiết đặt'!#REF!,\"\")","v":""},{"$f":"IFERROR(AVERAGEIFS(tblClassScores[Điểm],tblClassScores[Lớp],'Tính toán'!$C17,tblClassScores[Loại],'Tính toán'!AG$5)*'Thiết đặt'!#REF!,\"\")","v":""},{"$f":"IFERROR(AVERAGEIFS(tblClassScores[Điểm],tblClassScores[Lớp],'Tính toán'!$C17,tblClassScores[Loại],'Tính toán'!AH$5)*'Thiết đặt'!#REF!,\"\")","v":""},{"$f":"IFERROR(AVERAGEIFS(tblClassScores[Điểm],tblClassScores[Lớp],'Tính toán'!$C17,tblClassScores[Loại],'Tính toán'!AI$5)*'Thiết đặt'!#REF!,\"\")","v":""},0,{"$f":"SUMIFS('Thiết đặt'!E20:K20,'Tính toán'!AC17:AI17,\">0\")","v":0},"","",""]
[null,null,{"$f":"IF('Thiết đặt'!C21=\"\",\"\",'Thiết đặt'!C21)","v":""},"","","","","","","","","","","","","","","","","","","","","","","","","",{"$f":"IFERROR(AVERAGEIFS(tblClassScores[Điểm],tblClassScores[Lớp],'Tính toán'!$C18,tblClassScores[Loại],'Tính toán'!AC$5)*'Thiết đặt'!#REF!,\"\")","v":""},{"$f":"IFERROR(AVERAGEIFS(tblClassScores[Điểm],tblClassScores[Lớp],'Tính toán'!$C18,tblClassScores[Loại],'Tính toán'!AD$5)*'Thiết đặt'!#REF!,\"\")","v":""},{"$f":"IFERROR(AVERAGEIFS(tblClassScores[Điểm],tblClassScores[Lớp],'Tính toán'!$C18,tblClassScores[Loại],'Tính toán'!AE$5)*'Thiết đặt'!#REF!,\"\")","v":""},{"$f":"IFERROR(AVERAGEIFS(tblClassScores[Điểm],tblClassScores[Lớp],'Tính toán'!$C18,tblClassScores[Loại],'Tính toán'!AF$5)*'Thiết đặt'!#REF!,\"\")","v":""},{"$f":"IFERROR(AVERAGEIFS(tblClassScores[Điểm],tblClassScores[Lớp],'Tính toán'!$C18,tblClassScores[Loại],'Tính toán'!AG$5)*'Thiết đặt'!#REF!,\"\")","v":""},{"$f":"IFERROR(AVERAGEIFS(tblClassScores[Điểm],tblClassScores[Lớp],'Tính toán'!$C18,tblClassScores[Loại],'Tính toán'!AH$5)*'Thiết đặt'!#REF!,\"\")","v":""},{"$f":"IFERROR(AVERAGEIFS(tblClassScores[Điểm],tblClassScores[Lớp],'Tính toán'!$C18,tblClassScores[Loại],'Tính toán'!AI$5)*'Thiết đặt'!#REF!,\"\")","v":""},0,{"$f":"SUMIFS('Thiết đặt'!E21:K21,'Tính toán'!AC18:AI18,\">0\")","v":0},"","",""]
[null,null,{"$f":"IF('Thiết đặt'!C22=\"\",\"\",'Thiết đặt'!C22)","v":""},"","","","","","","","","","","","","","","","","","","","","","","","","",{"$f":"IFERROR(AVERAGEIFS(tblClassScores[Điểm],tblClassScores[Lớp],'Tính toán'!$C19,tblClassScores[Loại],'Tính toán'!AC$5)*'Thiết đặt'!#REF!,\"\")","v":""},{"$f":"IFERROR(AVERAGEIFS(tblClassScores[Điểm],tblClassScores[Lớp],'Tính toán'!$C19,tblClassScores[Loại],'Tính toán'!AD$5)*'Thiết đặt'!#REF!,\"\")","v":""},{"$f":"IFERROR(AVERAGEIFS(tblClassScores[Điểm],tblClassScores[Lớp],'Tính toán'!$C19,tblClassScores[Loại],'Tính toán'!AE$5)*'Thiết đặt'!#REF!,\"\")","v":""},{"$f":"IFERROR(AVERAGEIFS(tblClassScores[Điểm],tblClassScores[Lớp],'Tính toán'!$C19,tblClassScores[Loại],'Tính toán'!AF$5)*'Thiết đặt'!#REF!,\"\")","v":""},{"$f":"IFERROR(AVERAGEIFS(tblClassScores[Điểm],tblClassScores[Lớp],'Tính toán'!$C19,tblClassScores[Loại],'Tính toán'!AG$5)*'Thiết đặt'!#REF!,\"\")","v":""},{"$f":"IFERROR(AVERAGEIFS(tblClassScores[Điểm],tblClassScores[Lớp],'Tính toán'!$C19,tblClassScores[Loại],'Tính toán'!AH$5)*'Thiết đặt'!#REF!,\"\")","v":""},{"$f":"IFERROR(AVERAGEIFS(tblClassScores[Điểm],tblClassScores[Lớp],'Tính toán'!$C19,tblClassScores[Loại],'Tính toán'!AI$5)*'Thiết đặt'!#REF!,\"\")","v":""},0,{"$f":"SUMIFS('Thiết đặt'!E22:K22,'Tính toán'!AC19:AI19,\">0\")","v":0},"","",""]
[null,null,{"$f":"IF('Thiết đặt'!C23=\"\",\"\",'Thiết đặt'!C23)","v":""},"","","","","","","","","","","","","","","","","","","","","","","","","",{"$f":"IFERROR(AVERAGEIFS(tblClassScores[Điểm],tblClassScores[Lớp],'Tính toán'!$C20,tblClassScores[Loại],'Tính toán'!AC$5)*'Thiết đặt'!#REF!,\"\")","v":""},{"$f":"IFERROR(AVERAGEIFS(tblClassScores[Điểm],tblClassScores[Lớp],'Tính toán'!$C20,tblClassScores[Loại],'Tính toán'!AD$5)*'Thiết đặt'!#REF!,\"\")","v":""},{"$f":"IFERROR(AVERAGEIFS(tblClassScores[Điểm],tblClassScores[Lớp],'Tính toán'!$C20,tblClassScores[Loại],'Tính toán'!AE$5)*'Thiết đặt'!#REF!,\"\")","v":""},{"$f":"IFERROR(AVERAGEIFS(tblClassScores[Điểm],tblClassScores[Lớp],'Tính toán'!$C20,tblClassScores[Loại],'Tính toán'!AF$5)*'Thiết đặt'!#REF!,\"\")","v":""},{"$f":"IFERROR(AVERAGEIFS(tblClassScores[Điểm],tblClassScores[Lớp],'Tính toán'!$C20,tblClassScores[Loại],'Tính toán'!AG$5)*'Thiết đặt'!#REF!,\"\")","v":""},{"$f":"IFERROR(AVERAGEIFS(tblClassScores[Điểm],tblClassScores[Lớp],'Tính toán'!$C20,tblClassScores[Loại],'Tính toán'!AH$5)*'Thiết đặt'!#REF!,\"\")","v":""},{"$f":"IFERROR(AVERAGEIFS(tblClassScores[Điểm],tblClassScores[Lớp],'Tính toán'!$C20,tblClassScores[Loại],'Tính toán'!AI$5)*'Thiết đặt'!#REF!,\"\")","v":""},0,{"$f":"SUMIFS('Thiết đặt'!E23:K23,'Tính toán'!AC20:AI20,\">0\")","v":0},"","",""]
[null,null,{"$f":"IF('Thiết đặt'!C24=\"\",\"\",'Thiết đặt'!C24)","v":""},"","","","","","","","","","","","","","","","","","","","","","","","","",{"$f":"IFERROR(AVERAGEIFS(tblClassScores[Điểm],tblClassScores[Lớp],'Tính toán'!$C21,tblClassScores[Loại],'Tính toán'!AC$5)*'Thiết đặt'!#REF!,\"\")","v":""},{"$f":"IFERROR(AVERAGEIFS(tblClassScores[Điểm],tblClassScores[Lớp],'Tính toán'!$C21,tblClassScores[Loại],'Tính toán'!AD$5)*'Thiết đặt'!#REF!,\"\")","v":""},{"$f":"IFERROR(AVERAGEIFS(tblClassScores[Điểm],tblClassScores[Lớp],'Tính toán'!$C21,tblClassScores[Loại],'Tính toán'!AE$5)*'Thiết đặt'!#REF!,\"\")","v":""},{"$f":"IFERROR(AVERAGEIFS(tblClassScores[Điểm],tblClassScores[Lớp],'Tính toán'!$C21,tblClassScores[Loại],'Tính toán'!AF$5)*'Thiết đặt'!#REF!,\"\")","v":""},{"$f":"IFERROR(AVERAGEIFS(tblClassScores[Điểm],tblClassScores[Lớp],'Tính toán'!$C21,tblClassScores[Loại],'Tính toán'!AG$5)*'Thiết đặt'!#REF!,\"\")","v":""},{"$f":"IFERROR(AVERAGEIFS(tblClassScores[Điểm],tblClassScores[Lớp],'Tính toán'!$C21,tblClassScores[Loại],'Tính toán'!AH$5)*'Thiết đặt'!#REF!,\"\")","v":""},{"$f":"IFERROR(AVERAGEIFS(tblClassScores[Điểm],tblClassScores[Lớp],'Tính toán'!$C21,tblClassScores[Loại],'Tính toán'!AI$5)*'Thiết đặt'!#REF!,\"\")","v":""},0,{"$f":"SUMIFS('Thiết đặt'!E24:K24,'Tính toán'!AC21:AI21,\">0\")","v":0},"","",""]
[null,null,{"$f":"IF('Thiết đặt'!C25=\"\",\"\",'Thiết đặt'!C25)","v":""},"","","","","","","","","","","","","","","","","","","","","","","","","",{"$f":"IFERROR(AVERAGEIFS(tblClassScores[Điểm],tblClassScores[Lớp],'Tính toán'!$C22,tblClassScores[Loại],'Tính toán'!AC$5)*'Thiết đặt'!#REF!,\"\")","v":""},{"$f":"IFERROR(AVERAGEIFS(tblClassScores[Điểm],tblClassScores[Lớp],'Tính toán'!$C22,tblClassScores[Loại],'Tính toán'!AD$5)*'Thiết đặt'!#REF!,\"\")","v":""},{"$f":"IFERROR(AVERAGEIFS(tblClassScores[Điểm],tblClassScores[Lớp],'Tính toán'!$C22,tblClassScores[Loại],'Tính toán'!AE$5)*'Thiết đặt'!#REF!,\"\")","v":""},{"$f":"IFERROR(AVERAGEIFS(tblClassScores[Điểm],tblClassScores[Lớp],'Tính toán'!$C22,tblClassScores[Loại],'Tính toán'!AF$5)*'Thiết đặt'!#REF!,\"\")","v":""},{"$f":"IFERROR(AVERAGEIFS(tblClassScores[Điểm],tblClassScores[Lớp],'Tính toán'!$C22,tblClassScores[Loại],'Tính toán'!AG$5)*'Thiết đặt'!#REF!,\"\")","v":""},{"$f":"IFERROR(AVERAGEIFS(tblClassScores[Điểm],tblClassScores[Lớp],'Tính toán'!$C22,tblClassScores[Loại],'Tính toán'!AH$5)*'Thiết đặt'!#REF!,\"\")","v":""},{"$f":"IFERROR(AVERAGEIFS(tblClassScores[Điểm],tblClassScores[Lớp],'Tính toán'!$C22,tblClassScores[Loại],'Tính toán'!AI$5)*'Thiết đặt'!#REF!,\"\")","v":""},0,{"$f":"SUMIFS('Thiết đặt'!E25:K25,'Tính toán'!AC22:AI22,\">0\")","v":0},"","",""]
[null,null,{"$f":"IF('Thiết đặt'!C26=\"\",\"\",'Thiết đặt'!C26)","v":""},"","","","","","","","","","","","","","","","","","","","","","","","","",{"$f":"IFERROR(AVERAGEIFS(tblClassScores[Điểm],tblClassScores[Lớp],'Tính toán'!$C23,tblClassScores[Loại],'Tính toán'!AC$5)*'Thiết đặt'!#REF!,\"\")","v":""},{"$f":"IFERROR(AVERAGEIFS(tblClassScores[Điểm],tblClassScores[Lớp],'Tính toán'!$C23,tblClassScores[Loại],'Tính toán'!AD$5)*'Thiết đặt'!#REF!,\"\")","v":""},{"$f":"IFERROR(AVERAGEIFS(tblClassScores[Điểm],tblClassScores[Lớp],'Tính toán'!$C23,tblClassScores[Loại],'Tính toán'!AE$5)*'Thiết đặt'!#REF!,\"\")","v":""},{"$f":"IFERROR(AVERAGEIFS(tblClassScores[Điểm],tblClassScores[Lớp],'Tính toán'!$C23,tblClassScores[Loại],'Tính toán'!AF$5)*'Thiết đặt'!#REF!,\"\")","v":""},{"$f":"IFERROR(AVERAGEIFS(tblClassScores[Điểm],tblClassScores[Lớp],'Tính toán'!$C23,tblClassScores[Loại],'Tính toán'!AG$5)*'Thiết đặt'!#REF!,\"\")","v":""},{"$f":"IFERROR(AVERAGEIFS(tblClassScores[Điểm],tblClassScores[Lớp],'Tính toán'!$C23,tblClassScores[Loại],'Tính toán'!AH$5)*'Thiết đặt'!#REF!,\"\")","v":""},{"$f":"IFERROR(AVERAGEIFS(tblClassScores[Điểm],tblClassScores[Lớp],'Tính toán'!$C23,tblClassScores[Loại],'Tính toán'!AI$5)*'Thiết đặt'!#REF!,\"\")","v":""},0,{"$f":"SUMIFS('Thiết đặt'!E26:K26,'Tính toán'!AC23:AI23,\">0\")","v":0},"","",""]
[null,null,{"$f":"IF('Thiết đặt'!C27=\"\",\"\",'Thiết đặt'!C27)","v":""},"","","","","","","","","","","","","","","","","","","","","","","","","",{"$f":"IFERROR(AVERAGEIFS(tblClassScores[Điểm],tblClassScores[Lớp],'Tính toán'!$C24,tblClassScores[Loại],'Tính toán'!AC$5)*'Thiết đặt'!#REF!,\"\")","v":""},{"$f":"IFERROR(AVERAGEIFS(tblClassScores[Điểm],tblClassScores[Lớp],'Tính toán'!$C24,tblClassScores[Loại],'Tính toán'!AD$5)*'Thiết đặt'!#REF!,\"\")","v":""},{"$f":"IFERROR(AVERAGEIFS(tblClassScores[Điểm],tblClassScores[Lớp],'Tính toán'!$C24,tblClassScores[Loại],'Tính toán'!AE$5)*'Thiết đặt'!#REF!,\"\")","v":""},{"$f":"IFERROR(AVERAGEIFS(tblClassScores[Điểm],tblClassScores[Lớp],'Tính toán'!$C24,tblClassScores[Loại],'Tính toán'!AF$5)*'Thiết đặt'!#REF!,\"\")","v":""},{"$f":"IFERROR(AVERAGEIFS(tblClassScores[Điểm],tblClassScores[Lớp],'Tính toán'!$C24,tblClassScores[Loại],'Tính toán'!AG$5)*'Thiết đặt'!#REF!,\"\")","v":""},{"$f":"IFERROR(AVERAGEIFS(tblClassScores[Điểm],tblClassScores[Lớp],'Tính toán'!$C24,tblClassScores[Loại],'Tính toán'!AH$5)*'Thiết đặt'!#REF!,\"\")","v":""},{"$f":"IFERROR(AVERAGEIFS(tblClassScores[Điểm],tblClassScores[Lớp],'Tính toán'!$C24,tblClassScores[Loại],'Tính toán'!AI$5)*'Thiết đặt'!#REF!,\"\")","v":""},0,{"$f":"SUMIFS('Thiết đặt'!E27:K27,'Tính toán'!AC24:AI24,\">0\")","v":0},"","",""]
[null,null,{"$f":"IF('Thiết đặt'!C28=\"\",\"\",'Thiết đặt'!C28)","v":""},"","","","","","","","","","","","","","","","","","","","","","","","","",{"$f":"IFERROR(AVERAGEIFS(tblClassScores[Điểm],tblClassScores[Lớp],'Tính toán'!$C25,tblClassScores[Loại],'Tính toán'!AC$5)*'Thiết đặt'!#REF!,\"\")","v":""},{"$f":"IFERROR(AVERAGEIFS(tblClassScores[Điểm],tblClassScores[Lớp],'Tính toán'!$C25,tblClassScores[Loại],'Tính toán'!AD$5)*'Thiết đặt'!#REF!,\"\")","v":""},{"$f":"IFERROR(AVERAGEIFS(tblClassScores[Điểm],tblClassScores[Lớp],'Tính toán'!$C25,tblClassScores[Loại],'Tính toán'!AE$5)*'Thiết đặt'!#REF!,\"\")","v":""},{"$f":"IFERROR(AVERAGEIFS(tblClassScores[Điểm],tblClassScores[Lớp],'Tính toán'!$C25,tblClassScores[Loại],'Tính toán'!AF$5)*'Thiết đặt'!#REF!,\"\")","v":""},{"$f":"IFERROR(AVERAGEIFS(tblClassScores[Điểm],tblClassScores[Lớp],'Tính toán'!$C25,tblClassScores[Loại],'Tính toán'!AG$5)*'Thiết đặt'!#REF!,\"\")","v":""},{"$f":"IFERROR(AVERAGEIFS(tblClassScores[Điểm],tblClassScores[Lớp],'Tính toán'!$C25,tblClassScores[Loại],'Tính toán'!AH$5)*'Thiết đặt'!#REF!,\"\")","v":""},{"$f":"IFERROR(AVERAGEIFS(tblClassScores[Điểm],tblClassScores[Lớp],'Tính toán'!$C25,tblClassScores[Loại],'Tính toán'!AI$5)*'Thiết đặt'!#REF!,\"\")","v":""},0,{"$f":"SUMIFS('Thiết đặt'!E28:K28,'Tính toán'!AC25:AI25,\">0\")","v":0},"","",""]
[null,null,{"$f":"IF('Thiết đặt'!C29=\"\",\"\",'Thiết đặt'!C29)","v":""},"","","","","","","","","","","","","","","","","","","","","","","","","",{"$f":"IFERROR(AVERAGEIFS(tblClassScores[Điểm],tblClassScores[Lớp],'Tính toán'!$C26,tblClassScores[Loại],'Tính toán'!AC$5)*'Thiết đặt'!#REF!,\"\")","v":""},{"$f":"IFERROR(AVERAGEIFS(tblClassScores[Điểm],tblClassScores[Lớp],'Tính toán'!$C26,tblClassScores[Loại],'Tính toán'!AD$5)*'Thiết đặt'!#REF!,\"\")","v":""},{"$f":"IFERROR(AVERAGEIFS(tblClassScores[Điểm],tblClassScores[Lớp],'Tính toán'!$C26,tblClassScores[Loại],'Tính toán'!AE$5)*'Thiết đặt'!#REF!,\"\")","v":""},{"$f":"IFERROR(AVERAGEIFS(tblClassScores[Điểm],tblClassScores[Lớp],'Tính toán'!$C26,tblClassScores[Loại],'Tính toán'!AF$5)*'Thiết đặt'!#REF!,\"\")","v":""},{"$f":"IFERROR(AVERAGEIFS(tblClassScores[Điểm],tblClassScores[Lớp],'Tính toán'!$C26,tblClassScores[Loại],'Tính toán'!AG$5)*'Thiết đặt'!#REF!,\"\")","v":""},{"$f":"IFERROR(AVERAGEIFS(tblClassScores[Điểm],tblClassScores[Lớp],'Tính toán'!$C26,tblClassScores[Loại],'Tính toán'!AH$5)*'Thiết đặt'!#REF!,\"\")","v":""},{"$f":"IFERROR(AVERAGEIFS(tblClassScores[Điểm],tblClassScores[Lớp],'Tính toán'!$C26,tblClassScores[Loại],'Tính toán'!AI$5)*'Thiết đặt'!#REF!,\"\")","v":""},0,{"$f":"SUMIFS('Thiết đặt'!E29:K29,'Tính toán'!AC26:AI26,\">0\")","v":0},"","",""]
[null,null,{"$f":"IF('Thiết đặt'!C30=\"\",\"\",'Thiết đặt'!C30)","v":""},"","","","","","","","","","","","","","","","","","","","","","","","","",{"$f":"IFERROR(AVERAGEIFS(tblClassScores[Điểm],tblClassScores[Lớp],'Tính toán'!$C27,tblClassScores[Loại],'Tính toán'!AC$5)*'Thiết đặt'!#REF!,\"\")","v":""},{"$f":"IFERROR(AVERAGEIFS(tblClassScores[Điểm],tblClassScores[Lớp],'Tính toán'!$C27,tblClassScores[Loại],'Tính toán'!AD$5)*'Thiết đặt'!#REF!,\"\")","v":""},{"$f":"IFERROR(AVERAGEIFS(tblClassScores[Điểm],tblClassScores[Lớp],'Tính toán'!$C27,tblClassScores[Loại],'Tính toán'!AE$5)*'Thiết đặt'!#REF!,\"\")","v":""},{"$f":"IFERROR(AVERAGEIFS(tblClassScores[Điểm],tblClassScores[Lớp],'Tính toán'!$C27,tblClassScores[Loại],'Tính toán'!AF$5)*'Thiết đặt'!#REF!,\"\")","v":""},{"$f":"IFERROR(AVERAGEIFS(tblClassScores[Điểm],tblClassScores[Lớp],'Tính toán'!$C27,tblClassScores[Loại],'Tính toán'!AG$5)*'Thiết đặt'!#REF!,\"\")","v":""},{"$f":"IFERROR(AVERAGEIFS(tblClassScores[Điểm],tblClassScores[Lớp],'Tính toán'!$C27,tblClassScores[Loại],'Tính toán'!AH$5)*'Thiết đặt'!#REF!,\"\")","v":""},{"$f":"IFERROR(AVERAGEIFS(tblClassScores[Điểm],tblClassScores[Lớp],'Tính toán'!$C27,tblClassScores[Loại],'Tính toán'!AI$5)*'Thiết đặt'!#REF!,\"\")","v":""},0,{"$f":"SUMIFS('Thiết đặt'!E30:K30,'Tính toán'!AC27:AI27,\">0\")","v":0},"","",""]
[null,null,{"$f":"IF('Thiết đặt'!C31=\"\",\"\",'Thiết đặt'!C31)","v":""},"","","","","","","","","","","","","","","","","","","","","","","","","",{"$f":"IFERROR(AVERAGEIFS(tblClassScores[Điểm],tblClassScores[Lớp],'Tính toán'!$C28,tblClassScores[Loại],'Tính toán'!AC$5)*'Thiết đặt'!#REF!,\"\")","v":""},{"$f":"IFERROR(AVERAGEIFS(tblClassScores[Điểm],tblClassScores[Lớp],'Tính toán'!$C28,tblClassScores[Loại],'Tính toán'!AD$5)*'Thiết đặt'!#REF!,\"\")","v":""},{"$f":"IFERROR(AVERAGEIFS(tblClassScores[Điểm],tblClassScores[Lớp],'Tính toán'!$C28,tblClassScores[Loại],'Tính toán'!AE$5)*'Thiết đặt'!#REF!,\"\")","v":""},{"$f":"IFERROR(AVERAGEIFS(tblClassScores[Điểm],tblClassScores[Lớp],'Tính toán'!$C28,tblClassScores[Loại],'Tính toán'!AF$5)*'Thiết đặt'!#REF!,\"\")","v":""},{"$f":"IFERROR(AVERAGEIFS(tblClassScores[Điểm],tblClassScores[Lớp],'Tính toán'!$C28,tblClassScores[Loại],'Tính toán'!AG$5)*'Thiết đặt'!#REF!,\"\")","v":""},{"$f":"IFERROR(AVERAGEIFS(tblClassScores[Điểm],tblClassScores[Lớp],'Tính toán'!$C28,tblClassScores[Loại],'Tính toán'!AH$5)*'Thiết đặt'!#REF!,\"\")","v":""},{"$f":"IFERROR(AVERAGEIFS(tblClassScores[Điểm],tblClassScores[Lớp],'Tính toán'!$C28,tblClassScores[Loại],'Tính toán'!AI$5)*'Thiết đặt'!#REF!,\"\")","v":""},0,{"$f":"SUMIFS('Thiết đặt'!E31:K31,'Tính toán'!AC28:AI28,\">0\")","v":0},"","",""]
[null,null,{"$f":"IF('Thiết đặt'!C32=\"\",\"\",'Thiết đặt'!C32)","v":""},"","","","","","","","","","","","","","","","","","","","","","","","","",{"$f":"IFERROR(AVERAGEIFS(tblClassScores[Điểm],tblClassScores[Lớp],'Tính toán'!$C29,tblClassScores[Loại],'Tính toán'!AC$5)*'Thiết đặt'!#REF!,\"\")","v":""},{"$f":"IFERROR(AVERAGEIFS(tblClassScores[Điểm],tblClassScores[Lớp],'Tính toán'!$C29,tblClassScores[Loại],'Tính toán'!AD$5)*'Thiết đặt'!#REF!,\"\")","v":""},{"$f":"IFERROR(AVERAGEIFS(tblClassScores[Điểm],tblClassScores[Lớp],'Tính toán'!$C29,tblClassScores[Loại],'Tính toán'!AE$5)*'Thiết đặt'!#REF!,\"\")","v":""},{"$f":"IFERROR(AVERAGEIFS(tblClassScores[Điểm],tblClassScores[Lớp],'Tính toán'!$C29,tblClassScores[Loại],'Tính toán'!AF$5)*'Thiết đặt'!#REF!,\"\")","v":""},{"$f":"IFERROR(AVERAGEIFS(tblClassScores[Điểm],tblClassScores[Lớp],'Tính toán'!$C29,tblClassScores[Loại],'Tính toán'!AG$5)*'Thiết đặt'!#REF!,\"\")","v":""},{"$f":"IFERROR(AVERAGEIFS(tblClassScores[Điểm],tblClassScores[Lớp],'Tính toán'!$C29,tblClassScores[Loại],'Tính toán'!AH$5)*'Thiết đặt'!#REF!,\"\")","v":""},{"$f":"IFERROR(AVERAGEIFS(tblClassScores[Điểm],tblClassScores[Lớp],'Tính toán'!$C29,tblClassScores[Loại],'Tính toán'!AI$5)*'Thiết đặt'!#REF!,\"\")","v":""},0,{"$f":"SUMIFS('Thiết đặt'!E32:K32,'Tính toán'!AC29:AI29,\">0\")","v":0},"","",""]
[null,null,{"$f":"IF('Thiết đặt'!C33=\"\",\"\",'Thiết đặt'!C33)","v":""},"","","","","","","","","","","","","","","","","","","","","","","","","",{"$f":"IFERROR(AVERAGEIFS(tblClassScores[Điểm],tblClassScores[Lớp],'Tính toán'!$C30,tblClassScores[Loại],'Tính toán'!AC$5)*'Thiết đặt'!#REF!,\"\")","v":""},{"$f":"IFERROR(AVERAGEIFS(tblClassScores[Điểm],tblClassScores[Lớp],'Tính toán'!$C30,tblClassScores[Loại],'Tính toán'!AD$5)*'Thiết đặt'!#REF!,\"\")","v":""},{"$f":"IFERROR(AVERAGEIFS(tblClassScores[Điểm],tblClassScores[Lớp],'Tính toán'!$C30,tblClassScores[Loại],'Tính toán'!AE$5)*'Thiết đặt'!#REF!,\"\")","v":""},{"$f":"IFERROR(AVERAGEIFS(tblClassScores[Điểm],tblClassScores[Lớp],'Tính toán'!$C30,tblClassScores[Loại],'Tính toán'!AF$5)*'Thiết đặt'!#REF!,\"\")","v":""},{"$f":"IFERROR(AVERAGEIFS(tblClassScores[Điểm],tblClassScores[Lớp],'Tính toán'!$C30,tblClassScores[Loại],'Tính toán'!AG$5)*'Thiết đặt'!#REF!,\"\")","v":""},{"$f":"IFERROR(AVERAGEIFS(tblClassScores[Điểm],tblClassScores[Lớp],'Tính toán'!$C30,tblClassScores[Loại],'Tính toán'!AH$5)*'Thiết đặt'!#REF!,\"\")","v":""},{"$f":"IFERROR(AVERAGEIFS(tblClassScores[Điểm],tblClassScores[Lớp],'Tính toán'!$C30,tblClassScores[Loại],'Tính toán'!AI$5)*'Thiết đặt'!#REF!,\"\")","v":""},0,{"$f":"SUMIFS('Thiết đặt'!E33:K33,'Tính toán'!AC30:AI30,\">0\")","v":0},"","",""]
[]
[]
[null,1,{"$f":"'Bảng Theo dõi Điểm số'!C4&COUNTIF('Bảng Theo dõi Điểm số'!$C$4:C4,'Bảng Theo dõi Điểm số'!C4)","v":"Tiếng Pháp Hiện đại1"}]
[null,2,{"$f":"'Bảng Theo dõi Điểm số'!C5&COUNTIF('Bảng Theo dõi Điểm số'!$C$4:C5,'Bảng Theo dõi Điểm số'!C5)","v":"Lập trình Nâng cao trong Java1"}]
[null,3,{"$f":"'Bảng Theo dõi Điểm số'!C6&COUNTIF('Bảng Theo dõi Điểm số'!$C$4:C6,'Bảng Theo dõi Điểm số'!C6)","v":"Tiếng Tây Ban Nha1"}]
[null,4,{"$f":"'Bảng Theo dõi Điểm số'!C7&COUNTIF('Bảng Theo dõi Điểm số'!$C$4:C7,'Bảng Theo dõi Điểm số'!C7)","v":"Vật lý Lý thuyết1"}]
[null,5,{"$f":"'Bảng Theo dõi Điểm số'!C8&COUNTIF('Bảng Theo dõi Điểm số'!$C$4:C8,'Bảng Theo dõi Điểm số'!C8)","v":"Tiếng Pháp Hiện đại2"}]
[null,6,{"$f":"'Bảng Theo dõi Điểm số'!C9&COUNTIF('Bảng Theo dõi Điểm số'!$C$4:C9,'Bảng Theo dõi Điểm số'!C9)","v":"Tiếng Pháp Hiện đại3"}]
[null,7,{"$f":"'Bảng Theo dõi Điểm số'!C10&COUNTIF('Bảng Theo dõi Điểm số'!$C$4:C10,'Bảng Theo dõi Điểm số'!C10)","v":"Bài luận1"}]
[null,8,{"$f":"'Bảng Theo dõi Điểm số'!C11&COUNTIF('Bảng Theo dõi Điểm số'!$C$4:C11,'Bảng Theo dõi Điểm số'!C11)","v":"Toán học 11"}]
[null,9,{"$f":"'Bảng Theo dõi Điểm số'!C12&COUNTIF('Bảng Theo dõi Điểm số'!$C$4:C12,'Bảng Theo dõi Điểm số'!C12)","v":"Toán học 21"}]
[null,10,{"$f":"'Bảng Theo dõi Điểm số'!C13&COUNTIF('Bảng Theo dõi Điểm số'!$C$4:C14,'Bảng Theo dõi Điểm số'!C13)","v":"Toán học 12"}]
[null,11,{"$f":"'Bảng Theo dõi Điểm số'!C14&COUNTIF('Bảng Theo dõi Điểm số'!$C$4:C14,'Bảng Theo dõi Điểm số'!C14)","v":"Toán học 22"}]
[null,12,{"$f":"'Bảng Theo dõi Điểm số'!C15&COUNTIF('Bảng Theo dõi Điểm số'!$C$4:C15,'Bảng Theo dõi Điểm số'!C15)","v":"0"}]
[null,13,{"$f":"'Bảng Theo dõi Điểm số'!C16&COUNTIF('Bảng Theo dõi Điểm số'!$C$4:C16,'Bảng Theo dõi Điểm số'!C16)","v":"0"}]
[null,14,{"$f":"'Bảng Theo dõi Điểm số'!C17&COUNTIF('Bảng Theo dõi Điểm số'!$C$4:C17,'Bảng Theo dõi Điểm số'!C17)","v":"0"}]
[null,15,{"$f":"'Bảng Theo dõi Điểm số'!C18&COUNTIF('Bảng Theo dõi Điểm số'!$C$4:C18,'Bảng Theo dõi Điểm số'!C18)","v":"0"}]
[null,16,{"$f":"'Bảng Theo dõi Điểm số'!C19&COUNTIF('Bảng Theo dõi Điểm số'!$C$4:C19,'Bảng Theo dõi Điểm số'!C19)","v":"0"}]
[null,17,{"$f":"'Bảng Theo dõi Điểm số'!C20&COUNTIF('Bảng Theo dõi Điểm số'!$C$4:C20,'Bảng Theo dõi Điểm số'!C20)","v":"0"}]
[null,18,{"$f":"'Bảng Theo dõi Điểm số'!C21&COUNTIF('Bảng Theo dõi Điểm số'!$C$4:C21,'Bảng Theo dõi Điểm số'!C21)","v":"0"}]
[null,19,{"$f":"'Bảng Theo dõi Điểm số'!C22&COUNTIF('Bảng Theo dõi Điểm số'!$C$4:C22,'Bảng Theo dõi Điểm số'!C22)","v":"0"}]
[null,20,{"$f":"'Bảng Theo dõi Điểm số'!C23&COUNTIF('Bảng Theo dõi Điểm số'!$C$4:C23,'Bảng Theo dõi Điểm số'!C23)","v":"0"}]
[null,21,{"$f":"'Bảng Theo dõi Điểm số'!C24&COUNTIF('Bảng Theo dõi Điểm số'!$C$4:C24,'Bảng Theo dõi Điểm số'!C24)","v":"0"}]
[null,22,{"$f":"'Bảng Theo dõi Điểm số'!C25&COUNTIF('Bảng Theo dõi Điểm số'!$C$4:C25,'Bảng Theo dõi Điểm số'!C25)","v":"0"}]
[null,23,{"$f":"'Bảng Theo dõi Điểm số'!C26&COUNTIF('Bảng Theo dõi Điểm số'!$C$4:C26,'Bảng Theo dõi Điểm số'!C26)","v":"0"}]
[null,24,{"$f":"'Bảng Theo dõi Điểm số'!C27&COUNTIF('Bảng Theo dõi Điểm số'!$C$4:C27,'Bảng Theo dõi Điểm số'!C27)","v":"0"}]
[null,25,{"$f":"'Bảng Theo dõi Điểm số'!C28&COUNTIF('Bảng Theo dõi Điểm số'!$C$4:C28,'Bảng Theo dõi Điểm số'!C28)","v":"0"}]
[null,26,{"$f":"'Bảng Theo dõi Điểm số'!C29&COUNTIF('Bảng Theo dõi Điểm số'!$C$4:C29,'Bảng Theo dõi Điểm số'!C29)","v":"0"}]
[null,27,{"$f":"'Bảng Theo dõi Điểm số'!C30&COUNTIF('Bảng Theo dõi Điểm số'!$C$4:C30,'Bảng Theo dõi Điểm số'!C30)","v":"0"}]
[null,28,{"$f":"'Bảng Theo dõi Điểm số'!C31&COUNTIF('Bảng Theo dõi Điểm số'!$C$4:C31,'Bảng Theo dõi Điểm số'!C31)","v":"0"}]
[null,29,{"$f":"'Bảng Theo dõi Điểm số'!C32&COUNTIF('Bảng Theo dõi Điểm số'!$C$4:C32,'Bảng Theo dõi Điểm số'!C32)","v":"0"}]
[null,30,{"$f":"'Bảng Theo dõi Điểm số'!C33&COUNTIF('Bảng Theo dõi Điểm số'!$C$4:C33,'Bảng Theo dõi Điểm số'!C33)","v":"0"}]
[null,31,{"$f":"'Bảng Theo dõi Điểm số'!C34&COUNTIF('Bảng Theo dõi Điểm số'!$C$4:C34,'Bảng Theo dõi Điểm số'!C34)","v":"0"}]
[null,32,{"$f":"'Bảng Theo dõi Điểm số'!C35&COUNTIF('Bảng Theo dõi Điểm số'!$C$4:C35,'Bảng Theo dõi Điểm số'!C35)","v":"0"}]
[null,33,{"$f":"'Bảng Theo dõi Điểm số'!C36&COUNTIF('Bảng Theo dõi Điểm số'!$C$4:C36,'Bảng Theo dõi Điểm số'!C36)","v":"0"}]
[null,34,{"$f":"'Bảng Theo dõi Điểm số'!C37&COUNTIF('Bảng Theo dõi Điểm số'!$C$4:C37,'Bảng Theo dõi Điểm số'!C37)","v":"0"}]
[null,35,{"$f":"'Bảng Theo dõi Điểm số'!C38&COUNTIF('Bảng Theo dõi Điểm số'!$C$4:C38,'Bảng Theo dõi Điểm số'!C38)","v":"0"}]
[null,36,{"$f":"'Bảng Theo dõi Điểm số'!C39&COUNTIF('Bảng Theo dõi Điểm số'!$C$4:C39,'Bảng Theo dõi Điểm số'!C39)","v":"0"}]
[null,37,{"$f":"'Bảng Theo dõi Điểm số'!C40&COUNTIF('Bảng Theo dõi Điểm số'!$C$4:C40,'Bảng Theo dõi Điểm số'!C40)","v":"0"}]
[null,38,{"$f":"'Bảng Theo dõi Điểm số'!C41&COUNTIF('Bảng Theo dõi Điểm số'!$C$4:C41,'Bảng Theo dõi Điểm số'!C41)","v":"0"}]
[null,39,{"$f":"'Bảng Theo dõi Điểm số'!C42&COUNTIF('Bảng Theo dõi Điểm số'!$C$4:C42,'Bảng Theo dõi Điểm số'!C42)","v":"0"}]
[null,40,{"$f":"'Bảng Theo dõi Điểm số'!C43&COUNTIF('Bảng Theo dõi Điểm số'!$C$4:C43,'Bảng Theo dõi Điểm số'!C43)","v":"0"}]
[null,41,{"$f":"'Bảng Theo dõi Điểm số'!C44&COUNTIF('Bảng Theo dõi Điểm số'!$C$4:C44,'Bảng Theo dõi Điểm số'!C44)","v":"0"}]
[null,42,{"$f":"'Bảng Theo dõi Điểm số'!C45&COUNTIF('Bảng Theo dõi Điểm số'!$C$4:C45,'Bảng Theo dõi Điểm số'!C45)","v":"0"}]
[null,43,{"$f":"'Bảng Theo dõi Điểm số'!C46&COUNTIF('Bảng Theo dõi Điểm số'!$C$4:C46,'Bảng Theo dõi Điểm số'!C46)","v":"0"}]
[null,44,{"$f":"'Bảng Theo dõi Điểm số'!C47&COUNTIF('Bảng Theo dõi Điểm số'!$C$4:C47,'Bảng Theo dõi Điểm số'!C47)","v":"0"}]
[null,45,{"$f":"'Bảng Theo dõi Điểm số'!C48&COUNTIF('Bảng Theo dõi Điểm số'!$C$4:C48,'Bảng Theo dõi Điểm số'!C48)","v":"0"}]
[null,46,{"$f":"'Bảng Theo dõi Điểm số'!C49&COUNTIF('Bảng Theo dõi Điểm số'!$C$4:C49,'Bảng Theo dõi Điểm số'!C49)","v":"0"}]
[null,47,{"$f":"'Bảng Theo dõi Điểm số'!C50&COUNTIF('Bảng Theo dõi Điểm số'!$C$4:C50,'Bảng Theo dõi Điểm số'!C50)","v":"0"}]
[null,48,{"$f":"'Bảng Theo dõi Điểm số'!C51&COUNTIF('Bảng Theo dõi Điểm số'!$C$4:C51,'Bảng Theo dõi Điểm số'!C51)","v":"0"}]
[null,49,{"$f":"'Bảng Theo dõi Điểm số'!C52&COUNTIF('Bảng Theo dõi Điểm số'!$C$4:C52,'Bảng Theo dõi Điểm số'!C52)","v":"0"}]
[null,50,{"$f":"'Bảng Theo dõi Điểm số'!C53&COUNTIF('Bảng Theo dõi Điểm số'!$C$4:C53,'Bảng Theo dõi Điểm số'!C53)","v":"0"}]
[null,51,{"$f":"'Bảng Theo dõi Điểm số'!C54&COUNTIF('Bảng Theo dõi Điểm số'!$C$4:C54,'Bảng Theo dõi Điểm số'!C54)","v":"0"}]
[null,52,{"$f":"'Bảng Theo dõi Điểm số'!C55&COUNTIF('Bảng Theo dõi Điểm số'!$C$4:C55,'Bảng Theo dõi Điểm số'!C55)","v":"0"}]
[null,53,{"$f":"'Bảng Theo dõi Điểm số'!C56&COUNTIF('Bảng Theo dõi Điểm số'!$C$4:C56,'Bảng Theo dõi Điểm số'!C56)","v":"0"}]
[null,54,{"$f":"'Bảng Theo dõi Điểm số'!C57&COUNTIF('Bảng Theo dõi Điểm số'!$C$4:C57,'Bảng Theo dõi Điểm số'!C57)","v":"0"}]
[null,55,{"$f":"'Bảng Theo dõi Điểm số'!C58&COUNTIF('Bảng Theo dõi Điểm số'!$C$4:C58,'Bảng Theo dõi Điểm số'!C58)","v":"0"}]
[null,56,{"$f":"'Bảng Theo dõi Điểm số'!C59&COUNTIF('Bảng Theo dõi Điểm số'!$C$4:C59,'Bảng Theo dõi Điểm số'!C59)","v":"0"}]
[null,57,{"$f":"'Bảng Theo dõi Điểm số'!C60&COUNTIF('Bảng Theo dõi Điểm số'!$C$4:C60,'Bảng Theo dõi Điểm số'!C60)","v":"0"}]
[null,58,{"$f":"'Bảng Theo dõi Điểm số'!C61&COUNTIF('Bảng Theo dõi Điểm số'!$C$4:C61,'Bảng Theo dõi Điểm số'!C61)","v":"0"}]
[null,59,{"$f":"'Bảng Theo dõi Điểm số'!C62&COUNTIF('Bảng Theo dõi Điểm số'!$C$4:C62,'Bảng Theo dõi Điểm số'!C62)","v":"0"}]
[null,60,{"$f":"'Bảng Theo dõi Điểm số'!C63&COUNTIF('Bảng Theo dõi Điểm số'!$C$4:C63,'Bảng Theo dõi Điểm số'!C63)","v":"0"}]
[null,61,{"$f":"'Bảng Theo dõi Điểm số'!C64&COUNTIF('Bảng Theo dõi Điểm số'!$C$4:C64,'Bảng Theo dõi Điểm số'!C64)","v":"0"}]
[null,62,{"$f":"'Bảng Theo dõi Điểm số'!C65&COUNTIF('Bảng Theo dõi Điểm số'!$C$4:C65,'Bảng Theo dõi Điểm số'!C65)","v":"0"}]
[null,63,{"$f":"'Bảng Theo dõi Điểm số'!C66&COUNTIF('Bảng Theo dõi Điểm số'!$C$4:C66,'Bảng Theo dõi Điểm số'!C66)","v":"0"}]
[null,64,{"$f":"'Bảng Theo dõi Điểm số'!C67&COUNTIF('Bảng Theo dõi Điểm số'!$C$4:C67,'Bảng Theo dõi Điểm số'!C67)","v":"0"}]
[null,65,{"$f":"'Bảng Theo dõi Điểm số'!C68&COUNTIF('Bảng Theo dõi Điểm số'!$C$4:C68,'Bảng Theo dõi Điểm số'!C68)","v":"0"}]
[null,66,{"$f":"'Bảng Theo dõi Điểm số'!C69&COUNTIF('Bảng Theo dõi Điểm số'!$C$4:C69,'Bảng Theo dõi Điểm số'!C69)","v":"0"}]
[null,67,{"$f":"'Bảng Theo dõi Điểm số'!C70&COUNTIF('Bảng Theo dõi Điểm số'!$C$4:C70,'Bảng Theo dõi Điểm số'!C70)","v":"0"}]
[null,68,{"$f":"'Bảng Theo dõi Điểm số'!C71&COUNTIF('Bảng Theo dõi Điểm số'!$C$4:C71,'Bảng Theo dõi Điểm số'!C71)","v":"0"}]
[null,69,{"$f":"'Bảng Theo dõi Điểm số'!C72&COUNTIF('Bảng Theo dõi Điểm số'!$C$4:C72,'Bảng Theo dõi Điểm số'!C72)","v":"0"}]
[null,70,{"$f":"'Bảng Theo dõi Điểm số'!C73&COUNTIF('Bảng Theo dõi Điểm số'!$C$4:C73,'Bảng Theo dõi Điểm số'!C73)","v":"0"}]
[null,71,{"$f":"'Bảng Theo dõi Điểm số'!C74&COUNTIF('Bảng Theo dõi Điểm số'!$C$4:C74,'Bảng Theo dõi Điểm số'!C74)","v":"0"}]
[null,72,{"$f":"'Bảng Theo dõi Điểm số'!C75&COUNTIF('Bảng Theo dõi Điểm số'!$C$4:C75,'Bảng Theo dõi Điểm số'!C75)","v":"0"}]
[null,73,{"$f":"'Bảng Theo dõi Điểm số'!C76&COUNTIF('Bảng Theo dõi Điểm số'!$C$4:C76,'Bảng Theo dõi Điểm số'!C76)","v":"0"}]
[null,74,{"$f":"'Bảng Theo dõi Điểm số'!C77&COUNTIF('Bảng Theo dõi Điểm số'!$C$4:C77,'Bảng Theo dõi Điểm số'!C77)","v":"0"}]
[null,75,{"$f":"'Bảng Theo dõi Điểm số'!C78&COUNTIF('Bảng Theo dõi Điểm số'!$C$4:C78,'Bảng Theo dõi Điểm số'!C78)","v":"0"}]
[null,76,{"$f":"'Bảng Theo dõi Điểm số'!C79&COUNTIF('Bảng Theo dõi Điểm số'!$C$4:C79,'Bảng Theo dõi Điểm số'!C79)","v":"0"}]
[null,77,{"$f":"'Bảng Theo dõi Điểm số'!C80&COUNTIF('Bảng Theo dõi Điểm số'!$C$4:C80,'Bảng Theo dõi Điểm số'!C80)","v":"0"}]
[null,78,{"$f":"'Bảng Theo dõi Điểm số'!C81&COUNTIF('Bảng Theo dõi Điểm số'!$C$4:C81,'Bảng Theo dõi Điểm số'!C81)","v":"0"}]
[null,79,{"$f":"'Bảng Theo dõi Điểm số'!C82&COUNTIF('Bảng Theo dõi Điểm số'!$C$4:C82,'Bảng Theo dõi Điểm số'!C82)","v":"0"}]
[null,80,{"$f":"'Bảng Theo dõi Điểm số'!C83&COUNTIF('Bảng Theo dõi Điểm số'!$C$4:C83,'Bảng Theo dõi Điểm số'!C83)","v":"0"}]
[null,81,{"$f":"'Bảng Theo dõi Điểm số'!C84&COUNTIF('Bảng Theo dõi Điểm số'!$C$4:C84,'Bảng Theo dõi Điểm số'!C84)","v":"0"}]
[null,82,{"$f":"'Bảng Theo dõi Điểm số'!C85&COUNTIF('Bảng Theo dõi Điểm số'!$C$4:C85,'Bảng Theo dõi Điểm số'!C85)","v":"0"}]
[null,83,{"$f":"'Bảng Theo dõi Điểm số'!C86&COUNTIF('Bảng Theo dõi Điểm số'!$C$4:C86,'Bảng Theo dõi Điểm số'!C86)","v":"0"}]
[null,84,{"$f":"'Bảng Theo dõi Điểm số'!C87&COUNTIF('Bảng Theo dõi Điểm số'!$C$4:C87,'Bảng Theo dõi Điểm số'!C87)","v":"0"}]
[null,85,{"$f":"'Bảng Theo dõi Điểm số'!C88&COUNTIF('Bảng Theo dõi Điểm số'!$C$4:C88,'Bảng Theo dõi Điểm số'!C88)","v":"0"}]
[null,86,{"$f":"'Bảng Theo dõi Điểm số'!C89&COUNTIF('Bảng Theo dõi Điểm số'!$C$4:C89,'Bảng Theo dõi Điểm số'!C89)","v":"0"}]
[null,87,{"$f":"'Bảng Theo dõi Điểm số'!C90&COUNTIF('Bảng Theo dõi Điểm số'!$C$4:C90,'Bảng Theo dõi Điểm số'!C90)","v":"0"}]
[null,88,{"$f":"'Bảng Theo dõi Điểm số'!C91&COUNTIF('Bảng Theo dõi Điểm số'!$C$4:C91,'Bảng Theo dõi Điểm số'!C91)","v":"0"}]
[null,89,{"$f":"'Bảng Theo dõi Điểm số'!C92&COUNTIF('Bảng Theo dõi Điểm số'!$C$4:C92,'Bảng Theo dõi Điểm số'!C92)","v":"0"}]
[null,90,{"$f":"'Bảng Theo dõi Điểm số'!C93&COUNTIF('Bảng Theo dõi Điểm số'!$C$4:C93,'Bảng Theo dõi Điểm số'!C93)","v":"0"}]
[null,91,{"$f":"'Bảng Theo dõi Điểm số'!C94&COUNTIF('Bảng Theo dõi Điểm số'!$C$4:C94,'Bảng Theo dõi Điểm số'!C94)","v":"0"}]
[null,92,{"$f":"'Bảng Theo dõi Điểm số'!C95&COUNTIF('Bảng Theo dõi Điểm số'!$C$4:C95,'Bảng Theo dõi Điểm số'!C95)","v":"0"}]
[null,93,{"$f":"'Bảng Theo dõi Điểm số'!C96&COUNTIF('Bảng Theo dõi Điểm số'!$C$4:C96,'Bảng Theo dõi Điểm số'!C96)","v":"0"}]
[null,94,{"$f":"'Bảng Theo dõi Điểm số'!C97&COUNTIF('Bảng Theo dõi Điểm số'!$C$4:C97,'Bảng Theo dõi Điểm số'!C97)","v":"0"}]
[null,95,{"$f":"'Bảng Theo dõi Điểm số'!C98&COUNTIF('Bảng Theo dõi Điểm số'!$C$4:C98,'Bảng Theo dõi Điểm số'!C98)","v":"0"}]
[null,96,{"$f":"'Bảng Theo dõi Điểm số'!C99&COUNTIF('Bảng Theo dõi Điểm số'!$C$4:C99,'Bảng Theo dõi Điểm số'!C99)","v":"0"}]
[null,97,{"$f":"'Bảng Theo dõi Điểm số'!C100&COUNTIF('Bảng Theo dõi Điểm số'!$C$4:C100,'Bảng Theo dõi Điểm số'!C100)","v":"0"}]
[null,98,{"$f":"'Bảng Theo dõi Điểm số'!C101&COUNTIF('Bảng Theo dõi Điểm số'!$C$4:C101,'Bảng Theo dõi Điểm số'!C101)","v":"0"}]
[null,99,{"$f":"'Bảng Theo dõi Điểm số'!C102&COUNTIF('Bảng Theo dõi Điểm số'!$C$4:C102,'Bảng Theo dõi Điểm số'!C102)","v":"0"}]
[null,100,{"$f":"'Bảng Theo dõi Điểm số'!C103&COUNTIF('Bảng Theo dõi Điểm số'!$C$4:C103,'Bảng Theo dõi Điểm số'!C103)","v":"0"}]
[null,101,{"$f":"'Bảng Theo dõi Điểm số'!C104&COUNTIF('Bảng Theo dõi Điểm số'!$C$4:C104,'Bảng Theo dõi Điểm số'!C104)","v":"0"}]
[null,102,{"$f":"'Bảng Theo dõi Điểm số'!C105&COUNTIF('Bảng Theo dõi Điểm số'!$C$4:C105,'Bảng Theo dõi Điểm số'!C105)","v":"0"}]
[null,103,{"$f":"'Bảng Theo dõi Điểm số'!C106&COUNTIF('Bảng Theo dõi Điểm số'!$C$4:C106,'Bảng Theo dõi Điểm số'!C106)","v":"0"}]
[null,104,{"$f":"'Bảng Theo dõi Điểm số'!C107&COUNTIF('Bảng Theo dõi Điểm số'!$C$4:C107,'Bảng Theo dõi Điểm số'!C107)","v":"0"}]
[null,105,{"$f":"'Bảng Theo dõi Điểm số'!C108&COUNTIF('Bảng Theo dõi Điểm số'!$C$4:C108,'Bảng Theo dõi Điểm số'!C108)","v":"0"}]
[null,106,{"$f":"'Bảng Theo dõi Điểm số'!C109&COUNTIF('Bảng Theo dõi Điểm số'!$C$4:C109,'Bảng Theo dõi Điểm số'!C109)","v":"0"}]
[null,107,{"$f":"'Bảng Theo dõi Điểm số'!C110&COUNTIF('Bảng Theo dõi Điểm số'!$C$4:C110,'Bảng Theo dõi Điểm số'!C110)","v":"0"}]
[null,108,{"$f":"'Bảng Theo dõi Điểm số'!C111&COUNTIF('Bảng Theo dõi Điểm số'!$C$4:C111,'Bảng Theo dõi Điểm số'!C111)","v":"0"}]
[null,109,{"$f":"'Bảng Theo dõi Điểm số'!C112&COUNTIF('Bảng Theo dõi Điểm số'!$C$4:C112,'Bảng Theo dõi Điểm số'!C112)","v":"0"}]
[null,110,{"$f":"'Bảng Theo dõi Điểm số'!C113&COUNTIF('Bảng Theo dõi Điểm số'!$C$4:C113,'Bảng Theo dõi Điểm số'!C113)","v":"0"}]
[null,111,{"$f":"'Bảng Theo dõi Điểm số'!C114&COUNTIF('Bảng Theo dõi Điểm số'!$C$4:C114,'Bảng Theo dõi Điểm số'!C114)","v":"0"}]
[null,112,{"$f":"'Bảng Theo dõi Điểm số'!C115&COUNTIF('Bảng Theo dõi Điểm số'!$C$4:C115,'Bảng Theo dõi Điểm số'!C115)","v":"0"}]
[null,113,{"$f":"'Bảng Theo dõi Điểm số'!C116&COUNTIF('Bảng Theo dõi Điểm số'!$C$4:C116,'Bảng Theo dõi Điểm số'!C116)","v":"0"}]
[null,114,{"$f":"'Bảng Theo dõi Điểm số'!C117&COUNTIF('Bảng Theo dõi Điểm số'!$C$4:C117,'Bảng Theo dõi Điểm số'!C117)","v":"0"}]
[null,115,{"$f":"'Bảng Theo dõi Điểm số'!C118&COUNTIF('Bảng Theo dõi Điểm số'!$C$4:C118,'Bảng Theo dõi Điểm số'!C118)","v":"0"}]
[null,116,{"$f":"'Bảng Theo dõi Điểm số'!C119&COUNTIF('Bảng Theo dõi Điểm số'!$C$4:C119,'Bảng Theo dõi Điểm số'!C119)","v":"0"}]
[null,117,{"$f":"'Bảng Theo dõi Điểm số'!C120&COUNTIF('Bảng Theo dõi Điểm số'!$C$4:C120,'Bảng Theo dõi Điểm số'!C120)","v":"0"}]
[null,118,{"$f":"'Bảng Theo dõi Điểm số'!C121&COUNTIF('Bảng Theo dõi Điểm số'!$C$4:C121,'Bảng Theo dõi Điểm số'!C121)","v":"0"}]
[null,119,{"$f":"'Bảng Theo dõi Điểm số'!C122&COUNTIF('Bảng Theo dõi Điểm số'!$C$4:C122,'Bảng Theo dõi Điểm số'!C122)","v":"0"}]
[null,120,{"$f":"'Bảng Theo dõi Điểm số'!C123&COUNTIF('Bảng Theo dõi Điểm số'!$C$4:C123,'Bảng Theo dõi Điểm số'!C123)","v":"0"}]
[null,121,{"$f":"'Bảng Theo dõi Điểm số'!C124&COUNTIF('Bảng Theo dõi Điểm số'!$C$4:C124,'Bảng Theo dõi Điểm số'!C124)","v":"0"}]
[null,122,{"$f":"'Bảng Theo dõi Điểm số'!C125&COUNTIF('Bảng Theo dõi Điểm số'!$C$4:C125,'Bảng Theo dõi Điểm số'!C125)","v":"0"}]
[null,123,{"$f":"'Bảng Theo dõi Điểm số'!C126&COUNTIF('Bảng Theo dõi Điểm số'!$C$4:C126,'Bảng Theo dõi Điểm số'!C126)","v":"0"}]
[null,124,{"$f":"'Bảng Theo dõi Điểm số'!C127&COUNTIF('Bảng Theo dõi Điểm số'!$C$4:C127,'Bảng Theo dõi Điểm số'!C127)","v":"0"}]
[null,125,{"$f":"'Bảng Theo dõi Điểm số'!C128&COUNTIF('Bảng Theo dõi Điểm số'!$C$4:C128,'Bảng Theo dõi Điểm số'!C128)","v":"0"}]
[null,126,{"$f":"'Bảng Theo dõi Điểm số'!C129&COUNTIF('Bảng Theo dõi Điểm số'!$C$4:C129,'Bảng Theo dõi Điểm số'!C129)","v":"0"}]
[null,127,{"$f":"'Bảng Theo dõi Điểm số'!C130&COUNTIF('Bảng Theo dõi Điểm số'!$C$4:C130,'Bảng Theo dõi Điểm số'!C130)","v":"0"}]
[null,128,{"$f":"'Bảng Theo dõi Điểm số'!C131&COUNTIF('Bảng Theo dõi Điểm số'!$C$4:C131,'Bảng Theo dõi Điểm số'!C131)","v":"0"}]
[null,129,{"$f":"'Bảng Theo dõi Điểm số'!C132&COUNTIF('Bảng Theo dõi Điểm số'!$C$4:C132,'Bảng Theo dõi Điểm số'!C132)","v":"0"}]
[null,130,{"$f":"'Bảng Theo dõi Điểm số'!C133&COUNTIF('Bảng Theo dõi Điểm số'!$C$4:C133,'Bảng Theo dõi Điểm số'!C133)","v":"0"}]
[null,131,{"$f":"'Bảng Theo dõi Điểm số'!C134&COUNTIF('Bảng Theo dõi Điểm số'!$C$4:C134,'Bảng Theo dõi Điểm số'!C134)","v":"0"}]
[null,132,{"$f":"'Bảng Theo dõi Điểm số'!C135&COUNTIF('Bảng Theo dõi Điểm số'!$C$4:C135,'Bảng Theo dõi Điểm số'!C135)","v":"0"}]
[null,133,{"$f":"'Bảng Theo dõi Điểm số'!C136&COUNTIF('Bảng Theo dõi Điểm số'!$C$4:C136,'Bảng Theo dõi Điểm số'!C136)","v":"0"}]
[null,134,{"$f":"'Bảng Theo dõi Điểm số'!C137&COUNTIF('Bảng Theo dõi Điểm số'!$C$4:C137,'Bảng Theo dõi Điểm số'!C137)","v":"0"}]
[null,135,{"$f":"'Bảng Theo dõi Điểm số'!C138&COUNTIF('Bảng Theo dõi Điểm số'!$C$4:C138,'Bảng Theo dõi Điểm số'!C138)","v":"0"}]
[null,136,{"$f":"'Bảng Theo dõi Điểm số'!C139&COUNTIF('Bảng Theo dõi Điểm số'!$C$4:C139,'Bảng Theo dõi Điểm số'!C139)","v":"0"}]
[null,137,{"$f":"'Bảng Theo dõi Điểm số'!C140&COUNTIF('Bảng Theo dõi Điểm số'!$C$4:C140,'Bảng Theo dõi Điểm số'!C140)","v":"0"}]
[null,138,{"$f":"'Bảng Theo dõi Điểm số'!C141&COUNTIF('Bảng Theo dõi Điểm số'!$C$4:C141,'Bảng Theo dõi Điểm số'!C141)","v":"0"}]
[null,139,{"$f":"'Bảng Theo dõi Điểm số'!C142&COUNTIF('Bảng Theo dõi Điểm số'!$C$4:C142,'Bảng Theo dõi Điểm số'!C142)","v":"0"}]
[null,140,{"$f":"'Bảng Theo dõi Điểm số'!C143&COUNTIF('Bảng Theo dõi Điểm số'!$C$4:C143,'Bảng Theo dõi Điểm số'!C143)","v":"0"}]
[null,141,{"$f":"'Bảng Theo dõi Điểm số'!C144&COUNTIF('Bảng Theo dõi Điểm số'!$C$4:C144,'Bảng Theo dõi Điểm số'!C144)","v":"0"}]
[null,142,{"$f":"'Bảng Theo dõi Điểm số'!C145&COUNTIF('Bảng Theo dõi Điểm số'!$C$4:C145,'Bảng Theo dõi Điểm số'!C145)","v":"0"}]
[null,143,{"$f":"'Bảng Theo dõi Điểm số'!C146&COUNTIF('Bảng Theo dõi Điểm số'!$C$4:C146,'Bảng Theo dõi Điểm số'!C146)","v":"0"}]
[null,144,{"$f":"'Bảng Theo dõi Điểm số'!C147&COUNTIF('Bảng Theo dõi Điểm số'!$C$4:C147,'Bảng Theo dõi Điểm số'!C147)","v":"0"}]
[null,145,{"$f":"'Bảng Theo dõi Điểm số'!C148&COUNTIF('Bảng Theo dõi Điểm số'!$C$4:C148,'Bảng Theo dõi Điểm số'!C148)","v":"0"}]
[null,146,{"$f":"'Bảng Theo dõi Điểm số'!C149&COUNTIF('Bảng Theo dõi Điểm số'!$C$4:C149,'Bảng Theo dõi Điểm số'!C149)","v":"0"}]
[null,147,{"$f":"'Bảng Theo dõi Điểm số'!C150&COUNTIF('Bảng Theo dõi Điểm số'!$C$4:C150,'Bảng Theo dõi Điểm số'!C150)","v":"0"}]
[null,148,{"$f":"'Bảng Theo dõi Điểm số'!C151&COUNTIF('Bảng Theo dõi Điểm số'!$C$4:C151,'Bảng Theo dõi Điểm số'!C151)","v":"0"}]
[null,149,{"$f":"'Bảng Theo dõi Điểm số'!C152&COUNTIF('Bảng Theo dõi Điểm số'!$C$4:C152,'Bảng Theo dõi Điểm số'!C152)","v":"0"}]
[null,150,{"$f":"'Bảng Theo dõi Điểm số'!C153&COUNTIF('Bảng Theo dõi Điểm số'!$C$4:C153,'Bảng Theo dõi Điểm số'!C153)","v":"0"}]
[null,151,{"$f":"'Bảng Theo dõi Điểm số'!C154&COUNTIF('Bảng Theo dõi Điểm số'!$C$4:C154,'Bảng Theo dõi Điểm số'!C154)","v":"0"}]
[null,152,{"$f":"'Bảng Theo dõi Điểm số'!C155&COUNTIF('Bảng Theo dõi Điểm số'!$C$4:C155,'Bảng Theo dõi Điểm số'!C155)","v":"0"}]
[null,153,{"$f":"'Bảng Theo dõi Điểm số'!C156&COUNTIF('Bảng Theo dõi Điểm số'!$C$4:C156,'Bảng Theo dõi Điểm số'!C156)","v":"0"}]
[null,154,{"$f":"'Bảng Theo dõi Điểm số'!C157&COUNTIF('Bảng Theo dõi Điểm số'!$C$4:C157,'Bảng Theo dõi Điểm số'!C157)","v":"0"}]
[null,155,{"$f":"'Bảng Theo dõi Điểm số'!C158&COUNTIF('Bảng Theo dõi Điểm số'!$C$4:C158,'Bảng Theo dõi Điểm số'!C158)","v":"0"}]
[null,156,{"$f":"'Bảng Theo dõi Điểm số'!C159&COUNTIF('Bảng Theo dõi Điểm số'!$C$4:C159,'Bảng Theo dõi Điểm số'!C159)","v":"0"}]
[null,157,{"$f":"'Bảng Theo dõi Điểm số'!C160&COUNTIF('Bảng Theo dõi Điểm số'!$C$4:C160,'Bảng Theo dõi Điểm số'!C160)","v":"0"}]
[null,158,{"$f":"'Bảng Theo dõi Điểm số'!C161&COUNTIF('Bảng Theo dõi Điểm số'!$C$4:C161,'Bảng Theo dõi Điểm số'!C161)","v":"0"}]
[null,159,{"$f":"'Bảng Theo dõi Điểm số'!C162&COUNTIF('Bảng Theo dõi Điểm số'!$C$4:C162,'Bảng Theo dõi Điểm số'!C162)","v":"0"}]
[null,160,{"$f":"'Bảng Theo dõi Điểm số'!C163&COUNTIF('Bảng Theo dõi Điểm số'!$C$4:C163,'Bảng Theo dõi Điểm số'!C163)","v":"0"}]
[null,161,{"$f":"'Bảng Theo dõi Điểm số'!C164&COUNTIF('Bảng Theo dõi Điểm số'!$C$4:C164,'Bảng Theo dõi Điểm số'!C164)","v":"0"}]
[null,162,{"$f":"'Bảng Theo dõi Điểm số'!C165&COUNTIF('Bảng Theo dõi Điểm số'!$C$4:C165,'Bảng Theo dõi Điểm số'!C165)","v":"0"}]
[null,163,{"$f":"'Bảng Theo dõi Điểm số'!C166&COUNTIF('Bảng Theo dõi Điểm số'!$C$4:C166,'Bảng Theo dõi Điểm số'!C166)","v":"0"}]
[null,164,{"$f":"'Bảng Theo dõi Điểm số'!C167&COUNTIF('Bảng Theo dõi Điểm số'!$C$4:C167,'Bảng Theo dõi Điểm số'!C167)","v":"0"}]
[null,165,{"$f":"'Bảng Theo dõi Điểm số'!C168&COUNTIF('Bảng Theo dõi Điểm số'!$C$4:C168,'Bảng Theo dõi Điểm số'!C168)","v":"0"}]
[null,166,{"$f":"'Bảng Theo dõi Điểm số'!C169&COUNTIF('Bảng Theo dõi Điểm số'!$C$4:C169,'Bảng Theo dõi Điểm số'!C169)","v":"0"}]
[null,167,{"$f":"'Bảng Theo dõi Điểm số'!C170&COUNTIF('Bảng Theo dõi Điểm số'!$C$4:C170,'Bảng Theo dõi Điểm số'!C170)","v":"0"}]
[null,168,{"$f":"'Bảng Theo dõi Điểm số'!C171&COUNTIF('Bảng Theo dõi Điểm số'!$C$4:C171,'Bảng Theo dõi Điểm số'!C171)","v":"0"}]
[null,169,{"$f":"'Bảng Theo dõi Điểm số'!C172&COUNTIF('Bảng Theo dõi Điểm số'!$C$4:C172,'Bảng Theo dõi Điểm số'!C172)","v":"0"}]
[null,170,{"$f":"'Bảng Theo dõi Điểm số'!C173&COUNTIF('Bảng Theo dõi Điểm số'!$C$4:C173,'Bảng Theo dõi Điểm số'!C173)","v":"0"}]
[null,171,{"$f":"'Bảng Theo dõi Điểm số'!C174&COUNTIF('Bảng Theo dõi Điểm số'!$C$4:C174,'Bảng Theo dõi Điểm số'!C174)","v":"0"}]
[null,172,{"$f":"'Bảng Theo dõi Điểm số'!C175&COUNTIF('Bảng Theo dõi Điểm số'!$C$4:C175,'Bảng Theo dõi Điểm số'!C175)","v":"0"}]
[null,173,{"$f":"'Bảng Theo dõi Điểm số'!C176&COUNTIF('Bảng Theo dõi Điểm số'!$C$4:C176,'Bảng Theo dõi Điểm số'!C176)","v":"0"}]
[null,174,{"$f":"'Bảng Theo dõi Điểm số'!C177&COUNTIF('Bảng Theo dõi Điểm số'!$C$4:C177,'Bảng Theo dõi Điểm số'!C177)","v":"0"}]
[null,175,{"$f":"'Bảng Theo dõi Điểm số'!C178&COUNTIF('Bảng Theo dõi Điểm số'!$C$4:C178,'Bảng Theo dõi Điểm số'!C178)","v":"0"}]
[null,176,{"$f":"'Bảng Theo dõi Điểm số'!C179&COUNTIF('Bảng Theo dõi Điểm số'!$C$4:C179,'Bảng Theo dõi Điểm số'!C179)","v":"0"}]
[null,177,{"$f":"'Bảng Theo dõi Điểm số'!C180&COUNTIF('Bảng Theo dõi Điểm số'!$C$4:C180,'Bảng Theo dõi Điểm số'!C180)","v":"0"}]
[null,178,{"$f":"'Bảng Theo dõi Điểm số'!C181&COUNTIF('Bảng Theo dõi Điểm số'!$C$4:C181,'Bảng Theo dõi Điểm số'!C181)","v":"0"}]
[null,179,{"$f":"'Bảng Theo dõi Điểm số'!C182&COUNTIF('Bảng Theo dõi Điểm số'!$C$4:C182,'Bảng Theo dõi Điểm số'!C182)","v":"0"}]
[null,180,{"$f":"'Bảng Theo dõi Điểm số'!C183&COUNTIF('Bảng Theo dõi Điểm số'!$C$4:C183,'Bảng Theo dõi Điểm số'!C183)","v":"0"}]
[null,181,{"$f":"'Bảng Theo dõi Điểm số'!C184&COUNTIF('Bảng Theo dõi Điểm số'!$C$4:C184,'Bảng Theo dõi Điểm số'!C184)","v":"0"}]
[null,182,{"$f":"'Bảng Theo dõi Điểm số'!C185&COUNTIF('Bảng Theo dõi Điểm số'!$C$4:C185,'Bảng Theo dõi Điểm số'!C185)","v":"0"}]
[null,183,{"$f":"'Bảng Theo dõi Điểm số'!C186&COUNTIF('Bảng Theo dõi Điểm số'!$C$4:C186,'Bảng Theo dõi Điểm số'!C186)","v":"0"}]
[null,184,{"$f":"'Bảng Theo dõi Điểm số'!C187&COUNTIF('Bảng Theo dõi Điểm số'!$C$4:C187,'Bảng Theo dõi Điểm số'!C187)","v":"0"}]
[null,185,{"$f":"'Bảng Theo dõi Điểm số'!C188&COUNTIF('Bảng Theo dõi Điểm số'!$C$4:C188,'Bảng Theo dõi Điểm số'!C188)","v":"0"}]
[null,186,{"$f":"'Bảng Theo dõi Điểm số'!C189&COUNTIF('Bảng Theo dõi Điểm số'!$C$4:C189,'Bảng Theo dõi Điểm số'!C189)","v":"0"}]
[null,187,{"$f":"'Bảng Theo dõi Điểm số'!C190&COUNTIF('Bảng Theo dõi Điểm số'!$C$4:C190,'Bảng Theo dõi Điểm số'!C190)","v":"0"}]
[null,188,{"$f":"'Bảng Theo dõi Điểm số'!C191&COUNTIF('Bảng Theo dõi Điểm số'!$C$4:C191,'Bảng Theo dõi Điểm số'!C191)","v":"0"}]
[null,189,{"$f":"'Bảng Theo dõi Điểm số'!C192&COUNTIF('Bảng Theo dõi Điểm số'!$C$4:C192,'Bảng Theo dõi Điểm số'!C192)","v":"0"}]
[null,190,{"$f":"'Bảng Theo dõi Điểm số'!C193&COUNTIF('Bảng Theo dõi Điểm số'!$C$4:C193,'Bảng Theo dõi Điểm số'!C193)","v":"0"}]
[null,191,{"$f":"'Bảng Theo dõi Điểm số'!C194&COUNTIF('Bảng Theo dõi Điểm số'!$C$4:C194,'Bảng Theo dõi Điểm số'!C194)","v":"0"}]
[null,192,{"$f":"'Bảng Theo dõi Điểm số'!C195&COUNTIF('Bảng Theo dõi Điểm số'!$C$4:C195,'Bảng Theo dõi Điểm số'!C195)","v":"0"}]
[null,193,{"$f":"'Bảng Theo dõi Điểm số'!C196&COUNTIF('Bảng Theo dõi Điểm số'!$C$4:C196,'Bảng Theo dõi Điểm số'!C196)","v":"0"}]
[null,194,{"$f":"'Bảng Theo dõi Điểm số'!C197&COUNTIF('Bảng Theo dõi Điểm số'!$C$4:C197,'Bảng Theo dõi Điểm số'!C197)","v":"0"}]
[null,195,{"$f":"'Bảng Theo dõi Điểm số'!C198&COUNTIF('Bảng Theo dõi Điểm số'!$C$4:C198,'Bảng Theo dõi Điểm số'!C198)","v":"0"}]
[null,196,{"$f":"'Bảng Theo dõi Điểm số'!C199&COUNTIF('Bảng Theo dõi Điểm số'!$C$4:C199,'Bảng Theo dõi Điểm số'!C199)","v":"0"}]
[null,197,{"$f":"'Bảng Theo dõi Điểm số'!C200&COUNTIF('Bảng Theo dõi Điểm số'!$C$4:C200,'Bảng Theo dõi Điểm số'!C200)","v":"0"}]
[null,198,{"$f":"'Bảng Theo dõi Điểm số'!C201&COUNTIF('Bảng Theo dõi Điểm số'!$C$4:C201,'Bảng Theo dõi Điểm số'!C201)","v":"0"}]
[null,199,{"$f":"'Bảng Theo dõi Điểm số'!C202&COUNTIF('Bảng Theo dõi Điểm số'!$C$4:C202,'Bảng Theo dõi Điểm số'!C202)","v":"0"}]
[null,200,{"$f":"'Bảng Theo dõi Điểm số'!C203&COUNTIF('Bảng Theo dõi Điểm số'!$C$4:C203,'Bảng Theo dõi Điểm số'!C203)","v":"0"}]
[null,201,{"$f":"'Bảng Theo dõi Điểm số'!C204&COUNTIF('Bảng Theo dõi Điểm số'!$C$4:C204,'Bảng Theo dõi Điểm số'!C204)","v":"0"}]
[null,202,{"$f":"'Bảng Theo dõi Điểm số'!C205&COUNTIF('Bảng Theo dõi Điểm số'!$C$4:C205,'Bảng Theo dõi Điểm số'!C205)","v":"0"}]
[null,203,{"$f":"'Bảng Theo dõi Điểm số'!C206&COUNTIF('Bảng Theo dõi Điểm số'!$C$4:C206,'Bảng Theo dõi Điểm số'!C206)","v":"0"}]
[null,204,{"$f":"'Bảng Theo dõi Điểm số'!C207&COUNTIF('Bảng Theo dõi Điểm số'!$C$4:C207,'Bảng Theo dõi Điểm số'!C207)","v":"0"}]
[null,205,{"$f":"'Bảng Theo dõi Điểm số'!C208&COUNTIF('Bảng Theo dõi Điểm số'!$C$4:C208,'Bảng Theo dõi Điểm số'!C208)","v":"0"}]
[null,206,{"$f":"'Bảng Theo dõi Điểm số'!C209&COUNTIF('Bảng Theo dõi Điểm số'!$C$4:C209,'Bảng Theo dõi Điểm số'!C209)","v":"0"}]
[null,207,{"$f":"'Bảng Theo dõi Điểm số'!C210&COUNTIF('Bảng Theo dõi Điểm số'!$C$4:C210,'Bảng Theo dõi Điểm số'!C210)","v":"0"}]
[null,208,{"$f":"'Bảng Theo dõi Điểm số'!C211&COUNTIF('Bảng Theo dõi Điểm số'!$C$4:C211,'Bảng Theo dõi Điểm số'!C211)","v":"0"}]
[null,209,{"$f":"'Bảng Theo dõi Điểm số'!C212&COUNTIF('Bảng Theo dõi Điểm số'!$C$4:C212,'Bảng Theo dõi Điểm số'!C212)","v":"0"}]
[null,210,{"$f":"'Bảng Theo dõi Điểm số'!C213&COUNTIF('Bảng Theo dõi Điểm số'!$C$4:C213,'Bảng Theo dõi Điểm số'!C213)","v":"0"}]
[null,211,{"$f":"'Bảng Theo dõi Điểm số'!C214&COUNTIF('Bảng Theo dõi Điểm số'!$C$4:C214,'Bảng Theo dõi Điểm số'!C214)","v":"0"}]
[null,212,{"$f":"'Bảng Theo dõi Điểm số'!C215&COUNTIF('Bảng Theo dõi Điểm số'!$C$4:C215,'Bảng Theo dõi Điểm số'!C215)","v":"0"}]
[null,213,{"$f":"'Bảng Theo dõi Điểm số'!C216&COUNTIF('Bảng Theo dõi Điểm số'!$C$4:C216,'Bảng Theo dõi Điểm số'!C216)","v":"0"}]
[null,214,{"$f":"'Bảng Theo dõi Điểm số'!C217&COUNTIF('Bảng Theo dõi Điểm số'!$C$4:C217,'Bảng Theo dõi Điểm số'!C217)","v":"0"}]
[null,215,{"$f":"'Bảng Theo dõi Điểm số'!C218&COUNTIF('Bảng Theo dõi Điểm số'!$C$4:C218,'Bảng Theo dõi Điểm số'!C218)","v":"0"}]
[null,216,{"$f":"'Bảng Theo dõi Điểm số'!C219&COUNTIF('Bảng Theo dõi Điểm số'!$C$4:C219,'Bảng Theo dõi Điểm số'!C219)","v":"0"}]
[null,217,{"$f":"'Bảng Theo dõi Điểm số'!C220&COUNTIF('Bảng Theo dõi Điểm số'!$C$4:C220,'Bảng Theo dõi Điểm số'!C220)","v":"0"}]
[null,218,{"$f":"'Bảng Theo dõi Điểm số'!C221&COUNTIF('Bảng Theo dõi Điểm số'!$C$4:C221,'Bảng Theo dõi Điểm số'!C221)","v":"0"}]
[null,219,{"$f":"'Bảng Theo dõi Điểm số'!C222&COUNTIF('Bảng Theo dõi Điểm số'!$C$4:C222,'Bảng Theo dõi Điểm số'!C222)","v":"0"}]
[null,220,{"$f":"'Bảng Theo dõi Điểm số'!C223&COUNTIF('Bảng Theo dõi Điểm số'!$C$4:C223,'Bảng Theo dõi Điểm số'!C223)","v":"0"}]
[null,221,{"$f":"'Bảng Theo dõi Điểm số'!C224&COUNTIF('Bảng Theo dõi Điểm số'!$C$4:C224,'Bảng Theo dõi Điểm số'!C224)","v":"0"}]
[null,222,{"$f":"'Bảng Theo dõi Điểm số'!C225&COUNTIF('Bảng Theo dõi Điểm số'!$C$4:C225,'Bảng Theo dõi Điểm số'!C225)","v":"0"}]
[null,223,{"$f":"'Bảng Theo dõi Điểm số'!C226&COUNTIF('Bảng Theo dõi Điểm số'!$C$4:C226,'Bảng Theo dõi Điểm số'!C226)","v":"0"}]
[null,224,{"$f":"'Bảng Theo dõi Điểm số'!C227&COUNTIF('Bảng Theo dõi Điểm số'!$C$4:C227,'Bảng Theo dõi Điểm số'!C227)","v":"0"}]
[null,225,{"$f":"'Bảng Theo dõi Điểm số'!C228&COUNTIF('Bảng Theo dõi Điểm số'!$C$4:C228,'Bảng Theo dõi Điểm số'!C228)","v":"0"}]
[null,226,{"$f":"'Bảng Theo dõi Điểm số'!C229&COUNTIF('Bảng Theo dõi Điểm số'!$C$4:C229,'Bảng Theo dõi Điểm số'!C229)","v":"0"}]
[null,227,{"$f":"'Bảng Theo dõi Điểm số'!C230&COUNTIF('Bảng Theo dõi Điểm số'!$C$4:C230,'Bảng Theo dõi Điểm số'!C230)","v":"0"}]
[null,228,{"$f":"'Bảng Theo dõi Điểm số'!C231&COUNTIF('Bảng Theo dõi Điểm số'!$C$4:C231,'Bảng Theo dõi Điểm số'!C231)","v":"0"}]
[null,229,{"$f":"'Bảng Theo dõi Điểm số'!C232&COUNTIF('Bảng Theo dõi Điểm số'!$C$4:C232,'Bảng Theo dõi Điểm số'!C232)","v":"0"}]
[null,230,{"$f":"'Bảng Theo dõi Điểm số'!C233&COUNTIF('Bảng Theo dõi Điểm số'!$C$4:C233,'Bảng Theo dõi Điểm số'!C233)","v":"0"}]
[null,231,{"$f":"'Bảng Theo dõi Điểm số'!C234&COUNTIF('Bảng Theo dõi Điểm số'!$C$4:C234,'Bảng Theo dõi Điểm số'!C234)","v":"0"}]
[null,232,{"$f":"'Bảng Theo dõi Điểm số'!C235&COUNTIF('Bảng Theo dõi Điểm số'!$C$4:C235,'Bảng Theo dõi Điểm số'!C235)","v":"0"}]
[null,233,{"$f":"'Bảng Theo dõi Điểm số'!C236&COUNTIF('Bảng Theo dõi Điểm số'!$C$4:C236,'Bảng Theo dõi Điểm số'!C236)","v":"0"}]
[null,234,{"$f":"'Bảng Theo dõi Điểm số'!C237&COUNTIF('Bảng Theo dõi Điểm số'!$C$4:C237,'Bảng Theo dõi Điểm số'!C237)","v":"0"}]
[null,235,{"$f":"'Bảng Theo dõi Điểm số'!C238&COUNTIF('Bảng Theo dõi Điểm số'!$C$4:C238,'Bảng Theo dõi Điểm số'!C238)","v":"0"}]
[null,236,{"$f":"'Bảng Theo dõi Điểm số'!C239&COUNTIF('Bảng Theo dõi Điểm số'!$C$4:C239,'Bảng Theo dõi Điểm số'!C239)","v":"0"}]
[null,237,{"$f":"'Bảng Theo dõi Điểm số'!C240&COUNTIF('Bảng Theo dõi Điểm số'!$C$4:C240,'Bảng Theo dõi Điểm số'!C240)","v":"0"}]
[null,238,{"$f":"'Bảng Theo dõi Điểm số'!C241&COUNTIF('Bảng Theo dõi Điểm số'!$C$4:C241,'Bảng Theo dõi Điểm số'!C241)","v":"0"}]
[null,239,{"$f":"'Bảng Theo dõi Điểm số'!C242&COUNTIF('Bảng Theo dõi Điểm số'!$C$4:C242,'Bảng Theo dõi Điểm số'!C242)","v":"0"}]
[null,240,{"$f":"'Bảng Theo dõi Điểm số'!C243&COUNTIF('Bảng Theo dõi Điểm số'!$C$4:C243,'Bảng Theo dõi Điểm số'!C243)","v":"0"}]
[null,241,{"$f":"'Bảng Theo dõi Điểm số'!C244&COUNTIF('Bảng Theo dõi Điểm số'!$C$4:C244,'Bảng Theo dõi Điểm số'!C244)","v":"0"}]
[null,242,{"$f":"'Bảng Theo dõi Điểm số'!C245&COUNTIF('Bảng Theo dõi Điểm số'!$C$4:C245,'Bảng Theo dõi Điểm số'!C245)","v":"0"}]
[null,243,{"$f":"'Bảng Theo dõi Điểm số'!C246&COUNTIF('Bảng Theo dõi Điểm số'!$C$4:C246,'Bảng Theo dõi Điểm số'!C246)","v":"0"}]
[null,244,{"$f":"'Bảng Theo dõi Điểm số'!C247&COUNTIF('Bảng Theo dõi Điểm số'!$C$4:C247,'Bảng Theo dõi Điểm số'!C247)","v":"0"}]
[null,245,{"$f":"'Bảng Theo dõi Điểm số'!C248&COUNTIF('Bảng Theo dõi Điểm số'!$C$4:C248,'Bảng Theo dõi Điểm số'!C248)","v":"0"}]
[null,246,{"$f":"'Bảng Theo dõi Điểm số'!C249&COUNTIF('Bảng Theo dõi Điểm số'!$C$4:C249,'Bảng Theo dõi Điểm số'!C249)","v":"0"}]
[null,247,{"$f":"'Bảng Theo dõi Điểm số'!C250&COUNTIF('Bảng Theo dõi Điểm số'!$C$4:C250,'Bảng Theo dõi Điểm số'!C250)","v":"0"}]
[null,248,{"$f":"'Bảng Theo dõi Điểm số'!C251&COUNTIF('Bảng Theo dõi Điểm số'!$C$4:C251,'Bảng Theo dõi Điểm số'!C251)","v":"0"}]
[null,249,{"$f":"'Bảng Theo dõi Điểm số'!C252&COUNTIF('Bảng Theo dõi Điểm số'!$C$4:C252,'Bảng Theo dõi Điểm số'!C252)","v":"0"}]
[null,250,{"$f":"'Bảng Theo dõi Điểm số'!C253&COUNTIF('Bảng Theo dõi Điểm số'!$C$4:C253,'Bảng Theo dõi Điểm số'!C253)","v":"0"}]
[null,251,{"$f":"'Bảng Theo dõi Điểm số'!C254&COUNTIF('Bảng Theo dõi Điểm số'!$C$4:C254,'Bảng Theo dõi Điểm số'!C254)","v":"0"}]
[null,252,{"$f":"'Bảng Theo dõi Điểm số'!C255&COUNTIF('Bảng Theo dõi Điểm số'!$C$4:C255,'Bảng Theo dõi Điểm số'!C255)","v":"0"}]
[null,253,{"$f":"'Bảng Theo dõi Điểm số'!C256&COUNTIF('Bảng Theo dõi Điểm số'!$C$4:C256,'Bảng Theo dõi Điểm số'!C256)","v":"0"}]
[null,254,{"$f":"'Bảng Theo dõi Điểm số'!C257&COUNTIF('Bảng Theo dõi Điểm số'!$C$4:C257,'Bảng Theo dõi Điểm số'!C257)","v":"0"}]
[null,255,{"$f":"'Bảng Theo dõi Điểm số'!C258&COUNTIF('Bảng Theo dõi Điểm số'!$C$4:C258,'Bảng Theo dõi Điểm số'!C258)","v":"0"}]
[null,256,{"$f":"'Bảng Theo dõi Điểm số'!C259&COUNTIF('Bảng Theo dõi Điểm số'!$C$4:C259,'Bảng Theo dõi Điểm số'!C259)","v":"0"}]
[null,257,{"$f":"'Bảng Theo dõi Điểm số'!C260&COUNTIF('Bảng Theo dõi Điểm số'!$C$4:C260,'Bảng Theo dõi Điểm số'!C260)","v":"0"}]
[null,258,{"$f":"'Bảng Theo dõi Điểm số'!C261&COUNTIF('Bảng Theo dõi Điểm số'!$C$4:C261,'Bảng Theo dõi Điểm số'!C261)","v":"0"}]
[null,259,{"$f":"'Bảng Theo dõi Điểm số'!C262&COUNTIF('Bảng Theo dõi Điểm số'!$C$4:C262,'Bảng Theo dõi Điểm số'!C262)","v":"0"}]
[null,260,{"$f":"'Bảng Theo dõi Điểm số'!C263&COUNTIF('Bảng Theo dõi Điểm số'!$C$4:C263,'Bảng Theo dõi Điểm số'!C263)","v":"0"}]
[null,261,{"$f":"'Bảng Theo dõi Điểm số'!C264&COUNTIF('Bảng Theo dõi Điểm số'!$C$4:C264,'Bảng Theo dõi Điểm số'!C264)","v":"0"}]
[null,262,{"$f":"'Bảng Theo dõi Điểm số'!C265&COUNTIF('Bảng Theo dõi Điểm số'!$C$4:C265,'Bảng Theo dõi Điểm số'!C265)","v":"0"}]
[null,263,{"$f":"'Bảng Theo dõi Điểm số'!C266&COUNTIF('Bảng Theo dõi Điểm số'!$C$4:C266,'Bảng Theo dõi Điểm số'!C266)","v":"0"}]
[null,264,{"$f":"'Bảng Theo dõi Điểm số'!C267&COUNTIF('Bảng Theo dõi Điểm số'!$C$4:C267,'Bảng Theo dõi Điểm số'!C267)","v":"0"}]
[null,265,{"$f":"'Bảng Theo dõi Điểm số'!C268&COUNTIF('Bảng Theo dõi Điểm số'!$C$4:C268,'Bảng Theo dõi Điểm số'!C268)","v":"0"}]
[null,266,{"$f":"'Bảng Theo dõi Điểm số'!C269&COUNTIF('Bảng Theo dõi Điểm số'!$C$4:C269,'Bảng Theo dõi Điểm số'!C269)","v":"0"}]
[null,267,{"$f":"'Bảng Theo dõi Điểm số'!C270&COUNTIF('Bảng Theo dõi Điểm số'!$C$4:C270,'Bảng Theo dõi Điểm số'!C270)","v":"0"}]
[null,268,{"$f":"'Bảng Theo dõi Điểm số'!C271&COUNTIF('Bảng Theo dõi Điểm số'!$C$4:C271,'Bảng Theo dõi Điểm số'!C271)","v":"0"}]
[null,269,{"$f":"'Bảng Theo dõi Điểm số'!C272&COUNTIF('Bảng Theo dõi Điểm số'!$C$4:C272,'Bảng Theo dõi Điểm số'!C272)","v":"0"}]
[null,270,{"$f":"'Bảng Theo dõi Điểm số'!C273&COUNTIF('Bảng Theo dõi Điểm số'!$C$4:C273,'Bảng Theo dõi Điểm số'!C273)","v":"0"}]
[null,271,{"$f":"'Bảng Theo dõi Điểm số'!C274&COUNTIF('Bảng Theo dõi Điểm số'!$C$4:C274,'Bảng Theo dõi Điểm số'!C274)","v":"0"}]
[null,272,{"$f":"'Bảng Theo dõi Điểm số'!C275&COUNTIF('Bảng Theo dõi Điểm số'!$C$4:C275,'Bảng Theo dõi Điểm số'!C275)","v":"0"}]
[null,273,{"$f":"'Bảng Theo dõi Điểm số'!C276&COUNTIF('Bảng Theo dõi Điểm số'!$C$4:C276,'Bảng Theo dõi Điểm số'!C276)","v":"0"}]
[null,274,{"$f":"'Bảng Theo dõi Điểm số'!C277&COUNTIF('Bảng Theo dõi Điểm số'!$C$4:C277,'Bảng Theo dõi Điểm số'!C277)","v":"0"}]
[null,275,{"$f":"'Bảng Theo dõi Điểm số'!C278&COUNTIF('Bảng Theo dõi Điểm số'!$C$4:C278,'Bảng Theo dõi Điểm số'!C278)","v":"0"}]
[null,276,{"$f":"'Bảng Theo dõi Điểm số'!C279&COUNTIF('Bảng Theo dõi Điểm số'!$C$4:C279,'Bảng Theo dõi Điểm số'!C279)","v":"0"}]
[null,277,{"$f":"'Bảng Theo dõi Điểm số'!C280&COUNTIF('Bảng Theo dõi Điểm số'!$C$4:C280,'Bảng Theo dõi Điểm số'!C280)","v":"0"}]
[null,278,{"$f":"'Bảng Theo dõi Điểm số'!C281&COUNTIF('Bảng Theo dõi Điểm số'!$C$4:C281,'Bảng Theo dõi Điểm số'!C281)","v":"0"}]
[null,279,{"$f":"'Bảng Theo dõi Điểm số'!C282&COUNTIF('Bảng Theo dõi Điểm số'!$C$4:C282,'Bảng Theo dõi Điểm số'!C282)","v":"0"}]
[null,280,{"$f":"'Bảng Theo dõi Điểm số'!C283&COUNTIF('Bảng Theo dõi Điểm số'!$C$4:C283,'Bảng Theo dõi Điểm số'!C283)","v":"0"}]
[null,281,{"$f":"'Bảng Theo dõi Điểm số'!C284&COUNTIF('Bảng Theo dõi Điểm số'!$C$4:C284,'Bảng Theo dõi Điểm số'!C284)","v":"0"}]
[null,282,{"$f":"'Bảng Theo dõi Điểm số'!C285&COUNTIF('Bảng Theo dõi Điểm số'!$C$4:C285,'Bảng Theo dõi Điểm số'!C285)","v":"0"}]
[null,283,{"$f":"'Bảng Theo dõi Điểm số'!C286&COUNTIF('Bảng Theo dõi Điểm số'!$C$4:C286,'Bảng Theo dõi Điểm số'!C286)","v":"0"}]
[null,284,{"$f":"'Bảng Theo dõi Điểm số'!C287&COUNTIF('Bảng Theo dõi Điểm số'!$C$4:C287,'Bảng Theo dõi Điểm số'!C287)","v":"0"}]
[null,285,{"$f":"'Bảng Theo dõi Điểm số'!C288&COUNTIF('Bảng Theo dõi Điểm số'!$C$4:C288,'Bảng Theo dõi Điểm số'!C288)","v":"0"}]
[null,286,{"$f":"'Bảng Theo dõi Điểm số'!C289&COUNTIF('Bảng Theo dõi Điểm số'!$C$4:C289,'Bảng Theo dõi Điểm số'!C289)","v":"0"}]
[null,287,{"$f":"'Bảng Theo dõi Điểm số'!C290&COUNTIF('Bảng Theo dõi Điểm số'!$C$4:C290,'Bảng Theo dõi Điểm số'!C290)","v":"0"}]
[null,288,{"$f":"'Bảng Theo dõi Điểm số'!C291&COUNTIF('Bảng Theo dõi Điểm số'!$C$4:C291,'Bảng Theo dõi Điểm số'!C291)","v":"0"}]
[null,289,{"$f":"'Bảng Theo dõi Điểm số'!C292&COUNTIF('Bảng Theo dõi Điểm số'!$C$4:C292,'Bảng Theo dõi Điểm số'!C292)","v":"0"}]
[null,290,{"$f":"'Bảng Theo dõi Điểm số'!C293&COUNTIF('Bảng Theo dõi Điểm số'!$C$4:C293,'Bảng Theo dõi Điểm số'!C293)","v":"0"}]
[null,291,{"$f":"'Bảng Theo dõi Điểm số'!C294&COUNTIF('Bảng Theo dõi Điểm số'!$C$4:C294,'Bảng Theo dõi Điểm số'!C294)","v":"0"}]
[null,292,{"$f":"'Bảng Theo dõi Điểm số'!C295&COUNTIF('Bảng Theo dõi Điểm số'!$C$4:C295,'Bảng Theo dõi Điểm số'!C295)","v":"0"}]
[null,293,{"$f":"'Bảng Theo dõi Điểm số'!C296&COUNTIF('Bảng Theo dõi Điểm số'!$C$4:C296,'Bảng Theo dõi Điểm số'!C296)","v":"0"}]
[null,294,{"$f":"'Bảng Theo dõi Điểm số'!C297&COUNTIF('Bảng Theo dõi Điểm số'!$C$4:C297,'Bảng Theo dõi Điểm số'!C297)","v":"0"}]
[null,295,{"$f":"'Bảng Theo dõi Điểm số'!C298&COUNTIF('Bảng Theo dõi Điểm số'!$C$4:C298,'Bảng Theo dõi Điểm số'!C298)","v":"0"}]
[null,296,{"$f":"'Bảng Theo dõi Điểm số'!C299&COUNTIF('Bảng Theo dõi Điểm số'!$C$4:C299,'Bảng Theo dõi Điểm số'!C299)","v":"0"}]
[null,297,{"$f":"'Bảng Theo dõi Điểm số'!C300&COUNTIF('Bảng Theo dõi Điểm số'!$C$4:C300,'Bảng Theo dõi Điểm số'!C300)","v":"0"}]
[null,298,{"$f":"'Bảng Theo dõi Điểm số'!C301&COUNTIF('Bảng Theo dõi Điểm số'!$C$4:C301,'Bảng Theo dõi Điểm số'!C301)","v":"0"}]
[null,299,{"$f":"'Bảng Theo dõi Điểm số'!C302&COUNTIF('Bảng Theo dõi Điểm số'!$C$4:C302,'Bảng Theo dõi Điểm số'!C302)","v":"0"}]
[null,300,{"$f":"'Bảng Theo dõi Điểm số'!C303&COUNTIF('Bảng Theo dõi Điểm số'!$C$4:C303,'Bảng Theo dõi Điểm số'!C303)","v":"0"}]
[null,301,{"$f":"'Bảng Theo dõi Điểm số'!C304&COUNTIF('Bảng Theo dõi Điểm số'!$C$4:C304,'Bảng Theo dõi Điểm số'!C304)","v":"0"}]
[null,302,{"$f":"'Bảng Theo dõi Điểm số'!C305&COUNTIF('Bảng Theo dõi Điểm số'!$C$4:C305,'Bảng Theo dõi Điểm số'!C305)","v":"0"}]
[null,303,{"$f":"'Bảng Theo dõi Điểm số'!C306&COUNTIF('Bảng Theo dõi Điểm số'!$C$4:C306,'Bảng Theo dõi Điểm số'!C306)","v":"0"}]
[null,304,{"$f":"'Bảng Theo dõi Điểm số'!C307&COUNTIF('Bảng Theo dõi Điểm số'!$C$4:C307,'Bảng Theo dõi Điểm số'!C307)","v":"0"}]
[null,305,{"$f":"'Bảng Theo dõi Điểm số'!C308&COUNTIF('Bảng Theo dõi Điểm số'!$C$4:C308,'Bảng Theo dõi Điểm số'!C308)","v":"0"}]
[null,306,{"$f":"'Bảng Theo dõi Điểm số'!C309&COUNTIF('Bảng Theo dõi Điểm số'!$C$4:C309,'Bảng Theo dõi Điểm số'!C309)","v":"0"}]
[null,307,{"$f":"'Bảng Theo dõi Điểm số'!C310&COUNTIF('Bảng Theo dõi Điểm số'!$C$4:C310,'Bảng Theo dõi Điểm số'!C310)","v":"0"}]
[null,308,{"$f":"'Bảng Theo dõi Điểm số'!C311&COUNTIF('Bảng Theo dõi Điểm số'!$C$4:C311,'Bảng Theo dõi Điểm số'!C311)","v":"0"}]
[null,309,{"$f":"'Bảng Theo dõi Điểm số'!C312&COUNTIF('Bảng Theo dõi Điểm số'!$C$4:C312,'Bảng Theo dõi Điểm số'!C312)","v":"0"}]
[null,310,{"$f":"'Bảng Theo dõi Điểm số'!C313&COUNTIF('Bảng Theo dõi Điểm số'!$C$4:C313,'Bảng Theo dõi Điểm số'!C313)","v":"0"}]
[null,311,{"$f":"'Bảng Theo dõi Điểm số'!C314&COUNTIF('Bảng Theo dõi Điểm số'!$C$4:C314,'Bảng Theo dõi Điểm số'!C314)","v":"0"}]
[null,312,{"$f":"'Bảng Theo dõi Điểm số'!C315&COUNTIF('Bảng Theo dõi Điểm số'!$C$4:C315,'Bảng Theo dõi Điểm số'!C315)","v":"0"}]
[null,313,{"$f":"'Bảng Theo dõi Điểm số'!C316&COUNTIF('Bảng Theo dõi Điểm số'!$C$4:C316,'Bảng Theo dõi Điểm số'!C316)","v":"0"}]
[null,314,{"$f":"'Bảng Theo dõi Điểm số'!C317&COUNTIF('Bảng Theo dõi Điểm số'!$C$4:C317,'Bảng Theo dõi Điểm số'!C317)","v":"0"}]
[null,315,{"$f":"'Bảng Theo dõi Điểm số'!C318&COUNTIF('Bảng Theo dõi Điểm số'!$C$4:C318,'Bảng Theo dõi Điểm số'!C318)","v":"0"}]
[null,316,{"$f":"'Bảng Theo dõi Điểm số'!C319&COUNTIF('Bảng Theo dõi Điểm số'!$C$4:C319,'Bảng Theo dõi Điểm số'!C319)","v":"0"}]
[null,317,{"$f":"'Bảng Theo dõi Điểm số'!C320&COUNTIF('Bảng Theo dõi Điểm số'!$C$4:C320,'Bảng Theo dõi Điểm số'!C320)","v":"0"}]
[null,318,{"$f":"'Bảng Theo dõi Điểm số'!C321&COUNTIF('Bảng Theo dõi Điểm số'!$C$4:C321,'Bảng Theo dõi Điểm số'!C321)","v":"0"}]
[null,319,{"$f":"'Bảng Theo dõi Điểm số'!C322&COUNTIF('Bảng Theo dõi Điểm số'!$C$4:C322,'Bảng Theo dõi Điểm số'!C322)","v":"0"}]
[null,320,{"$f":"'Bảng Theo dõi Điểm số'!C323&COUNTIF('Bảng Theo dõi Điểm số'!$C$4:C323,'Bảng Theo dõi Điểm số'!C323)","v":"0"}]
[null,321,{"$f":"'Bảng Theo dõi Điểm số'!C324&COUNTIF('Bảng Theo dõi Điểm số'!$C$4:C324,'Bảng Theo dõi Điểm số'!C324)","v":"0"}]
[null,322,{"$f":"'Bảng Theo dõi Điểm số'!C325&COUNTIF('Bảng Theo dõi Điểm số'!$C$4:C325,'Bảng Theo dõi Điểm số'!C325)","v":"0"}]
[null,323,{"$f":"'Bảng Theo dõi Điểm số'!C326&COUNTIF('Bảng Theo dõi Điểm số'!$C$4:C326,'Bảng Theo dõi Điểm số'!C326)","v":"0"}]
[null,324,{"$f":"'Bảng Theo dõi Điểm số'!C327&COUNTIF('Bảng Theo dõi Điểm số'!$C$4:C327,'Bảng Theo dõi Điểm số'!C327)","v":"0"}]
[null,325,{"$f":"'Bảng Theo dõi Điểm số'!C328&COUNTIF('Bảng Theo dõi Điểm số'!$C$4:C328,'Bảng Theo dõi Điểm số'!C328)","v":"0"}]
[null,326,{"$f":"'Bảng Theo dõi Điểm số'!C329&COUNTIF('Bảng Theo dõi Điểm số'!$C$4:C329,'Bảng Theo dõi Điểm số'!C329)","v":"0"}]
[null,327,{"$f":"'Bảng Theo dõi Điểm số'!C330&COUNTIF('Bảng Theo dõi Điểm số'!$C$4:C330,'Bảng Theo dõi Điểm số'!C330)","v":"0"}]
[null,328,{"$f":"'Bảng Theo dõi Điểm số'!C331&COUNTIF('Bảng Theo dõi Điểm số'!$C$4:C331,'Bảng Theo dõi Điểm số'!C331)","v":"0"}]
[null,329,{"$f":"'Bảng Theo dõi Điểm số'!C332&COUNTIF('Bảng Theo dõi Điểm số'!$C$4:C332,'Bảng Theo dõi Điểm số'!C332)","v":"0"}]
[null,330,{"$f":"'Bảng Theo dõi Điểm số'!C333&COUNTIF('Bảng Theo dõi Điểm số'!$C$4:C333,'Bảng Theo dõi Điểm số'!C333)","v":"0"}]
[null,331,{"$f":"'Bảng Theo dõi Điểm số'!C334&COUNTIF('Bảng Theo dõi Điểm số'!$C$4:C334,'Bảng Theo dõi Điểm số'!C334)","v":"0"}]
[null,332,{"$f":"'Bảng Theo dõi Điểm số'!C335&COUNTIF('Bảng Theo dõi Điểm số'!$C$4:C335,'Bảng Theo dõi Điểm số'!C335)","v":"0"}]
[null,333,{"$f":"'Bảng Theo dõi Điểm số'!C336&COUNTIF('Bảng Theo dõi Điểm số'!$C$4:C336,'Bảng Theo dõi Điểm số'!C336)","v":"0"}]
[null,334,{"$f":"'Bảng Theo dõi Điểm số'!C337&COUNTIF('Bảng Theo dõi Điểm số'!$C$4:C337,'Bảng Theo dõi Điểm số'!C337)","v":"0"}]
[null,335,{"$f":"'Bảng Theo dõi Điểm số'!C338&COUNTIF('Bảng Theo dõi Điểm số'!$C$4:C338,'Bảng Theo dõi Điểm số'!C338)","v":"0"}]
[null,336,{"$f":"'Bảng Theo dõi Điểm số'!C339&COUNTIF('Bảng Theo dõi Điểm số'!$C$4:C339,'Bảng Theo dõi Điểm số'!C339)","v":"0"}]
[null,337,{"$f":"'Bảng Theo dõi Điểm số'!C340&COUNTIF('Bảng Theo dõi Điểm số'!$C$4:C340,'Bảng Theo dõi Điểm số'!C340)","v":"0"}]
[null,338,{"$f":"'Bảng Theo dõi Điểm số'!C341&COUNTIF('Bảng Theo dõi Điểm số'!$C$4:C341,'Bảng Theo dõi Điểm số'!C341)","v":"0"}]
[null,339,{"$f":"'Bảng Theo dõi Điểm số'!C342&COUNTIF('Bảng Theo dõi Điểm số'!$C$4:C342,'Bảng Theo dõi Điểm số'!C342)","v":"0"}]
[null,340,{"$f":"'Bảng Theo dõi Điểm số'!C343&COUNTIF('Bảng Theo dõi Điểm số'!$C$4:C343,'Bảng Theo dõi Điểm số'!C343)","v":"0"}]
[null,341,{"$f":"'Bảng Theo dõi Điểm số'!C344&COUNTIF('Bảng Theo dõi Điểm số'!$C$4:C344,'Bảng Theo dõi Điểm số'!C344)","v":"0"}]
[null,342,{"$f":"'Bảng Theo dõi Điểm số'!C345&COUNTIF('Bảng Theo dõi Điểm số'!$C$4:C345,'Bảng Theo dõi Điểm số'!C345)","v":"0"}]
[null,343,{"$f":"'Bảng Theo dõi Điểm số'!C346&COUNTIF('Bảng Theo dõi Điểm số'!$C$4:C346,'Bảng Theo dõi Điểm số'!C346)","v":"0"}]
[null,344,{"$f":"'Bảng Theo dõi Điểm số'!C347&COUNTIF('Bảng Theo dõi Điểm số'!$C$4:C347,'Bảng Theo dõi Điểm số'!C347)","v":"0"}]
[null,345,{"$f":"'Bảng Theo dõi Điểm số'!C348&COUNTIF('Bảng Theo dõi Điểm số'!$C$4:C348,'Bảng Theo dõi Điểm số'!C348)","v":"0"}]
[null,346,{"$f":"'Bảng Theo dõi Điểm số'!C349&COUNTIF('Bảng Theo dõi Điểm số'!$C$4:C349,'Bảng Theo dõi Điểm số'!C349)","v":"0"}]
[null,347,{"$f":"'Bảng Theo dõi Điểm số'!C350&COUNTIF('Bảng Theo dõi Điểm số'!$C$4:C350,'Bảng Theo dõi Điểm số'!C350)","v":"0"}]
[null,348,{"$f":"'Bảng Theo dõi Điểm số'!C351&COUNTIF('Bảng Theo dõi Điểm số'!$C$4:C351,'Bảng Theo dõi Điểm số'!C351)","v":"0"}]
[null,349,{"$f":"'Bảng Theo dõi Điểm số'!C352&COUNTIF('Bảng Theo dõi Điểm số'!$C$4:C352,'Bảng Theo dõi Điểm số'!C352)","v":"0"}]
[null,350,{"$f":"'Bảng Theo dõi Điểm số'!C353&COUNTIF('Bảng Theo dõi Điểm số'!$C$4:C353,'Bảng Theo dõi Điểm số'!C353)","v":"0"}]
[null,351,{"$f":"'Bảng Theo dõi Điểm số'!C354&COUNTIF('Bảng Theo dõi Điểm số'!$C$4:C354,'Bảng Theo dõi Điểm số'!C354)","v":"0"}]
[null,352,{"$f":"'Bảng Theo dõi Điểm số'!C355&COUNTIF('Bảng Theo dõi Điểm số'!$C$4:C355,'Bảng Theo dõi Điểm số'!C355)","v":"0"}]
[null,353,{"$f":"'Bảng Theo dõi Điểm số'!C356&COUNTIF('Bảng Theo dõi Điểm số'!$C$4:C356,'Bảng Theo dõi Điểm số'!C356)","v":"0"}]
[null,354,{"$f":"'Bảng Theo dõi Điểm số'!C357&COUNTIF('Bảng Theo dõi Điểm số'!$C$4:C357,'Bảng Theo dõi Điểm số'!C357)","v":"0"}]
[null,355,{"$f":"'Bảng Theo dõi Điểm số'!C358&COUNTIF('Bảng Theo dõi Điểm số'!$C$4:C358,'Bảng Theo dõi Điểm số'!C358)","v":"0"}]
[null,356,{"$f":"'Bảng Theo dõi Điểm số'!C359&COUNTIF('Bảng Theo dõi Điểm số'!$C$4:C359,'Bảng Theo dõi Điểm số'!C359)","v":"0"}]
[null,357,{"$f":"'Bảng Theo dõi Điểm số'!C360&COUNTIF('Bảng Theo dõi Điểm số'!$C$4:C360,'Bảng Theo dõi Điểm số'!C360)","v":"0"}]
[null,358,{"$f":"'Bảng Theo dõi Điểm số'!C361&COUNTIF('Bảng Theo dõi Điểm số'!$C$4:C361,'Bảng Theo dõi Điểm số'!C361)","v":"0"}]
[null,359,{"$f":"'Bảng Theo dõi Điểm số'!C362&COUNTIF('Bảng Theo dõi Điểm số'!$C$4:C362,'Bảng Theo dõi Điểm số'!C362)","v":"0"}]
[null,360,{"$f":"'Bảng Theo dõi Điểm số'!C363&COUNTIF('Bảng Theo dõi Điểm số'!$C$4:C363,'Bảng Theo dõi Điểm số'!C363)","v":"0"}]
[null,361,{"$f":"'Bảng Theo dõi Điểm số'!C364&COUNTIF('Bảng Theo dõi Điểm số'!$C$4:C364,'Bảng Theo dõi Điểm số'!C364)","v":"0"}]
[null,362,{"$f":"'Bảng Theo dõi Điểm số'!C365&COUNTIF('Bảng Theo dõi Điểm số'!$C$4:C365,'Bảng Theo dõi Điểm số'!C365)","v":"0"}]
[null,363,{"$f":"'Bảng Theo dõi Điểm số'!C366&COUNTIF('Bảng Theo dõi Điểm số'!$C$4:C366,'Bảng Theo dõi Điểm số'!C366)","v":"0"}]
[null,364,{"$f":"'Bảng Theo dõi Điểm số'!C367&COUNTIF('Bảng Theo dõi Điểm số'!$C$4:C367,'Bảng Theo dõi Điểm số'!C367)","v":"0"}]
[null,365,{"$f":"'Bảng Theo dõi Điểm số'!C368&COUNTIF('Bảng Theo dõi Điểm số'!$C$4:C368,'Bảng Theo dõi Điểm số'!C368)","v":"0"}]
[null,366,{"$f":"'Bảng Theo dõi Điểm số'!C369&COUNTIF('Bảng Theo dõi Điểm số'!$C$4:C369,'Bảng Theo dõi Điểm số'!C369)","v":"0"}]
[null,367,{"$f":"'Bảng Theo dõi Điểm số'!C370&COUNTIF('Bảng Theo dõi Điểm số'!$C$4:C370,'Bảng Theo dõi Điểm số'!C370)","v":"0"}]
[null,368,{"$f":"'Bảng Theo dõi Điểm số'!C371&COUNTIF('Bảng Theo dõi Điểm số'!$C$4:C371,'Bảng Theo dõi Điểm số'!C371)","v":"0"}]
[null,369,{"$f":"'Bảng Theo dõi Điểm số'!C372&COUNTIF('Bảng Theo dõi Điểm số'!$C$4:C372,'Bảng Theo dõi Điểm số'!C372)","v":"0"}]
[null,370,{"$f":"'Bảng Theo dõi Điểm số'!C373&COUNTIF('Bảng Theo dõi Điểm số'!$C$4:C373,'Bảng Theo dõi Điểm số'!C373)","v":"0"}]
[null,371,{"$f":"'Bảng Theo dõi Điểm số'!C374&COUNTIF('Bảng Theo dõi Điểm số'!$C$4:C374,'Bảng Theo dõi Điểm số'!C374)","v":"0"}]
[null,372,{"$f":"'Bảng Theo dõi Điểm số'!C375&COUNTIF('Bảng Theo dõi Điểm số'!$C$4:C375,'Bảng Theo dõi Điểm số'!C375)","v":"0"}]
[null,373,{"$f":"'Bảng Theo dõi Điểm số'!C376&COUNTIF('Bảng Theo dõi Điểm số'!$C$4:C376,'Bảng Theo dõi Điểm số'!C376)","v":"0"}]
[null,374,{"$f":"'Bảng Theo dõi Điểm số'!C377&COUNTIF('Bảng Theo dõi Điểm số'!$C$4:C377,'Bảng Theo dõi Điểm số'!C377)","v":"0"}]
[null,375,{"$f":"'Bảng Theo dõi Điểm số'!C378&COUNTIF('Bảng Theo dõi Điểm số'!$C$4:C378,'Bảng Theo dõi Điểm số'!C378)","v":"0"}]
[null,376,{"$f":"'Bảng Theo dõi Điểm số'!C379&COUNTIF('Bảng Theo dõi Điểm số'!$C$4:C379,'Bảng Theo dõi Điểm số'!C379)","v":"0"}]
[null,377,{"$f":"'Bảng Theo dõi Điểm số'!C380&COUNTIF('Bảng Theo dõi Điểm số'!$C$4:C380,'Bảng Theo dõi Điểm số'!C380)","v":"0"}]
[null,378,{"$f":"'Bảng Theo dõi Điểm số'!C381&COUNTIF('Bảng Theo dõi Điểm số'!$C$4:C381,'Bảng Theo dõi Điểm số'!C381)","v":"0"}]
[null,379,{"$f":"'Bảng Theo dõi Điểm số'!C382&COUNTIF('Bảng Theo dõi Điểm số'!$C$4:C382,'Bảng Theo dõi Điểm số'!C382)","v":"0"}]
[null,380,{"$f":"'Bảng Theo dõi Điểm số'!C383&COUNTIF('Bảng Theo dõi Điểm số'!$C$4:C383,'Bảng Theo dõi Điểm số'!C383)","v":"0"}]
[null,381,{"$f":"'Bảng Theo dõi Điểm số'!C384&COUNTIF('Bảng Theo dõi Điểm số'!$C$4:C384,'Bảng Theo dõi Điểm số'!C384)","v":"0"}]
[null,382,{"$f":"'Bảng Theo dõi Điểm số'!C385&COUNTIF('Bảng Theo dõi Điểm số'!$C$4:C385,'Bảng Theo dõi Điểm số'!C385)","v":"0"}]
[null,383,{"$f":"'Bảng Theo dõi Điểm số'!C386&COUNTIF('Bảng Theo dõi Điểm số'!$C$4:C386,'Bảng Theo dõi Điểm số'!C386)","v":"0"}]
[null,384,{"$f":"'Bảng Theo dõi Điểm số'!C387&COUNTIF('Bảng Theo dõi Điểm số'!$C$4:C387,'Bảng Theo dõi Điểm số'!C387)","v":"0"}]
[null,385,{"$f":"'Bảng Theo dõi Điểm số'!C388&COUNTIF('Bảng Theo dõi Điểm số'!$C$4:C388,'Bảng Theo dõi Điểm số'!C388)","v":"0"}]
[null,386,{"$f":"'Bảng Theo dõi Điểm số'!C389&COUNTIF('Bảng Theo dõi Điểm số'!$C$4:C389,'Bảng Theo dõi Điểm số'!C389)","v":"0"}]
[null,387,{"$f":"'Bảng Theo dõi Điểm số'!C390&COUNTIF('Bảng Theo dõi Điểm số'!$C$4:C390,'Bảng Theo dõi Điểm số'!C390)","v":"0"}]
[null,388,{"$f":"'Bảng Theo dõi Điểm số'!C391&COUNTIF('Bảng Theo dõi Điểm số'!$C$4:C391,'Bảng Theo dõi Điểm số'!C391)","v":"0"}]
[null,389,{"$f":"'Bảng Theo dõi Điểm số'!C392&COUNTIF('Bảng Theo dõi Điểm số'!$C$4:C392,'Bảng Theo dõi Điểm số'!C392)","v":"0"}]
[null,390,{"$f":"'Bảng Theo dõi Điểm số'!C393&COUNTIF('Bảng Theo dõi Điểm số'!$C$4:C393,'Bảng Theo dõi Điểm số'!C393)","v":"0"}]
[null,391,{"$f":"'Bảng Theo dõi Điểm số'!C394&COUNTIF('Bảng Theo dõi Điểm số'!$C$4:C394,'Bảng Theo dõi Điểm số'!C394)","v":"0"}]
[null,392,{"$f":"'Bảng Theo dõi Điểm số'!C395&COUNTIF('Bảng Theo dõi Điểm số'!$C$4:C395,'Bảng Theo dõi Điểm số'!C395)","v":"0"}]
[null,393,{"$f":"'Bảng Theo dõi Điểm số'!C396&COUNTIF('Bảng Theo dõi Điểm số'!$C$4:C396,'Bảng Theo dõi Điểm số'!C396)","v":"0"}]
[null,394,{"$f":"'Bảng Theo dõi Điểm số'!C397&COUNTIF('Bảng Theo dõi Điểm số'!$C$4:C397,'Bảng Theo dõi Điểm số'!C397)","v":"0"}]
[null,395,{"$f":"'Bảng Theo dõi Điểm số'!C398&COUNTIF('Bảng Theo dõi Điểm số'!$C$4:C398,'Bảng Theo dõi Điểm số'!C398)","v":"0"}]
[null,396,{"$f":"'Bảng Theo dõi Điểm số'!C399&COUNTIF('Bảng Theo dõi Điểm số'!$C$4:C399,'Bảng Theo dõi Điểm số'!C399)","v":"0"}]
[null,397,{"$f":"'Bảng Theo dõi Điểm số'!C400&COUNTIF('Bảng Theo dõi Điểm số'!$C$4:C400,'Bảng Theo dõi Điểm số'!C400)","v":"0"}]
[null,398,{"$f":"'Bảng Theo dõi Điểm số'!C401&COUNTIF('Bảng Theo dõi Điểm số'!$C$4:C401,'Bảng Theo dõi Điểm số'!C401)","v":"0"}]
[null,399,{"$f":"'Bảng Theo dõi Điểm số'!C402&COUNTIF('Bảng Theo dõi Điểm số'!$C$4:C402,'Bảng Theo dõi Điểm số'!C402)","v":"0"}]
[null,400,{"$f":"'Bảng Theo dõi Điểm số'!C403&COUNTIF('Bảng Theo dõi Điểm số'!$C$4:C403,'Bảng Theo dõi Điểm số'!C403)","v":"0"}]
[null,401,{"$f":"'Bảng Theo dõi Điểm số'!C404&COUNTIF('Bảng Theo dõi Điểm số'!$C$4:C404,'Bảng Theo dõi Điểm số'!C404)","v":"0"}]
[null,402,{"$f":"'Bảng Theo dõi Điểm số'!C405&COUNTIF('Bảng Theo dõi Điểm số'!$C$4:C405,'Bảng Theo dõi Điểm số'!C405)","v":"0"}]
[null,403,{"$f":"'Bảng Theo dõi Điểm số'!C406&COUNTIF('Bảng Theo dõi Điểm số'!$C$4:C406,'Bảng Theo dõi Điểm số'!C406)","v":"0"}]
[null,404,{"$f":"'Bảng Theo dõi Điểm số'!C407&COUNTIF('Bảng Theo dõi Điểm số'!$C$4:C407,'Bảng Theo dõi Điểm số'!C407)","v":"0"}]
[null,405,{"$f":"'Bảng Theo dõi Điểm số'!C408&COUNTIF('Bảng Theo dõi Điểm số'!$C$4:C408,'Bảng Theo dõi Điểm số'!C408)","v":"0"}]
[null,406,{"$f":"'Bảng Theo dõi Điểm số'!C409&COUNTIF('Bảng Theo dõi Điểm số'!$C$4:C409,'Bảng Theo dõi Điểm số'!C409)","v":"0"}]
[null,407,{"$f":"'Bảng Theo dõi Điểm số'!C410&COUNTIF('Bảng Theo dõi Điểm số'!$C$4:C410,'Bảng Theo dõi Điểm số'!C410)","v":"0"}]
[null,408,{"$f":"'Bảng Theo dõi Điểm số'!C411&COUNTIF('Bảng Theo dõi Điểm số'!$C$4:C411,'Bảng Theo dõi Điểm số'!C411)","v":"0"}]
[null,409,{"$f":"'Bảng Theo dõi Điểm số'!C412&COUNTIF('Bảng Theo dõi Điểm số'!$C$4:C412,'Bảng Theo dõi Điểm số'!C412)","v":"0"}]
[null,410,{"$f":"'Bảng Theo dõi Điểm số'!C413&COUNTIF('Bảng Theo dõi Điểm số'!$C$4:C413,'Bảng Theo dõi Điểm số'!C413)","v":"0"}]
[null,411,{"$f":"'Bảng Theo dõi Điểm số'!C414&COUNTIF('Bảng Theo dõi Điểm số'!$C$4:C414,'Bảng Theo dõi Điểm số'!C414)","v":"0"}]
[null,412,{"$f":"'Bảng Theo dõi Điểm số'!C415&COUNTIF('Bảng Theo dõi Điểm số'!$C$4:C415,'Bảng Theo dõi Điểm số'!C415)","v":"0"}]
[null,413,{"$f":"'Bảng Theo dõi Điểm số'!C416&COUNTIF('Bảng Theo dõi Điểm số'!$C$4:C416,'Bảng Theo dõi Điểm số'!C416)","v":"0"}]
[null,414,{"$f":"'Bảng Theo dõi Điểm số'!C417&COUNTIF('Bảng Theo dõi Điểm số'!$C$4:C417,'Bảng Theo dõi Điểm số'!C417)","v":"0"}]
[null,415,{"$f":"'Bảng Theo dõi Điểm số'!C418&COUNTIF('Bảng Theo dõi Điểm số'!$C$4:C418,'Bảng Theo dõi Điểm số'!C418)","v":"0"}]
[null,416,{"$f":"'Bảng Theo dõi Điểm số'!C419&COUNTIF('Bảng Theo dõi Điểm số'!$C$4:C419,'Bảng Theo dõi Điểm số'!C419)","v":"0"}]
[null,417,{"$f":"'Bảng Theo dõi Điểm số'!C420&COUNTIF('Bảng Theo dõi Điểm số'!$C$4:C420,'Bảng Theo dõi Điểm số'!C420)","v":"0"}]
[null,418,{"$f":"'Bảng Theo dõi Điểm số'!C421&COUNTIF('Bảng Theo dõi Điểm số'!$C$4:C421,'Bảng Theo dõi Điểm số'!C421)","v":"0"}]
[null,419,{"$f":"'Bảng Theo dõi Điểm số'!C422&COUNTIF('Bảng Theo dõi Điểm số'!$C$4:C422,'Bảng Theo dõi Điểm số'!C422)","v":"0"}]
[null,420,{"$f":"'Bảng Theo dõi Điểm số'!C423&COUNTIF('Bảng Theo dõi Điểm số'!$C$4:C423,'Bảng Theo dõi Điểm số'!C423)","v":"0"}]
[null,421,{"$f":"'Bảng Theo dõi Điểm số'!C424&COUNTIF('Bảng Theo dõi Điểm số'!$C$4:C424,'Bảng Theo dõi Điểm số'!C424)","v":"0"}]
[null,422,{"$f":"'Bảng Theo dõi Điểm số'!C425&COUNTIF('Bảng Theo dõi Điểm số'!$C$4:C425,'Bảng Theo dõi Điểm số'!C425)","v":"0"}]
[null,423,{"$f":"'Bảng Theo dõi Điểm số'!C426&COUNTIF('Bảng Theo dõi Điểm số'!$C$4:C426,'Bảng Theo dõi Điểm số'!C426)","v":"0"}]
[null,424,{"$f":"'Bảng Theo dõi Điểm số'!C427&COUNTIF('Bảng Theo dõi Điểm số'!$C$4:C427,'Bảng Theo dõi Điểm số'!C427)","v":"0"}]
[null,425,{"$f":"'Bảng Theo dõi Điểm số'!C428&COUNTIF('Bảng Theo dõi Điểm số'!$C$4:C428,'Bảng Theo dõi Điểm số'!C428)","v":"0"}]
[null,426,{"$f":"'Bảng Theo dõi Điểm số'!C429&COUNTIF('Bảng Theo dõi Điểm số'!$C$4:C429,'Bảng Theo dõi Điểm số'!C429)","v":"0"}]
[null,427,{"$f":"'Bảng Theo dõi Điểm số'!C430&COUNTIF('Bảng Theo dõi Điểm số'!$C$4:C430,'Bảng Theo dõi Điểm số'!C430)","v":"0"}]
[null,428,{"$f":"'Bảng Theo dõi Điểm số'!C431&COUNTIF('Bảng Theo dõi Điểm số'!$C$4:C431,'Bảng Theo dõi Điểm số'!C431)","v":"0"}]
[null,429,{"$f":"'Bảng Theo dõi Điểm số'!C432&COUNTIF('Bảng Theo dõi Điểm số'!$C$4:C432,'Bảng Theo dõi Điểm số'!C432)","v":"0"}]
[null,430,{"$f":"'Bảng Theo dõi Điểm số'!C433&COUNTIF('Bảng Theo dõi Điểm số'!$C$4:C433,'Bảng Theo dõi Điểm số'!C433)","v":"0"}]
[null,431,{"$f":"'Bảng Theo dõi Điểm số'!C434&COUNTIF('Bảng Theo dõi Điểm số'!$C$4:C434,'Bảng Theo dõi Điểm số'!C434)","v":"0"}]
[null,432,{"$f":"'Bảng Theo dõi Điểm số'!C435&COUNTIF('Bảng Theo dõi Điểm số'!$C$4:C435,'Bảng Theo dõi Điểm số'!C435)","v":"0"}]
[null,433,{"$f":"'Bảng Theo dõi Điểm số'!C436&COUNTIF('Bảng Theo dõi Điểm số'!$C$4:C436,'Bảng Theo dõi Điểm số'!C436)","v":"0"}]
[null,434,{"$f":"'Bảng Theo dõi Điểm số'!C437&COUNTIF('Bảng Theo dõi Điểm số'!$C$4:C437,'Bảng Theo dõi Điểm số'!C437)","v":"0"}]
[null,435,{"$f":"'Bảng Theo dõi Điểm số'!C438&COUNTIF('Bảng Theo dõi Điểm số'!$C$4:C438,'Bảng Theo dõi Điểm số'!C438)","v":"0"}]
[null,436,{"$f":"'Bảng Theo dõi Điểm số'!C439&COUNTIF('Bảng Theo dõi Điểm số'!$C$4:C439,'Bảng Theo dõi Điểm số'!C439)","v":"0"}]
[null,437,{"$f":"'Bảng Theo dõi Điểm số'!C440&COUNTIF('Bảng Theo dõi Điểm số'!$C$4:C440,'Bảng Theo dõi Điểm số'!C440)","v":"0"}]
[null,438,{"$f":"'Bảng Theo dõi Điểm số'!C441&COUNTIF('Bảng Theo dõi Điểm số'!$C$4:C441,'Bảng Theo dõi Điểm số'!C441)","v":"0"}]
[null,439,{"$f":"'Bảng Theo dõi Điểm số'!C442&COUNTIF('Bảng Theo dõi Điểm số'!$C$4:C442,'Bảng Theo dõi Điểm số'!C442)","v":"0"}]
[null,440,{"$f":"'Bảng Theo dõi Điểm số'!C443&COUNTIF('Bảng Theo dõi Điểm số'!$C$4:C443,'Bảng Theo dõi Điểm số'!C443)","v":"0"}]
[null,441,{"$f":"'Bảng Theo dõi Điểm số'!C444&COUNTIF('Bảng Theo dõi Điểm số'!$C$4:C444,'Bảng Theo dõi Điểm số'!C444)","v":"0"}]
[null,442,{"$f":"'Bảng Theo dõi Điểm số'!C445&COUNTIF('Bảng Theo dõi Điểm số'!$C$4:C445,'Bảng Theo dõi Điểm số'!C445)","v":"0"}]
[null,443,{"$f":"'Bảng Theo dõi Điểm số'!C446&COUNTIF('Bảng Theo dõi Điểm số'!$C$4:C446,'Bảng Theo dõi Điểm số'!C446)","v":"0"}]
[null,444,{"$f":"'Bảng Theo dõi Điểm số'!C447&COUNTIF('Bảng Theo dõi Điểm số'!$C$4:C447,'Bảng Theo dõi Điểm số'!C447)","v":"0"}]
[null,445,{"$f":"'Bảng Theo dõi Điểm số'!C448&COUNTIF('Bảng Theo dõi Điểm số'!$C$4:C448,'Bảng Theo dõi Điểm số'!C448)","v":"0"}]
[null,446,{"$f":"'Bảng Theo dõi Điểm số'!C449&COUNTIF('Bảng Theo dõi Điểm số'!$C$4:C449,'Bảng Theo dõi Điểm số'!C449)","v":"0"}]
[null,447,{"$f":"'Bảng Theo dõi Điểm số'!C450&COUNTIF('Bảng Theo dõi Điểm số'!$C$4:C450,'Bảng Theo dõi Điểm số'!C450)","v":"0"}]
[null,448,{"$f":"'Bảng Theo dõi Điểm số'!C451&COUNTIF('Bảng Theo dõi Điểm số'!$C$4:C451,'Bảng Theo dõi Điểm số'!C451)","v":"0"}]
[null,449,{"$f":"'Bảng Theo dõi Điểm số'!C452&COUNTIF('Bảng Theo dõi Điểm số'!$C$4:C452,'Bảng Theo dõi Điểm số'!C452)","v":"0"}]
[null,450,{"$f":"'Bảng Theo dõi Điểm số'!C453&COUNTIF('Bảng Theo dõi Điểm số'!$C$4:C453,'Bảng Theo dõi Điểm số'!C453)","v":"0"}]
[null,451,{"$f":"'Bảng Theo dõi Điểm số'!C454&COUNTIF('Bảng Theo dõi Điểm số'!$C$4:C454,'Bảng Theo dõi Điểm số'!C454)","v":"0"}]
[null,452,{"$f":"'Bảng Theo dõi Điểm số'!C455&COUNTIF('Bảng Theo dõi Điểm số'!$C$4:C455,'Bảng Theo dõi Điểm số'!C455)","v":"0"}]
[null,453,{"$f":"'Bảng Theo dõi Điểm số'!C456&COUNTIF('Bảng Theo dõi Điểm số'!$C$4:C456,'Bảng Theo dõi Điểm số'!C456)","v":"0"}]
[null,454,{"$f":"'Bảng Theo dõi Điểm số'!C457&COUNTIF('Bảng Theo dõi Điểm số'!$C$4:C457,'Bảng Theo dõi Điểm số'!C457)","v":"0"}]
[null,455,{"$f":"'Bảng Theo dõi Điểm số'!C458&COUNTIF('Bảng Theo dõi Điểm số'!$C$4:C458,'Bảng Theo dõi Điểm số'!C458)","v":"0"}]
[null,456,{"$f":"'Bảng Theo dõi Điểm số'!C459&COUNTIF('Bảng Theo dõi Điểm số'!$C$4:C459,'Bảng Theo dõi Điểm số'!C459)","v":"0"}]
[null,457,{"$f":"'Bảng Theo dõi Điểm số'!C460&COUNTIF('Bảng Theo dõi Điểm số'!$C$4:C460,'Bảng Theo dõi Điểm số'!C460)","v":"0"}]
[null,458,{"$f":"'Bảng Theo dõi Điểm số'!C461&COUNTIF('Bảng Theo dõi Điểm số'!$C$4:C461,'Bảng Theo dõi Điểm số'!C461)","v":"0"}]
[null,459,{"$f":"'Bảng Theo dõi Điểm số'!C462&COUNTIF('Bảng Theo dõi Điểm số'!$C$4:C462,'Bảng Theo dõi Điểm số'!C462)","v":"0"}]
[null,460,{"$f":"'Bảng Theo dõi Điểm số'!C463&COUNTIF('Bảng Theo dõi Điểm số'!$C$4:C463,'Bảng Theo dõi Điểm số'!C463)","v":"0"}]
[null,461,{"$f":"'Bảng Theo dõi Điểm số'!C464&COUNTIF('Bảng Theo dõi Điểm số'!$C$4:C464,'Bảng Theo dõi Điểm số'!C464)","v":"0"}]
[null,462,{"$f":"'Bảng Theo dõi Điểm số'!C465&COUNTIF('Bảng Theo dõi Điểm số'!$C$4:C465,'Bảng Theo dõi Điểm số'!C465)","v":"0"}]
[null,463,{"$f":"'Bảng Theo dõi Điểm số'!C466&COUNTIF('Bảng Theo dõi Điểm số'!$C$4:C466,'Bảng Theo dõi Điểm số'!C466)","v":"0"}]
[null,464,{"$f":"'Bảng Theo dõi Điểm số'!C467&COUNTIF('Bảng Theo dõi Điểm số'!$C$4:C467,'Bảng Theo dõi Điểm số'!C467)","v":"0"}]
[null,465,{"$f":"'Bảng Theo dõi Điểm số'!C468&COUNTIF('Bảng Theo dõi Điểm số'!$C$4:C468,'Bảng Theo dõi Điểm số'!C468)","v":"0"}]
[null,466,{"$f":"'Bảng Theo dõi Điểm số'!C469&COUNTIF('Bảng Theo dõi Điểm số'!$C$4:C469,'Bảng Theo dõi Điểm số'!C469)","v":"0"}]
[null,467,{"$f":"'Bảng Theo dõi Điểm số'!C470&COUNTIF('Bảng Theo dõi Điểm số'!$C$4:C470,'Bảng Theo dõi Điểm số'!C470)","v":"0"}]
[null,468,{"$f":"'Bảng Theo dõi Điểm số'!C471&COUNTIF('Bảng Theo dõi Điểm số'!$C$4:C471,'Bảng Theo dõi Điểm số'!C471)","v":"0"}]
[null,469,{"$f":"'Bảng Theo dõi Điểm số'!C472&COUNTIF('Bảng Theo dõi Điểm số'!$C$4:C472,'Bảng Theo dõi Điểm số'!C472)","v":"0"}]
[null,470,{"$f":"'Bảng Theo dõi Điểm số'!C473&COUNTIF('Bảng Theo dõi Điểm số'!$C$4:C473,'Bảng Theo dõi Điểm số'!C473)","v":"0"}]
[null,471,{"$f":"'Bảng Theo dõi Điểm số'!C474&COUNTIF('Bảng Theo dõi Điểm số'!$C$4:C474,'Bảng Theo dõi Điểm số'!C474)","v":"0"}]
[null,472,{"$f":"'Bảng Theo dõi Điểm số'!C475&COUNTIF('Bảng Theo dõi Điểm số'!$C$4:C475,'Bảng Theo dõi Điểm số'!C475)","v":"0"}]
[null,473,{"$f":"'Bảng Theo dõi Điểm số'!C476&COUNTIF('Bảng Theo dõi Điểm số'!$C$4:C476,'Bảng Theo dõi Điểm số'!C476)","v":"0"}]
[null,474,{"$f":"'Bảng Theo dõi Điểm số'!C477&COUNTIF('Bảng Theo dõi Điểm số'!$C$4:C477,'Bảng Theo dõi Điểm số'!C477)","v":"0"}]
[null,475,{"$f":"'Bảng Theo dõi Điểm số'!C478&COUNTIF('Bảng Theo dõi Điểm số'!$C$4:C478,'Bảng Theo dõi Điểm số'!C478)","v":"0"}]
[null,476,{"$f":"'Bảng Theo dõi Điểm số'!C479&COUNTIF('Bảng Theo dõi Điểm số'!$C$4:C479,'Bảng Theo dõi Điểm số'!C479)","v":"0"}]
[null,477,{"$f":"'Bảng Theo dõi Điểm số'!C480&COUNTIF('Bảng Theo dõi Điểm số'!$C$4:C480,'Bảng Theo dõi Điểm số'!C480)","v":"0"}]
[null,478,{"$f":"'Bảng Theo dõi Điểm số'!C481&COUNTIF('Bảng Theo dõi Điểm số'!$C$4:C481,'Bảng Theo dõi Điểm số'!C481)","v":"0"}]
[null,479,{"$f":"'Bảng Theo dõi Điểm số'!C482&COUNTIF('Bảng Theo dõi Điểm số'!$C$4:C482,'Bảng Theo dõi Điểm số'!C482)","v":"0"}]
[null,480,{"$f":"'Bảng Theo dõi Điểm số'!C483&COUNTIF('Bảng Theo dõi Điểm số'!$C$4:C483,'Bảng Theo dõi Điểm số'!C483)","v":"0"}]
[null,481,{"$f":"'Bảng Theo dõi Điểm số'!C484&COUNTIF('Bảng Theo dõi Điểm số'!$C$4:C484,'Bảng Theo dõi Điểm số'!C484)","v":"0"}]
[null,482,{"$f":"'Bảng Theo dõi Điểm số'!C485&COUNTIF('Bảng Theo dõi Điểm số'!$C$4:C485,'Bảng Theo dõi Điểm số'!C485)","v":"0"}]
[null,483,{"$f":"'Bảng Theo dõi Điểm số'!C486&COUNTIF('Bảng Theo dõi Điểm số'!$C$4:C486,'Bảng Theo dõi Điểm số'!C486)","v":"0"}]
[null,484,{"$f":"'Bảng Theo dõi Điểm số'!C487&COUNTIF('Bảng Theo dõi Điểm số'!$C$4:C487,'Bảng Theo dõi Điểm số'!C487)","v":"0"}]
[null,485,{"$f":"'Bảng Theo dõi Điểm số'!C488&COUNTIF('Bảng Theo dõi Điểm số'!$C$4:C488,'Bảng Theo dõi Điểm số'!C488)","v":"0"}]
[null,486,{"$f":"'Bảng Theo dõi Điểm số'!C489&COUNTIF('Bảng Theo dõi Điểm số'!$C$4:C489,'Bảng Theo dõi Điểm số'!C489)","v":"0"}]
[null,487,{"$f":"'Bảng Theo dõi Điểm số'!C490&COUNTIF('Bảng Theo dõi Điểm số'!$C$4:C490,'Bảng Theo dõi Điểm số'!C490)","v":"0"}]
[null,488,{"$f":"'Bảng Theo dõi Điểm số'!C491&COUNTIF('Bảng Theo dõi Điểm số'!$C$4:C491,'Bảng Theo dõi Điểm số'!C491)","v":"0"}]
[null,489,{"$f":"'Bảng Theo dõi Điểm số'!C492&COUNTIF('Bảng Theo dõi Điểm số'!$C$4:C492,'Bảng Theo dõi Điểm số'!C492)","v":"0"}]
[null,490,{"$f":"'Bảng Theo dõi Điểm số'!C493&COUNTIF('Bảng Theo dõi Điểm số'!$C$4:C493,'Bảng Theo dõi Điểm số'!C493)","v":"0"}]
[null,491,{"$f":"'Bảng Theo dõi Điểm số'!C494&COUNTIF('Bảng Theo dõi Điểm số'!$C$4:C494,'Bảng Theo dõi Điểm số'!C494)","v":"0"}]
[null,492,{"$f":"'Bảng Theo dõi Điểm số'!C495&COUNTIF('Bảng Theo dõi Điểm số'!$C$4:C495,'Bảng Theo dõi Điểm số'!C495)","v":"0"}]
[null,493,{"$f":"'Bảng Theo dõi Điểm số'!C496&COUNTIF('Bảng Theo dõi Điểm số'!$C$4:C496,'Bảng Theo dõi Điểm số'!C496)","v":"0"}]
[null,494,{"$f":"'Bảng Theo dõi Điểm số'!C497&COUNTIF('Bảng Theo dõi Điểm số'!$C$4:C497,'Bảng Theo dõi Điểm số'!C497)","v":"0"}]
[null,495,{"$f":"'Bảng Theo dõi Điểm số'!C498&COUNTIF('Bảng Theo dõi Điểm số'!$C$4:C498,'Bảng Theo dõi Điểm số'!C498)","v":"0"}]
[null,496,{"$f":"'Bảng Theo dõi Điểm số'!C499&COUNTIF('Bảng Theo dõi Điểm số'!$C$4:C499,'Bảng Theo dõi Điểm số'!C499)","v":"0"}]
[null,497,{"$f":"'Bảng Theo dõi Điểm số'!C500&COUNTIF('Bảng Theo dõi Điểm số'!$C$4:C500,'Bảng Theo dõi Điểm số'!C500)","v":"0"}]
[null,498,{"$f":"'Bảng Theo dõi Điểm số'!C501&COUNTIF('Bảng Theo dõi Điểm số'!$C$4:C501,'Bảng Theo dõi Điểm số'!C501)","v":"0"}]
[null,499,{"$f":"'Bảng Theo dõi Điểm số'!C502&COUNTIF('Bảng Theo dõi Điểm số'!$C$4:C502,'Bảng Theo dõi Điểm số'!C502)","v":"0"}]
[null,500,{"$f":"'Bảng Theo dõi Điểm số'!C503&COUNTIF('Bảng Theo dõi Điểm số'!$C$4:C503,'Bảng Theo dõi Điểm số'!C503)","v":"0"}]
[null,501,{"$f":"'Bảng Theo dõi Điểm số'!C504&COUNTIF('Bảng Theo dõi Điểm số'!$C$4:C504,'Bảng Theo dõi Điểm số'!C504)","v":"0"}]
[null,502,{"$f":"'Bảng Theo dõi Điểm số'!C505&COUNTIF('Bảng Theo dõi Điểm số'!$C$4:C505,'Bảng Theo dõi Điểm số'!C505)","v":"0"}]
[null,503,{"$f":"'Bảng Theo dõi Điểm số'!C506&COUNTIF('Bảng Theo dõi Điểm số'!$C$4:C506,'Bảng Theo dõi Điểm số'!C506)","v":"0"}]
[null,504,{"$f":"'Bảng Theo dõi Điểm số'!C507&COUNTIF('Bảng Theo dõi Điểm số'!$C$4:C507,'Bảng Theo dõi Điểm số'!C507)","v":"0"}]
[null,505,{"$f":"'Bảng Theo dõi Điểm số'!C508&COUNTIF('Bảng Theo dõi Điểm số'!$C$4:C508,'Bảng Theo dõi Điểm số'!C508)","v":"0"}]
[null,506,{"$f":"'Bảng Theo dõi Điểm số'!C509&COUNTIF('Bảng Theo dõi Điểm số'!$C$4:C509,'Bảng Theo dõi Điểm số'!C509)","v":"0"}]
[null,507,{"$f":"'Bảng Theo dõi Điểm số'!C510&COUNTIF('Bảng Theo dõi Điểm số'!$C$4:C510,'Bảng Theo dõi Điểm số'!C510)","v":"0"}]
[null,508,{"$f":"'Bảng Theo dõi Điểm số'!C511&COUNTIF('Bảng Theo dõi Điểm số'!$C$4:C511,'Bảng Theo dõi Điểm số'!C511)","v":"0"}]
[null,509,{"$f":"'Bảng Theo dõi Điểm số'!C512&COUNTIF('Bảng Theo dõi Điểm số'!$C$4:C512,'Bảng Theo dõi Điểm số'!C512)","v":"0"}]
[null,510,{"$f":"'Bảng Theo dõi Điểm số'!C513&COUNTIF('Bảng Theo dõi Điểm số'!$C$4:C513,'Bảng Theo dõi Điểm số'!C513)","v":"0"}]
[null,511,{"$f":"'Bảng Theo dõi Điểm số'!C514&COUNTIF('Bảng Theo dõi Điểm số'!$C$4:C514,'Bảng Theo dõi Điểm số'!C514)","v":"0"}]
[null,512,{"$f":"'Bảng Theo dõi Điểm số'!C515&COUNTIF('Bảng Theo dõi Điểm số'!$C$4:C515,'Bảng Theo dõi Điểm số'!C515)","v":"0"}]
[null,513,{"$f":"'Bảng Theo dõi Điểm số'!C516&COUNTIF('Bảng Theo dõi Điểm số'!$C$4:C516,'Bảng Theo dõi Điểm số'!C516)","v":"0"}]
[null,514,{"$f":"'Bảng Theo dõi Điểm số'!C517&COUNTIF('Bảng Theo dõi Điểm số'!$C$4:C517,'Bảng Theo dõi Điểm số'!C517)","v":"0"}]
[null,515,{"$f":"'Bảng Theo dõi Điểm số'!C518&COUNTIF('Bảng Theo dõi Điểm số'!$C$4:C518,'Bảng Theo dõi Điểm số'!C518)","v":"0"}]
[null,516,{"$f":"'Bảng Theo dõi Điểm số'!C519&COUNTIF('Bảng Theo dõi Điểm số'!$C$4:C519,'Bảng Theo dõi Điểm số'!C519)","v":"0"}]
[null,517,{"$f":"'Bảng Theo dõi Điểm số'!C520&COUNTIF('Bảng Theo dõi Điểm số'!$C$4:C520,'Bảng Theo dõi Điểm số'!C520)","v":"0"}]
[null,518,{"$f":"'Bảng Theo dõi Điểm số'!C521&COUNTIF('Bảng Theo dõi Điểm số'!$C$4:C521,'Bảng Theo dõi Điểm số'!C521)","v":"0"}]
[null,519,{"$f":"'Bảng Theo dõi Điểm số'!C522&COUNTIF('Bảng Theo dõi Điểm số'!$C$4:C522,'Bảng Theo dõi Điểm số'!C522)","v":"0"}]
[null,520,{"$f":"'Bảng Theo dõi Điểm số'!C523&COUNTIF('Bảng Theo dõi Điểm số'!$C$4:C523,'Bảng Theo dõi Điểm số'!C523)","v":"0"}]
[null,521,{"$f":"'Bảng Theo dõi Điểm số'!C524&COUNTIF('Bảng Theo dõi Điểm số'!$C$4:C524,'Bảng Theo dõi Điểm số'!C524)","v":"0"}]
[null,522,{"$f":"'Bảng Theo dõi Điểm số'!C525&COUNTIF('Bảng Theo dõi Điểm số'!$C$4:C525,'Bảng Theo dõi Điểm số'!C525)","v":"0"}]
[null,523,{"$f":"'Bảng Theo dõi Điểm số'!C526&COUNTIF('Bảng Theo dõi Điểm số'!$C$4:C526,'Bảng Theo dõi Điểm số'!C526)","v":"0"}]
[null,524,{"$f":"'Bảng Theo dõi Điểm số'!C527&COUNTIF('Bảng Theo dõi Điểm số'!$C$4:C527,'Bảng Theo dõi Điểm số'!C527)","v":"0"}]
[null,525,{"$f":"'Bảng Theo dõi Điểm số'!C528&COUNTIF('Bảng Theo dõi Điểm số'!$C$4:C528,'Bảng Theo dõi Điểm số'!C528)","v":"0"}]
[null,526,{"$f":"'Bảng Theo dõi Điểm số'!C529&COUNTIF('Bảng Theo dõi Điểm số'!$C$4:C529,'Bảng Theo dõi Điểm số'!C529)","v":"0"}]
[null,527,{"$f":"'Bảng Theo dõi Điểm số'!C530&COUNTIF('Bảng Theo dõi Điểm số'!$C$4:C530,'Bảng Theo dõi Điểm số'!C530)","v":"0"}]
[null,528,{"$f":"'Bảng Theo dõi Điểm số'!C531&COUNTIF('Bảng Theo dõi Điểm số'!$C$4:C531,'Bảng Theo dõi Điểm số'!C531)","v":"0"}]
[null,529,{"$f":"'Bảng Theo dõi Điểm số'!C532&COUNTIF('Bảng Theo dõi Điểm số'!$C$4:C532,'Bảng Theo dõi Điểm số'!C532)","v":"0"}]
[null,530,{"$f":"'Bảng Theo dõi Điểm số'!C533&COUNTIF('Bảng Theo dõi Điểm số'!$C$4:C533,'Bảng Theo dõi Điểm số'!C533)","v":"0"}]
[null,531,{"$f":"'Bảng Theo dõi Điểm số'!C534&COUNTIF('Bảng Theo dõi Điểm số'!$C$4:C534,'Bảng Theo dõi Điểm số'!C534)","v":"0"}]
[null,532,{"$f":"'Bảng Theo dõi Điểm số'!C535&COUNTIF('Bảng Theo dõi Điểm số'!$C$4:C535,'Bảng Theo dõi Điểm số'!C535)","v":"0"}]
[null,533,{"$f":"'Bảng Theo dõi Điểm số'!C536&COUNTIF('Bảng Theo dõi Điểm số'!$C$4:C536,'Bảng Theo dõi Điểm số'!C536)","v":"0"}]
[null,534,{"$f":"'Bảng Theo dõi Điểm số'!C537&COUNTIF('Bảng Theo dõi Điểm số'!$C$4:C537,'Bảng Theo dõi Điểm số'!C537)","v":"0"}]
[null,535,{"$f":"'Bảng Theo dõi Điểm số'!C538&COUNTIF('Bảng Theo dõi Điểm số'!$C$4:C538,'Bảng Theo dõi Điểm số'!C538)","v":"0"}]
[null,536,{"$f":"'Bảng Theo dõi Điểm số'!C539&COUNTIF('Bảng Theo dõi Điểm số'!$C$4:C539,'Bảng Theo dõi Điểm số'!C539)","v":"0"}]
[null,537,{"$f":"'Bảng Theo dõi Điểm số'!C540&COUNTIF('Bảng Theo dõi Điểm số'!$C$4:C540,'Bảng Theo dõi Điểm số'!C540)","v":"0"}]
[null,538,{"$f":"'Bảng Theo dõi Điểm số'!C541&COUNTIF('Bảng Theo dõi Điểm số'!$C$4:C541,'Bảng Theo dõi Điểm số'!C541)","v":"0"}]
[null,539,{"$f":"'Bảng Theo dõi Điểm số'!C542&COUNTIF('Bảng Theo dõi Điểm số'!$C$4:C542,'Bảng Theo dõi Điểm số'!C542)","v":"0"}]
[null,540,{"$f":"'Bảng Theo dõi Điểm số'!C543&COUNTIF('Bảng Theo dõi Điểm số'!$C$4:C543,'Bảng Theo dõi Điểm số'!C543)","v":"0"}]
[null,541,{"$f":"'Bảng Theo dõi Điểm số'!C544&COUNTIF('Bảng Theo dõi Điểm số'!$C$4:C544,'Bảng Theo dõi Điểm số'!C544)","v":"0"}]
[null,542,{"$f":"'Bảng Theo dõi Điểm số'!C545&COUNTIF('Bảng Theo dõi Điểm số'!$C$4:C545,'Bảng Theo dõi Điểm số'!C545)","v":"0"}]
[null,543,{"$f":"'Bảng Theo dõi Điểm số'!C546&COUNTIF('Bảng Theo dõi Điểm số'!$C$4:C546,'Bảng Theo dõi Điểm số'!C546)","v":"0"}]
[null,544,{"$f":"'Bảng Theo dõi Điểm số'!C547&COUNTIF('Bảng Theo dõi Điểm số'!$C$4:C547,'Bảng Theo dõi Điểm số'!C547)","v":"0"}]
[null,545,{"$f":"'Bảng Theo dõi Điểm số'!C548&COUNTIF('Bảng Theo dõi Điểm số'!$C$4:C548,'Bảng Theo dõi Điểm số'!C548)","v":"0"}]
[null,546,{"$f":"'Bảng Theo dõi Điểm số'!C549&COUNTIF('Bảng Theo dõi Điểm số'!$C$4:C549,'Bảng Theo dõi Điểm số'!C549)","v":"0"}]
[null,547,{"$f":"'Bảng Theo dõi Điểm số'!C550&COUNTIF('Bảng Theo dõi Điểm số'!$C$4:C550,'Bảng Theo dõi Điểm số'!C550)","v":"0"}]
[null,548,{"$f":"'Bảng Theo dõi Điểm số'!C551&COUNTIF('Bảng Theo dõi Điểm số'!$C$4:C551,'Bảng Theo dõi Điểm số'!C551)","v":"0"}]
[null,549,{"$f":"'Bảng Theo dõi Điểm số'!C552&COUNTIF('Bảng Theo dõi Điểm số'!$C$4:C552,'Bảng Theo dõi Điểm số'!C552)","v":"0"}]
[null,550,{"$f":"'Bảng Theo dõi Điểm số'!C553&COUNTIF('Bảng Theo dõi Điểm số'!$C$4:C553,'Bảng Theo dõi Điểm số'!C553)","v":"0"}]
[null,551,{"$f":"'Bảng Theo dõi Điểm số'!C554&COUNTIF('Bảng Theo dõi Điểm số'!$C$4:C554,'Bảng Theo dõi Điểm số'!C554)","v":"0"}]
[null,552,{"$f":"'Bảng Theo dõi Điểm số'!C555&COUNTIF('Bảng Theo dõi Điểm số'!$C$4:C555,'Bảng Theo dõi Điểm số'!C555)","v":"0"}]
[null,553,{"$f":"'Bảng Theo dõi Điểm số'!C556&COUNTIF('Bảng Theo dõi Điểm số'!$C$4:C556,'Bảng Theo dõi Điểm số'!C556)","v":"0"}]
[null,554,{"$f":"'Bảng Theo dõi Điểm số'!C557&COUNTIF('Bảng Theo dõi Điểm số'!$C$4:C557,'Bảng Theo dõi Điểm số'!C557)","v":"0"}]
[null,555,{"$f":"'Bảng Theo dõi Điểm số'!C558&COUNTIF('Bảng Theo dõi Điểm số'!$C$4:C558,'Bảng Theo dõi Điểm số'!C558)","v":"0"}]
[null,556,{"$f":"'Bảng Theo dõi Điểm số'!C559&COUNTIF('Bảng Theo dõi Điểm số'!$C$4:C559,'Bảng Theo dõi Điểm số'!C559)","v":"0"}]
[null,557,{"$f":"'Bảng Theo dõi Điểm số'!C560&COUNTIF('Bảng Theo dõi Điểm số'!$C$4:C560,'Bảng Theo dõi Điểm số'!C560)","v":"0"}]
[null,558,{"$f":"'Bảng Theo dõi Điểm số'!C561&COUNTIF('Bảng Theo dõi Điểm số'!$C$4:C561,'Bảng Theo dõi Điểm số'!C561)","v":"0"}]
[null,559,{"$f":"'Bảng Theo dõi Điểm số'!C562&COUNTIF('Bảng Theo dõi Điểm số'!$C$4:C562,'Bảng Theo dõi Điểm số'!C562)","v":"0"}]
[null,560,{"$f":"'Bảng Theo dõi Điểm số'!C563&COUNTIF('Bảng Theo dõi Điểm số'!$C$4:C563,'Bảng Theo dõi Điểm số'!C563)","v":"0"}]
[null,561,{"$f":"'Bảng Theo dõi Điểm số'!C564&COUNTIF('Bảng Theo dõi Điểm số'!$C$4:C564,'Bảng Theo dõi Điểm số'!C564)","v":"0"}]
[null,562,{"$f":"'Bảng Theo dõi Điểm số'!C565&COUNTIF('Bảng Theo dõi Điểm số'!$C$4:C565,'Bảng Theo dõi Điểm số'!C565)","v":"0"}]
[null,563,{"$f":"'Bảng Theo dõi Điểm số'!C566&COUNTIF('Bảng Theo dõi Điểm số'!$C$4:C566,'Bảng Theo dõi Điểm số'!C566)","v":"0"}]
[null,564,{"$f":"'Bảng Theo dõi Điểm số'!C567&COUNTIF('Bảng Theo dõi Điểm số'!$C$4:C567,'Bảng Theo dõi Điểm số'!C567)","v":"0"}]
[null,565,{"$f":"'Bảng Theo dõi Điểm số'!C568&COUNTIF('Bảng Theo dõi Điểm số'!$C$4:C568,'Bảng Theo dõi Điểm số'!C568)","v":"0"}]
[null,566,{"$f":"'Bảng Theo dõi Điểm số'!C569&COUNTIF('Bảng Theo dõi Điểm số'!$C$4:C569,'Bảng Theo dõi Điểm số'!C569)","v":"0"}]
[null,567,{"$f":"'Bảng Theo dõi Điểm số'!C570&COUNTIF('Bảng Theo dõi Điểm số'!$C$4:C570,'Bảng Theo dõi Điểm số'!C570)","v":"0"}]
[null,568,{"$f":"'Bảng Theo dõi Điểm số'!C571&COUNTIF('Bảng Theo dõi Điểm số'!$C$4:C571,'Bảng Theo dõi Điểm số'!C571)","v":"0"}]
[null,569,{"$f":"'Bảng Theo dõi Điểm số'!C572&COUNTIF('Bảng Theo dõi Điểm số'!$C$4:C572,'Bảng Theo dõi Điểm số'!C572)","v":"0"}]
[null,570,{"$f":"'Bảng Theo dõi Điểm số'!C573&COUNTIF('Bảng Theo dõi Điểm số'!$C$4:C573,'Bảng Theo dõi Điểm số'!C573)","v":"0"}]
[null,571,{"$f":"'Bảng Theo dõi Điểm số'!C574&COUNTIF('Bảng Theo dõi Điểm số'!$C$4:C574,'Bảng Theo dõi Điểm số'!C574)","v":"0"}]
[null,572,{"$f":"'Bảng Theo dõi Điểm số'!C575&COUNTIF('Bảng Theo dõi Điểm số'!$C$4:C575,'Bảng Theo dõi Điểm số'!C575)","v":"0"}]
[null,573,{"$f":"'Bảng Theo dõi Điểm số'!C576&COUNTIF('Bảng Theo dõi Điểm số'!$C$4:C576,'Bảng Theo dõi Điểm số'!C576)","v":"0"}]
[null,574,{"$f":"'Bảng Theo dõi Điểm số'!C577&COUNTIF('Bảng Theo dõi Điểm số'!$C$4:C577,'Bảng Theo dõi Điểm số'!C577)","v":"0"}]
[null,575,{"$f":"'Bảng Theo dõi Điểm số'!C578&COUNTIF('Bảng Theo dõi Điểm số'!$C$4:C578,'Bảng Theo dõi Điểm số'!C578)","v":"0"}]
[null,576,{"$f":"'Bảng Theo dõi Điểm số'!C579&COUNTIF('Bảng Theo dõi Điểm số'!$C$4:C579,'Bảng Theo dõi Điểm số'!C579)","v":"0"}]
[null,577,{"$f":"'Bảng Theo dõi Điểm số'!C580&COUNTIF('Bảng Theo dõi Điểm số'!$C$4:C580,'Bảng Theo dõi Điểm số'!C580)","v":"0"}]
[null,578,{"$f":"'Bảng Theo dõi Điểm số'!C581&COUNTIF('Bảng Theo dõi Điểm số'!$C$4:C581,'Bảng Theo dõi Điểm số'!C581)","v":"0"}]
[null,579,{"$f":"'Bảng Theo dõi Điểm số'!C582&COUNTIF('Bảng Theo dõi Điểm số'!$C$4:C582,'Bảng Theo dõi Điểm số'!C582)","v":"0"}]
[null,580,{"$f":"'Bảng Theo dõi Điểm số'!C583&COUNTIF('Bảng Theo dõi Điểm số'!$C$4:C583,'Bảng Theo dõi Điểm số'!C583)","v":"0"}]
[null,581,{"$f":"'Bảng Theo dõi Điểm số'!C584&COUNTIF('Bảng Theo dõi Điểm số'!$C$4:C584,'Bảng Theo dõi Điểm số'!C584)","v":"0"}]
[null,582,{"$f":"'Bảng Theo dõi Điểm số'!C585&COUNTIF('Bảng Theo dõi Điểm số'!$C$4:C585,'Bảng Theo dõi Điểm số'!C585)","v":"0"}]
[null,583,{"$f":"'Bảng Theo dõi Điểm số'!C586&COUNTIF('Bảng Theo dõi Điểm số'!$C$4:C586,'Bảng Theo dõi Điểm số'!C586)","v":"0"}]
[null,584,{"$f":"'Bảng Theo dõi Điểm số'!C587&COUNTIF('Bảng Theo dõi Điểm số'!$C$4:C587,'Bảng Theo dõi Điểm số'!C587)","v":"0"}]
[null,585,{"$f":"'Bảng Theo dõi Điểm số'!C588&COUNTIF('Bảng Theo dõi Điểm số'!$C$4:C588,'Bảng Theo dõi Điểm số'!C588)","v":"0"}]
[null,586,{"$f":"'Bảng Theo dõi Điểm số'!C589&COUNTIF('Bảng Theo dõi Điểm số'!$C$4:C589,'Bảng Theo dõi Điểm số'!C589)","v":"0"}]
[null,587,{"$f":"'Bảng Theo dõi Điểm số'!C590&COUNTIF('Bảng Theo dõi Điểm số'!$C$4:C590,'Bảng Theo dõi Điểm số'!C590)","v":"0"}]
[null,588,{"$f":"'Bảng Theo dõi Điểm số'!C591&COUNTIF('Bảng Theo dõi Điểm số'!$C$4:C591,'Bảng Theo dõi Điểm số'!C591)","v":"0"}]
[null,589,{"$f":"'Bảng Theo dõi Điểm số'!C592&COUNTIF('Bảng Theo dõi Điểm số'!$C$4:C592,'Bảng Theo dõi Điểm số'!C592)","v":"0"}]
[null,590,{"$f":"'Bảng Theo dõi Điểm số'!C593&COUNTIF('Bảng Theo dõi Điểm số'!$C$4:C593,'Bảng Theo dõi Điểm số'!C593)","v":"0"}]
[null,591,{"$f":"'Bảng Theo dõi Điểm số'!C594&COUNTIF('Bảng Theo dõi Điểm số'!$C$4:C594,'Bảng Theo dõi Điểm số'!C594)","v":"0"}]
[null,592,{"$f":"'Bảng Theo dõi Điểm số'!C595&COUNTIF('Bảng Theo dõi Điểm số'!$C$4:C595,'Bảng Theo dõi Điểm số'!C595)","v":"0"}]
[null,593,{"$f":"'Bảng Theo dõi Điểm số'!C596&COUNTIF('Bảng Theo dõi Điểm số'!$C$4:C596,'Bảng Theo dõi Điểm số'!C596)","v":"0"}]
[null,594,{"$f":"'Bảng Theo dõi Điểm số'!C597&COUNTIF('Bảng Theo dõi Điểm số'!$C$4:C597,'Bảng Theo dõi Điểm số'!C597)","v":"0"}]
[null,595,{"$f":"'Bảng Theo dõi Điểm số'!C598&COUNTIF('Bảng Theo dõi Điểm số'!$C$4:C598,'Bảng Theo dõi Điểm số'!C598)","v":"0"}]
[null,596,{"$f":"'Bảng Theo dõi Điểm số'!C599&COUNTIF('Bảng Theo dõi Điểm số'!$C$4:C599,'Bảng Theo dõi Điểm số'!C599)","v":"0"}]
[null,597,{"$f":"'Bảng Theo dõi Điểm số'!C600&COUNTIF('Bảng Theo dõi Điểm số'!$C$4:C600,'Bảng Theo dõi Điểm số'!C600)","v":"0"}]
[null,598,{"$f":"'Bảng Theo dõi Điểm số'!C601&COUNTIF('Bảng Theo dõi Điểm số'!$C$4:C601,'Bảng Theo dõi Điểm số'!C601)","v":"0"}]
[null,599,{"$f":"'Bảng Theo dõi Điểm số'!C602&COUNTIF('Bảng Theo dõi Điểm số'!$C$4:C602,'Bảng Theo dõi Điểm số'!C602)","v":"0"}]
[null,600,{"$f":"'Bảng Theo dõi Điểm số'!C603&COUNTIF('Bảng Theo dõi Điểm số'!$C$4:C603,'Bảng Theo dõi Điểm số'!C603)","v":"0"}]
[null,601,{"$f":"'Bảng Theo dõi Điểm số'!C604&COUNTIF('Bảng Theo dõi Điểm số'!$C$4:C604,'Bảng Theo dõi Điểm số'!C604)","v":"0"}]
[null,602,{"$f":"'Bảng Theo dõi Điểm số'!C605&COUNTIF('Bảng Theo dõi Điểm số'!$C$4:C605,'Bảng Theo dõi Điểm số'!C605)","v":"0"}]
[null,603,{"$f":"'Bảng Theo dõi Điểm số'!C606&COUNTIF('Bảng Theo dõi Điểm số'!$C$4:C606,'Bảng Theo dõi Điểm số'!C606)","v":"0"}]
[null,604,{"$f":"'Bảng Theo dõi Điểm số'!C607&COUNTIF('Bảng Theo dõi Điểm số'!$C$4:C607,'Bảng Theo dõi Điểm số'!C607)","v":"0"}]
[null,605,{"$f":"'Bảng Theo dõi Điểm số'!C608&COUNTIF('Bảng Theo dõi Điểm số'!$C$4:C608,'Bảng Theo dõi Điểm số'!C608)","v":"0"}]
[null,606,{"$f":"'Bảng Theo dõi Điểm số'!C609&COUNTIF('Bảng Theo dõi Điểm số'!$C$4:C609,'Bảng Theo dõi Điểm số'!C609)","v":"0"}]
[null,607,{"$f":"'Bảng Theo dõi Điểm số'!C610&COUNTIF('Bảng Theo dõi Điểm số'!$C$4:C610,'Bảng Theo dõi Điểm số'!C610)","v":"0"}]
[null,608,{"$f":"'Bảng Theo dõi Điểm số'!C611&COUNTIF('Bảng Theo dõi Điểm số'!$C$4:C611,'Bảng Theo dõi Điểm số'!C611)","v":"0"}]
[null,609,{"$f":"'Bảng Theo dõi Điểm số'!C612&COUNTIF('Bảng Theo dõi Điểm số'!$C$4:C612,'Bảng Theo dõi Điểm số'!C612)","v":"0"}]
[null,610,{"$f":"'Bảng Theo dõi Điểm số'!C613&COUNTIF('Bảng Theo dõi Điểm số'!$C$4:C613,'Bảng Theo dõi Điểm số'!C613)","v":"0"}]
[null,611,{"$f":"'Bảng Theo dõi Điểm số'!C614&COUNTIF('Bảng Theo dõi Điểm số'!$C$4:C614,'Bảng Theo dõi Điểm số'!C614)","v":"0"}]
[null,612,{"$f":"'Bảng Theo dõi Điểm số'!C615&COUNTIF('Bảng Theo dõi Điểm số'!$C$4:C615,'Bảng Theo dõi Điểm số'!C615)","v":"0"}]
[null,613,{"$f":"'Bảng Theo dõi Điểm số'!C616&COUNTIF('Bảng Theo dõi Điểm số'!$C$4:C616,'Bảng Theo dõi Điểm số'!C616)","v":"0"}]
[null,614,{"$f":"'Bảng Theo dõi Điểm số'!C617&COUNTIF('Bảng Theo dõi Điểm số'!$C$4:C617,'Bảng Theo dõi Điểm số'!C617)","v":"0"}]
[null,615,{"$f":"'Bảng Theo dõi Điểm số'!C618&COUNTIF('Bảng Theo dõi Điểm số'!$C$4:C618,'Bảng Theo dõi Điểm số'!C618)","v":"0"}]
[null,616,{"$f":"'Bảng Theo dõi Điểm số'!C619&COUNTIF('Bảng Theo dõi Điểm số'!$C$4:C619,'Bảng Theo dõi Điểm số'!C619)","v":"0"}]
[null,617,{"$f":"'Bảng Theo dõi Điểm số'!C620&COUNTIF('Bảng Theo dõi Điểm số'!$C$4:C620,'Bảng Theo dõi Điểm số'!C620)","v":"0"}]
[null,618,{"$f":"'Bảng Theo dõi Điểm số'!C621&COUNTIF('Bảng Theo dõi Điểm số'!$C$4:C621,'Bảng Theo dõi Điểm số'!C621)","v":"0"}]
[null,619,{"$f":"'Bảng Theo dõi Điểm số'!C622&COUNTIF('Bảng Theo dõi Điểm số'!$C$4:C622,'Bảng Theo dõi Điểm số'!C622)","v":"0"}]
[null,620,{"$f":"'Bảng Theo dõi Điểm số'!C623&COUNTIF('Bảng Theo dõi Điểm số'!$C$4:C623,'Bảng Theo dõi Điểm số'!C623)","v":"0"}]
[null,621,{"$f":"'Bảng Theo dõi Điểm số'!C624&COUNTIF('Bảng Theo dõi Điểm số'!$C$4:C624,'Bảng Theo dõi Điểm số'!C624)","v":"0"}]
[null,622,{"$f":"'Bảng Theo dõi Điểm số'!C625&COUNTIF('Bảng Theo dõi Điểm số'!$C$4:C625,'Bảng Theo dõi Điểm số'!C625)","v":"0"}]
[null,623,{"$f":"'Bảng Theo dõi Điểm số'!C626&COUNTIF('Bảng Theo dõi Điểm số'!$C$4:C626,'Bảng Theo dõi Điểm số'!C626)","v":"0"}]
[null,624,{"$f":"'Bảng Theo dõi Điểm số'!C627&COUNTIF('Bảng Theo dõi Điểm số'!$C$4:C627,'Bảng Theo dõi Điểm số'!C627)","v":"0"}]
[null,625,{"$f":"'Bảng Theo dõi Điểm số'!C628&COUNTIF('Bảng Theo dõi Điểm số'!$C$4:C628,'Bảng Theo dõi Điểm số'!C628)","v":"0"}]